{"text_format":"1","workbook":"xlsx","n_sheets":9,"sheets":["Home","TermsAndConditions","Menu","Help","Maintenance","Options","Calculator","CostPrices","eBay Fees"],"not_rendered":{"charts":0,"images":1,"macros":1,"external_links":0,"defined_names":0,"comments":0,"pivot_tables":0},"unopened":[],"bounds":{"document_bytes":16777216,"sheet_cells":100000,"rows_first":2000,"rows_last":500,"rows_between":2000,"halvings":0,"cell_chars":16384,"cell_head_chars":4096},"cells_cut":0,"cells_raw":0,"read":"whole","date_system":"1900"}

{"sheet":"Home","index":0,"n_rows":20,"n_cols":5,"rows_kept":20,"cut":false,"hidden":false,"merged":[[1,2,1,4],[19,2,21,12],[18,2,18,12],[6,4,16,10],[2,2,2,12],[4,2,4,12],[15,11,16,13],[9,1,9,3]]}
[]
[null,null,"Version 2.000-RC2cd"]
[null,null,"CritchCorp Computers Ltd"]
[]
[null,null,"Marketplace Quick Calculators"]
[]
[null,null,null,null,"This software will not work unless you have your security setting set correctly. If the buttons don't work, then go to:\nFile --> Options --> Trust Center\nClick the Trust Center Settings Button\nGo to Macro Settings\nSelect Enable VBA Macros...\nTick the other two boxes if available\nClick OK\nClose Excel and reopen this file.\nDON'T FORGET to Unblock the file after download. Right click the file and tick the UNBLOCK box, click OK."]
[]
[null,null,"Support:"]
[null,"https://itforum.website"]
[]
[]
[]
[]
[]
[]
[]
[]
[null,null,"© 2024 CritchCorp Computers Ltd"]
[null,null,"CritchCorp Computers Ltd is a company registered in England and Wales. Registered number: 05928822. Registered address: 132-134 Great Ancoats Street, Manchester, M4 6DE\n(Official Documents Only). Support: support@cc-computers.com"]

{"sheet":"TermsAndConditions","index":1,"n_rows":19,"n_cols":15,"rows_kept":19,"cut":false,"hidden":true,"merged":[[5,12,5,13],[5,14,5,16]]}
[]
[null,null,"Software",{"$f":"Home!C2","v":"Version 2.000-RC2cd"}]
[null,"Use at your own risk at the moment. No guarantees apply. Merchantability of this software is not guaranteed."]
[]
[null,"This software is in Beta testing. It is not for general release and as such no guarantees apply at all."]
[null,null,null,null,null,null,null,null,null,null,null,null,"Serial Number:",null,0]
[null,"This software is intended for use a guide only. It does not gaurentee you will make a profit on every sale. It is to be used a guide only."]
[null,"It doe not take in to account other costs of business and other costs directly associated with each sale. "]
[null,"There are other costs, such as Pay-Per-Click and other advertising fees that are not accounted for in this software."]
[null,"You must take these extra costs in to account yourself. If you can add a percentage to the unit costs, then you can easily do so."]
[null,"If you cannot then you must make provisions for these in some other way."]
[null,"By using this software you agree not hold us liable for any losses you may incude due to using the software."]
[null,"You also agree to not attempt to interfere with the code. Any attempt or actual changing of the code will invalidate the software and in such cases no warraty will be applied"]
[null,"Further more, if you notice a glitch, or problem, then as a Beta tester, or a user of the Beta software, you are duty bound to report it ASAP."]
[]
[null,"E&OE"]
[]
[]
[null,"CritchCorp Computers Ltd"]

{"sheet":"Menu","index":2,"n_rows":33,"n_cols":2,"rows_kept":33,"cut":false,"hidden":true,"merged":[[31,1,31,8],[1,1,2,11],[5,1,6,11],[32,1,32,3]]}
[]
[null,"CritchCorp Computers Ltd"]
[]
[]
[]
[null,"Main Menu"]
[]
[]
[]
[]
[]
[]
[]
[]
[]
[]
[]
[]
[]
[]
[]
[]
[]
[]
[]
[]
[]
[]
[]
[]
[]
[null,"© 2024 CritchCorp Computers Ltd"]
[null,{"$f":"Home!C2","v":"Version 2.000-RC2cd"}]

{"sheet":"Help","index":3,"n_rows":36,"n_cols":1,"rows_kept":36,"cut":false,"hidden":true,"merged":[[24,0,32,27],[33,0,33,27],[35,0,42,27]]}
[]
[]
[]
[]
[]
[]
[]
[]
[]
[]
[]
[]
[]
[]
[]
[]
[]
[]
["Make sure you know your item catgory percentages. These are your responsibility to know. You canu use the Market Place Fees page to help you. If you are unsure then use the highest possible fee from that marketplace."]
["Where the Marketplace settings (Options Page) have a value, this is usuallly the only value they have, but you can use this as the default for that marketplace. When you click the button it will automatically set that rate for you. You can still change it in the calulator."]
[]
[]
["To use the Calculator"]
[]
["First Select the Market Place or App you want to use, from the buttons on the left (marked 1 on the picture). Selecting the correct one is important as it will set up some feautres for that particular app or marketplace. For example setting it to Shopify will set the per transaction fee to £0.25, it will exclude VAT from that fee and it will set the category fee to 3.9%, as this is the most charged by the payment processors. (you can amend any of these as well. More about that later).\nOnce you have selected your marketplace or app, you can enter your item specifc category fee, add fee as required (Marked as 2). The Foriegn fee and Charity fee are eBay specific but you can use if they are needed for other things. One has VAT and one does not, depending on what you are charged.\nOn to 3 on the diagram and you should enter your cost price for the item. That is the entire cost including the post and packing import duty, etc that you paid (or will pay).\n4 - There are 2 of these, you should use only one usually. The Postage column is for Royal Mail postage which does not include any VAT. The other is for courier who charge VAT (Including Royal Mail Business accounts).\nThen in 5 enter the sale price, 6 the amount your customer pays for delivery and 7 the quantity (not bundels, as they are usually one item and costed as such, this will multiply the cost and sale price by this number.\nNow head on over to number 8 and see if you are losing or profiting."]
[]
[]
[]
[]
[]
[]
[]
[]
["This doesn't take in to account any other costs. If you know what margin must be added in order to cover your other costs, make sure you add it to the unit cost price, or as one of the other percentages if available."]
[]
["There are 3 calculators on the right side.\nThe first is a calculates how much VAT to add: Enter the cost with out VAT and it will tell you how much it is with VAT.\nThe second will remove the VAT.\nThe third is to help with multibuy discounts. Put your sales price in and then use the discount amount in the calculator to see if you still make a profit or not. The OTher box can be used fro your own discount amount, other than the fix boxes."]

{"sheet":"Maintenance","index":4,"n_rows":34,"n_cols":17,"rows_kept":34,"cut":false,"hidden":true,"merged":[[6,10,6,16],[7,10,7,16],[5,8,5,11],[33,1,33,8],[7,0,7,1],[6,0,6,1],[6,8,6,9],[7,8,7,9]]}
[]
[null,"This is the Maintenance page, there is nothing here for you, yet. Please return to the menu."]
[]
[]
[]
[null,null,null,null,null,null,null,null,"Upgrade System Info"]
["Password Section",null,null,null,null,null,null,null,"Yes",null,"Check for Updates on Open (Recommended)"]
["Password1!",null,null,null,null,null,null,null,"No",null,"Automatically update the system on startup (Not Currently Available)"]
[0,null,"Install",0,0,null,null,null,null,null,{"$f":"Home!C2","v":"Version 2.000-RC2cd"},null,null,{"$f":"LEFT(K9,9)","v":"Version 2"},{"$f":"MID(K9,11,3)","v":"000"},{"$f":"RIGHT(K9,9)","v":"000-RC2cd"},{"$f":"N9&\"-\"&O9&P9","v":"Version 2-000000-RC2cd"}]
[]
[null,null,null,null,null,null,null,null,null,null,"Major Version",null,{"$f":"N9","v":"Version 2"}]
[null,null,null,null,null,null,null,null,null,null,"Minor Version",null,{"$f":"O9","v":"000"}]
[null,null,null,null,null,null,null,null,null,null,"Build no.",null,{"$f":"P9","v":"000-RC2cd"}]
[]
[]
[]
[]
[]
[]
[]
[]
[]
[]
[]
[]
[]
[]
[]
[]
[]
[]
[]
[]
[null,"© 2024 CritchCorp Computers Ltd"]

{"sheet":"Options","index":5,"n_rows":40,"n_cols":13,"rows_kept":40,"cut":false,"hidden":true,"merged":[]}
[]
[]
[]
[]
[]
["Current Button Settings",null,null,"Shopify"]
["Fixed Order Fee",0.25,null,"Fixed Order Fee",0.25,"Variable Fee",3.9,"Per Item Fixed Fee"]
["VAT on FOF",0,null,"VAT on FOF",0,"Regulatory Fee",null,"Enforced Ad Fee %"]
["Regulatory Fee"]
["Per Item Fixed Fee",null,null,"OnBuy"]
["Low Order Value Threshold",null,null,"Fixed Order Fee",0.25,"Variable Fee",15,"Per Item Fixed Fee"]
["Low Order Value Amount",null,null,"VAT on FOF",1,"Regulatory Fee",null,"Enforced Ad Fee %"]
[]
[null,null,null,"eBay"]
[null,null,null,"Fixed Order Fee",0.3,"Variable Fee",12.9,"Per Item Fixed Fee",null,"Low Order Value Threshold",10,"Top Rated Seller Discount %",10]
[null,null,null,"VAT on FOF",1,"Regulatory Fee",0.35,"Enforced Ad Fee %",null,"Low Order Value Amount",0.1]
[]
[null,null,null,"WooCommerce"]
[null,null,null,"Fixed Order Fee",0.35,"Variable Fee",3.9,"Per Item Fixed Fee"]
[null,null,null,"Vat on FOF",1,"Regulatory Fee",null,"Enforced Ad Fee %"]
[]
[null,null,null,"Amazon"]
[null,null,null,"Fixed Order Fee",0.25,"Variable Fee",null,"Per Item Fixed Fee"]
[null,null,null,"VAT on FOF",1,"Regulatory Fee",null,"Enforced Ad Fee %"]
[]
[null,null,null,"Vinted"]
[null,null,null,"Fixed Order Fee",0.8,"Variable Fee",8,"Per Item Fixed Fee"]
[null,null,null,"VAT on FOF",1,"Regulatory Fee",null,"Enforced Ad Fee %"]
[]
[null,null,null,"Etsy"]
["© 2024 CritchCorp Computers Ltd",null,null,"Fixed Order Fee",0.2,"Variable Fee",10.5,"Per Item Fixed Fee",0.2]
[null,null,null,"VAT on FOF",0,"Regulatory Fee",0.32,"Enforced Ad Fee %",15]
[]
[null,null,null,"TikTok Shop"]
[null,null,null,"Fixed Order Fee",0,"Variable Fee",9,"Per Item Fixed Fee"]
[null,null,null,"VAT on FOF",0,"Regulatory Fee",null,"Enforced Ad Fee %"]
[]
[null,null,null,"Facebook Marketplace"]
[null,null,null,"Fixed Order Fee",0.25,"Variable Fee",3.9,"Per Item Fixed Fee"]
[null,null,null,"VAT on FOF",1,"Regulatory Fee",null,"Enforced Ad Fee %"]

{"sheet":"Calculator","index":6,"n_rows":26,"n_cols":21,"rows_kept":26,"cut":false,"hidden":true,"merged":[[0,16,0,18],[1,2,1,5],[13,12,13,15],[17,12,17,15],[8,12,8,20],[9,12,9,16],[25,1,25,20],[22,12,22,15],[18,14,18,19],[8,5,8,10],[4,19,4,21],[5,19,5,21],[11,2,11,8],[12,2,12,8],[19,3,19,4],[19,5,19,10],[20,9,20,10]]}
[null,null,null,null,null,null,null,null,null,null,null,null,null,null,null,null,{"$f":"Home!C2","v":"Version 2.000-RC2cd"}]
[null,null,"Quick Calculator for market places"]
[null,null,null,null,"Inc VAT","Inc VAT","INC VAT",null,null,null,"No-VAT",null,null,null,null,"0-VAT","Inc-VAT"]
[null,null,"Description","Quantity","Sale Price","Delivery","Total sale","VAT","Platform fee","Promo fee","Charity fee","Foriegn fee","Courier","Unit Cost inc VAT","Other cost","POSTAGE","Total costs","VAT Reclaim","Profit/Loss"]
[null,null,"With VAT",1,1,0,{"$f":"(E5*D5+(F5))","v":1},{"$f":"G5-(G5/B8)","v":0.16666666666666663},{"$f":"IF(Options!B8=0,(G5*(B10/100)+Options!B7)+(G5*(Options!B9)/100)+E10,((G5*(B10/100)+Options!B7+E10)+((G5*(B10/100)+Options!B7+E10+E10)*(B8-1))+((G5*(Options!B9/100))+((G5*(Options!B9/100))*(B8-1)))))","v":0.28899999999999998},{"$f":"IF(Options!B8=0,(G5*(B11/100)), ((G5*(B11/100))+((G5*(B11/100))*(B8-1))))","v":0},{"$f":"(G5*(B13/100))","v":0},{"$f":"IF(Options!B8=0,(G5*(B12/100)), ((G5*(B12/100))+((G5*(B12/100))*(B8-1))))","v":0},{"$f":"M6*B8","v":0},{"$f":"N6*B8","v":0},{"$f":"O6","v":0},{"$f":"P6","v":0},{"$f":"SUM(H5:P5)-N5+(N5*D5)","v":0.45566666666666661},{"$f":"(I7)+(J7)+(L7)+(M7)+(O7)+((N7)*D5)","v":0},{"$f":"SUM((G5-Q5))+R5","v":0.54433333333333334},"Vat Registered - Use this"]
[null,null,"No VAT",{"$f":"D5","v":1},{"$f":"E5/B8","v":0.83333333333333337},{"$f":"F5/B8","v":0},{"$f":"(E6*D6+(F6))","v":0.83333333333333337},{"$f":"G5-(G5/B8)","v":0.16666666666666663},{"$f":"(G5*(B10/100)+Options!B7)","v":0.28899999999999998},{"$f":"(G5*(B11/100))","v":0},{"$f":"(G5*(B13/100))","v":0},{"$f":"(G5*(B12/100))","v":0},0,0,0,0,{"$f":"SUM(I5:P5)-N5+(N5*D5)","v":0.28899999999999998},null,{"$f":"SUM((G6-Q6))","v":0.54433333333333334},"Not VAT registered - Use This"]
[null,null,null,null,null,null,{"$f":"SUM(G5-G6)","v":0.16666666666666663},null,{"$f":"I5-I6","v":0},{"$f":"J5-J6","v":0},null,{"$f":"L5-L6","v":0},{"$f":"M5-M6","v":0},{"$f":"N5-N6","v":0},null,null,{"$f":"Q5-Q6","v":0.16666666666666663},{"$f":"SUM(I7:J7,L7:O7)","v":0}]
[null,{"$f":"(B9/100)+1","v":1.2}]
["VAT",20,null,null,null,"Red in delivery value incates that there is a non zero value",null,null,null,null,null,null,"Mini Calculators"]
["Category Fee %",3.9,"No. of Items",3,{"$f":"SUM(D10*Options!B10)","v":0},null,null,null,null,null,null,null,"Unit Cost VAT calculator"]
["Per Sale Ad Fee %",0,"Enforced",null,null,null,null,null,null,null,null,null,"Qty","Unit Cost","VAT","Total","Unit Total"]
["Foreign Sale %",0,"Mostly for eBay but you use for anything that you need it for (Inc VAT)",null,null,null,null,null,null,null,null,null,1,1,{"$f":"(N12*M12)*(B8-1)","v":0.19999999999999996},{"$f":"(N12*M12)+O12","v":1.2},{"$f":"N12*M12","v":1}]
["Charity % (No VAT)",0,"Mostly for eBay but you use for anything that you need it for (Withoutl VAT)"]
["Shopify",1,null,null,null,null,null,null,null,null,null,null,"Unit Cost VAT Remover"]
["OnBuy",0,null,null,null,null,null,null,null,null,null,null,"Qty","Unit cost","VAT","Total"]
["eBay",0,null,null,null,null,null,null,null,null,null,null,1,1,{"$f":"(N16*M16)-(N16*M16)/B8","v":0.16666666666666663},{"$f":"(N16*M16)/B8","v":0.83333333333333337}]
["WooCommerce",0]
["Amazon",0,null,null,null,null,null,null,null,null,null,null,"Discount Calculator"]
["Vinted",0,null,null,null,null,null,null,null,null,null,null,null,null,"Discount Percentage Value",null,null,null,null,null,"Other"]
["Etsy",0,null,"Margin calculator",null,"When you add a percentage you canot use the same percentage",null,null,null,null,null,null,"Qty","Sale price inc VAT",0.05,0.1,0.15,0.2,0.25,0.3,50]
["TikTok Shop",0,null,"Base Cost","Add %","Total","Amount £","% Available",null,"42.858% = 30%",null,null,1,1,{"$f":"N21-(N21*(5/100))","v":0.95},{"$f":"$N$21-($N$21*(10/100))","v":0.9},{"$f":"$N$21-($N$21*(15/100))","v":0.85},{"$f":"$N$21-($N$21*(20/100))","v":0.8},{"$f":"$N$21-($N$21*(25/100))","v":0.75},{"$f":"$N$21-($N$21*(30/100))","v":0.7},{"$f":"$N$21-($N$21*(U20/100))","v":0.5}]
["Facebook Marketplace",0,null,30,42.857999999999997,{"$f":"D22+(D22*E22/100)","v":42.857399999999998},{"$f":"F22-D22","v":12.857399999999998},{"$f":"(G22/F22)*100","v":30.000419997480009}]
[null,null,null,null,null,null,null,null,null,null,null,null,"Free Shipping Calculator",null,null,null,"Inc VAT where applicable"]
[null,null,null,null,null,null,null,null,null,null,null,null,"Total Spend","Margin % Sacrifice","Amount","P&P Cost","No. Unts Req"]
[null,null,null,null,null,null,null,null,null,null,null,null,1,35,{"$f":"SUM(M25*(N25/100))","v":0.35},5,{"$f":"SUM(P25/O25)","v":14.285714285714286}]
[null,"© 2006 - 2024 CritchCorp Computers Ltd"]

{"sheet":"CostPrices","index":7,"n_rows":5000,"n_cols":46,"rows_kept":1125,"cut":true,"hidden":true,"merged":[[0,5,0,13]],"bounds":{"rows_first":500,"rows_last":125,"rows_between":500,"halvings":2}}
[null,null,null,null,null,"This sheet is being reconstructed. It is intended as a way to keep track of your cost prices and %'s for easy reference. It is may be useful to use it to autofil the calculator. Probably in Version 3.",null,null,null,null,null,null,null,null,"This may become a drop-down list, but not yet","VAT Rate",20,{"$f":"1+Q1/100","v":1.2}]
["Line No.","Supplier/Manufacturer","Short Description","UPC/EAN","SKU","Unit Cost Pice","Unit Cost Price Inc Delivery","Unit Cost plus Cust Shipping","Unit RRP","Unit Weight (Kg)","Unit height (CM)","Unit Width (CM)","Unit Depth (CM)","Shipping Weight (KG)","Shipping box dimentions","Shopify Margin Increase","Shopify Price Inc VAT","Shopify Fee %","Other Costs","OnBuy Margin Increase","OnBuy Price Inc VAT","OnBuy  Category Fee %","OnBuy Boost %","eBay Margin Increase","eBay Price Inc VAT","eBay Variable Fee %","Promoted Listing Simple Fee %","Woo Margin Increase","Woo Price Inc VAT","Woo Payment Processor %","Amazon  Margin Increase","Amazon Price Inc VAT","Amazon Category Fee %","Amazon Ad %","Vinted Margin Increase","Vinted Price Inc VAT","Vinted category %","Etsy Margin Increase","Etsy Price Inc VAT","Etsy Category %","FB Mp Margin Increase","Facebook Marketplace Price Inc VAT","FBM Category %","TikTok Margin Increase","TikTok Shop Price Inc VAT","TTS Fee"]
[1,null,null,null,null,null,null,null,null,null,null,null,null,null,null,null,{"$f":"($G3+($G3*(P3/100)))*$R$1","v":0},null,null,null,{"$f":"($G3+($G3*(T3/100)))*$R$1","v":0},null,null,null,{"$f":"($G3+($G3*(X3/100)))*$R$1","v":0},null,null,null,{"$f":"($G3+($G3*(AB3/100)))*$R$1","v":0},null,null,{"$f":"($G3+($G3*(AE3/100)))*$R$1","v":0},null,null,null,{"$f":"($G3+($G3*(AI3/100)))*$R$1","v":0},null,null,{"$f":"($G3+($G3*(AL3/100)))*$R$1","v":0},null,null,{"$f":"($G3+($G3*(AO3/100)))*$R$1","v":0},null,null,{"$f":"($G3+($G3*(AR3/100)))*$R$1","v":0}]
[{"$f":"A3+1","v":2},null,null,null,null,null,null,null,null,null,null,null,null,null,null,null,0,null,null,null,0,null,null,null,0,null,null,null,0,null,null,0,null,null,null,0,null,null,0,null,null,0,null,null,0]
[{"$f":"A4+1","v":3},null,null,null,null,null,null,null,null,null,null,null,null,null,null,null,0,null,null,null,0,null,null,null,0,null,null,null,0,null,null,0,null,null,null,0,null,null,0,null,null,0,null,null,0]
[4,null,null,null,null,null,null,null,null,null,null,null,null,null,null,null,0,null,null,null,0,null,null,null,0,null,null,null,0,null,null,0,null,null,null,0,null,null,0,null,null,0,null,null,0]
[5,null,null,null,null,null,null,null,null,null,null,null,null,null,null,null,0,null,null,null,0,null,null,null,0,null,null,null,0,null,null,0,null,null,null,0,null,null,0,null,null,0,null,null,0]
[6,null,null,null,null,null,null,null,null,null,null,null,null,null,null,null,0,null,null,null,0,null,null,null,0,null,null,null,0,null,null,0,null,null,null,0,null,null,0,null,null,0,null,null,0]
[7,null,null,null,null,null,null,null,null,null,null,null,null,null,null,null,0,null,null,null,0,null,null,null,0,null,null,null,0,null,null,0,null,null,null,0,null,null,0,null,null,0,null,null,0]
[8,null,null,null,null,null,null,null,null,null,null,null,null,null,null,null,0,null,null,null,0,null,null,null,0,null,null,null,0,null,null,0,null,null,null,0,null,null,0,null,null,0,null,null,0]
[9,null,null,null,null,null,null,null,null,null,null,null,null,null,null,null,0,null,null,null,0,null,null,null,0,null,null,null,0,null,null,0,null,null,null,0,null,null,0,null,null,0,null,null,0]
[10,null,null,null,null,null,null,null,null,null,null,null,null,null,null,null,0,null,null,null,0,null,null,null,0,null,null,null,0,null,null,0,null,null,null,0,null,null,0,null,null,0,null,null,0]
[11,null,null,null,null,null,null,null,null,null,null,null,null,null,null,null,0,null,null,null,0,null,null,null,0,null,null,null,0,null,null,0,null,null,null,0,null,null,0,null,null,0,null,null,0]
[12,null,null,null,null,null,null,null,null,null,null,null,null,null,null,null,0,null,null,null,0,null,null,null,0,null,null,null,0,null,null,0,null,null,null,0,null,null,0,null,null,0,null,null,0]
[13,null,null,null,null,null,null,null,null,null,null,null,null,null,null,null,0,null,null,null,0,null,null,null,0,null,null,null,0,null,null,0,null,null,null,0,null,null,0,null,null,0,null,null,0]
[14,null,null,null,null,null,null,null,null,null,null,null,null,null,null,null,0,null,null,null,0,null,null,null,0,null,null,null,0,null,null,0,null,null,null,0,null,null,0,null,null,0,null,null,0]
[15,null,null,null,null,null,null,null,null,null,null,null,null,null,null,null,0,null,null,null,0,null,null,null,0,null,null,null,0,null,null,0,null,null,null,0,null,null,0,null,null,0,null,null,0]
[16,null,null,null,null,null,null,null,null,null,null,null,null,null,null,null,0,null,null,null,0,null,null,null,0,null,null,null,0,null,null,0,null,null,null,0,null,null,0,null,null,0,null,null,0]
[17,null,null,null,null,null,null,null,null,null,null,null,null,null,null,null,0,null,null,null,0,null,null,null,0,null,null,null,0,null,null,0,null,null,null,0,null,null,0,null,null,0,null,null,0]
[18,null,null,null,null,null,null,null,null,null,null,null,null,null,null,null,0,null,null,null,0,null,null,null,0,null,null,null,0,null,null,0,null,null,null,0,null,null,0,null,null,0,null,null,0]
[19,null,null,null,null,null,null,null,null,null,null,null,null,null,null,null,0,null,null,null,0,null,null,null,0,null,null,null,0,null,null,0,null,null,null,0,null,null,0,null,null,0,null,null,0]
[20,null,null,null,null,null,null,null,null,null,null,null,null,null,null,null,0,null,null,null,0,null,null,null,0,null,null,null,0,null,null,0,null,null,null,0,null,null,0,null,null,0,null,null,0]
[21,null,null,null,null,null,null,null,null,null,null,null,null,null,null,null,0,null,null,null,0,null,null,null,0,null,null,null,0,null,null,0,null,null,null,0,null,null,0,null,null,0,null,null,0]
[22,null,null,null,null,null,null,null,null,null,null,null,null,null,null,null,0,null,null,null,0,null,null,null,0,null,null,null,0,null,null,0,null,null,null,0,null,null,0,null,null,0,null,null,0]
[23,null,null,null,null,null,null,null,null,null,null,null,null,null,null,null,0,null,null,null,0,null,null,null,0,null,null,null,0,null,null,0,null,null,null,0,null,null,0,null,null,0,null,null,0]
[24,null,null,null,null,null,null,null,null,null,null,null,null,null,null,null,0,null,null,null,0,null,null,null,0,null,null,null,0,null,null,0,null,null,null,0,null,null,0,null,null,0,null,null,0]
[25,null,null,null,null,null,null,null,null,null,null,null,null,null,null,null,0,null,null,null,0,null,null,null,0,null,null,null,0,null,null,0,null,null,null,0,null,null,0,null,null,0,null,null,0]
[26,null,null,null,null,null,null,null,null,null,null,null,null,null,null,null,0,null,null,null,0,null,null,null,0,null,null,null,0,null,null,0,null,null,null,0,null,null,0,null,null,0,null,null,0]
[27,null,null,null,null,null,null,null,null,null,null,null,null,null,null,null,0,null,null,null,0,null,null,null,0,null,null,null,0,null,null,0,null,null,null,0,null,null,0,null,null,0,null,null,0]
[28,null,null,null,null,null,null,null,null,null,null,null,null,null,null,null,0,null,null,null,0,null,null,null,0,null,null,null,0,null,null,0,null,null,null,0,null,null,0,null,null,0,null,null,0]
[29,null,null,null,null,null,null,null,null,null,null,null,null,null,null,null,0,null,null,null,0,null,null,null,0,null,null,null,0,null,null,0,null,null,null,0,null,null,0,null,null,0,null,null,0]
[null,null,null,null,null,null,null,null,null,null,null,null,null,null,null,null,0,null,null,null,0,null,null,null,0,null,null,null,0,null,null,0,null,null,null,0,null,null,0,null,null,0,null,null,0]
[null,null,null,null,null,null,null,null,null,null,null,null,null,null,null,null,0,null,null,null,0,null,null,null,0,null,null,null,0,null,null,0,null,null,null,0,null,null,0,null,null,0,null,null,0]
[null,null,null,null,null,null,null,null,null,null,null,null,null,null,null,null,0,null,null,null,0,null,null,null,0,null,null,null,0,null,null,0,null,null,null,0,null,null,0,null,null,0,null,null,0]
[null,null,null,null,null,null,null,null,null,null,null,null,null,null,null,null,0,null,null,null,0,null,null,null,0,null,null,null,0,null,null,0,null,null,null,0,null,null,0,null,null,0,null,null,0]
[null,null,null,null,null,null,null,null,null,null,null,null,null,null,null,null,0,null,null,null,0,null,null,null,0,null,null,null,0,null,null,0,null,null,null,0,null,null,0,null,null,0,null,null,0]
[null,null,null,null,null,null,null,null,null,null,null,null,null,null,null,null,0,null,null,null,0,null,null,null,0,null,null,null,0,null,null,0,null,null,null,0,null,null,0,null,null,0,null,null,0]
[null,null,null,null,null,null,null,null,null,null,null,null,null,null,null,null,0,null,null,null,0,null,null,null,0,null,null,null,0,null,null,0,null,null,null,0,null,null,0,null,null,0,null,null,0]
[null,null,null,null,null,null,null,null,null,null,null,null,null,null,null,null,0,null,null,null,0,null,null,null,0,null,null,null,0,null,null,0,null,null,null,0,null,null,0,null,null,0,null,null,0]
[null,null,null,null,null,null,null,null,null,null,null,null,null,null,null,null,0,null,null,null,0,null,null,null,0,null,null,null,0,null,null,0,null,null,null,0,null,null,0,null,null,0,null,null,0]
[null,null,null,null,null,null,null,null,null,null,null,null,null,null,null,null,0,null,null,null,0,null,null,null,0,null,null,null,0,null,null,0,null,null,null,0,null,null,0,null,null,0,null,null,0]
[null,null,null,null,null,null,null,null,null,null,null,null,null,null,null,null,0,null,null,null,0,null,null,null,0,null,null,null,0,null,null,0,null,null,null,0,null,null,0,null,null,0,null,null,0]
[null,null,null,null,null,null,null,null,null,null,null,null,null,null,null,null,0,null,null,null,0,null,null,null,0,null,null,null,0,null,null,0,null,null,null,0,null,null,0,null,null,0,null,null,0]
[null,null,null,null,null,null,null,null,null,null,null,null,null,null,null,null,0,null,null,null,0,null,null,null,0,null,null,null,0,null,null,0,null,null,null,0,null,null,0,null,null,0,null,null,0]
[null,null,null,null,null,null,null,null,null,null,null,null,null,null,null,null,0,null,null,null,0,null,null,null,0,null,null,null,0,null,null,0,null,null,null,0,null,null,0,null,null,0,null,null,0]
[null,null,null,null,null,null,null,null,null,null,null,null,null,null,null,null,0,null,null,null,0,null,null,null,0,null,null,null,0,null,null,0,null,null,null,0,null,null,0,null,null,0,null,null,0]
[null,null,null,null,null,null,null,null,null,null,null,null,null,null,null,null,0,null,null,null,0,null,null,null,0,null,null,null,0,null,null,0,null,null,null,0,null,null,0,null,null,0,null,null,0]
[null,null,null,null,null,null,null,null,null,null,null,null,null,null,null,null,0,null,null,null,0,null,null,null,0,null,null,null,0,null,null,0,null,null,null,0,null,null,0,null,null,0,null,null,0]
[null,null,null,null,null,null,null,null,null,null,null,null,null,null,null,null,0,null,null,null,0,null,null,null,0,null,null,null,0,null,null,0,null,null,null,0,null,null,0,null,null,0,null,null,0]
[null,null,null,null,null,null,null,null,null,null,null,null,null,null,null,null,0,null,null,null,0,null,null,null,0,null,null,null,0,null,null,0,null,null,null,0,null,null,0,null,null,0,null,null,0]
[null,null,null,null,null,null,null,null,null,null,null,null,null,null,null,null,0,null,null,null,0,null,null,null,0,null,null,null,0,null,null,0,null,null,null,0,null,null,0,null,null,0,null,null,0]
[null,null,null,null,null,null,null,null,null,null,null,null,null,null,null,null,0,null,null,null,0,null,null,null,0,null,null,null,0,null,null,0,null,null,null,0,null,null,0,null,null,0,null,null,0]
[null,null,null,null,null,null,null,null,null,null,null,null,null,null,null,null,0,null,null,null,0,null,null,null,0,null,null,null,0,null,null,0,null,null,null,0,null,null,0,null,null,0,null,null,0]
[null,null,null,null,null,null,null,null,null,null,null,null,null,null,null,null,0,null,null,null,0,null,null,null,0,null,null,null,0,null,null,0,null,null,null,0,null,null,0,null,null,0,null,null,0]
[null,null,null,null,null,null,null,null,null,null,null,null,null,null,null,null,0,null,null,null,0,null,null,null,0,null,null,null,0,null,null,0,null,null,null,0,null,null,0,null,null,0,null,null,0]
[null,null,null,null,null,null,null,null,null,null,null,null,null,null,null,null,0,null,null,null,0,null,null,null,0,null,null,null,0,null,null,0,null,null,null,0,null,null,0,null,null,0,null,null,0]
[null,null,null,null,null,null,null,null,null,null,null,null,null,null,null,null,0,null,null,null,0,null,null,null,0,null,null,null,0,null,null,0,null,null,null,0,null,null,0,null,null,0,null,null,0]
[null,null,null,null,null,null,null,null,null,null,null,null,null,null,null,null,0,null,null,null,0,null,null,null,0,null,null,null,0,null,null,0,null,null,null,0,null,null,0,null,null,0,null,null,0]
[null,null,null,null,null,null,null,null,null,null,null,null,null,null,null,null,0,null,null,null,0,null,null,null,0,null,null,null,0,null,null,0,null,null,null,0,null,null,0,null,null,0,null,null,0]
[null,null,null,null,null,null,null,null,null,null,null,null,null,null,null,null,0,null,null,null,0,null,null,null,0,null,null,null,0,null,null,0,null,null,null,0,null,null,0,null,null,0,null,null,0]
[null,null,null,null,null,null,null,null,null,null,null,null,null,null,null,null,0,null,null,null,0,null,null,null,0,null,null,null,0,null,null,0,null,null,null,0,null,null,0,null,null,0,null,null,0]
[null,null,null,null,null,null,null,null,null,null,null,null,null,null,null,null,0,null,null,null,0,null,null,null,0,null,null,null,0,null,null,0,null,null,null,0,null,null,0,null,null,0,null,null,0]
[null,null,null,null,null,null,null,null,null,null,null,null,null,null,null,null,0,null,null,null,0,null,null,null,0,null,null,null,0,null,null,0,null,null,null,0,null,null,0,null,null,0,null,null,0]
[null,null,null,null,null,null,null,null,null,null,null,null,null,null,null,null,0,null,null,null,0,null,null,null,0,null,null,null,0,null,null,0,null,null,null,0,null,null,0,null,null,0,null,null,0]
[null,null,null,null,null,null,null,null,null,null,null,null,null,null,null,null,0,null,null,null,0,null,null,null,0,null,null,null,0,null,null,0,null,null,null,0,null,null,0,null,null,0,null,null,0]
[null,null,null,null,null,null,null,null,null,null,null,null,null,null,null,null,0,null,null,null,0,null,null,null,0,null,null,null,0,null,null,0,null,null,null,0,null,null,0,null,null,0,null,null,0]
[null,null,null,null,null,null,null,null,null,null,null,null,null,null,null,null,{"$f":"($G67+($G67*(P67/100)))*$R$1","v":0},null,null,null,{"$f":"($G67+($G67*(T67/100)))*$R$1","v":0},null,null,null,{"$f":"($G67+($G67*(X67/100)))*$R$1","v":0},null,null,null,{"$f":"($G67+($G67*(AB67/100)))*$R$1","v":0},null,null,{"$f":"($G67+($G67*(AE67/100)))*$R$1","v":0},null,null,null,{"$f":"($G67+($G67*(AI67/100)))*$R$1","v":0},null,null,{"$f":"($G67+($G67*(AL67/100)))*$R$1","v":0},null,null,{"$f":"($G67+($G67*(AO67/100)))*$R$1","v":0},null,null,{"$f":"($G67+($G67*(AR67/100)))*$R$1","v":0}]
[null,null,null,null,null,null,null,null,null,null,null,null,null,null,null,null,0,null,null,null,0,null,null,null,0,null,null,null,0,null,null,0,null,null,null,0,null,null,0,null,null,0,null,null,0]
[null,null,null,null,null,null,null,null,null,null,null,null,null,null,null,null,0,null,null,null,0,null,null,null,0,null,null,null,0,null,null,0,null,null,null,0,null,null,0,null,null,0,null,null,0]
[null,null,null,null,null,null,null,null,null,null,null,null,null,null,null,null,0,null,null,null,0,null,null,null,0,null,null,null,0,null,null,0,null,null,null,0,null,null,0,null,null,0,null,null,0]
[null,null,null,null,null,null,null,null,null,null,null,null,null,null,null,null,0,null,null,null,0,null,null,null,0,null,null,null,0,null,null,0,null,null,null,0,null,null,0,null,null,0,null,null,0]
[null,null,null,null,null,null,null,null,null,null,null,null,null,null,null,null,0,null,null,null,0,null,null,null,0,null,null,null,0,null,null,0,null,null,null,0,null,null,0,null,null,0,null,null,0]
[null,null,null,null,null,null,null,null,null,null,null,null,null,null,null,null,0,null,null,null,0,null,null,null,0,null,null,null,0,null,null,0,null,null,null,0,null,null,0,null,null,0,null,null,0]
[null,null,null,null,null,null,null,null,null,null,null,null,null,null,null,null,0,null,null,null,0,null,null,null,0,null,null,null,0,null,null,0,null,null,null,0,null,null,0,null,null,0,null,null,0]
[null,null,null,null,null,null,null,null,null,null,null,null,null,null,null,null,0,null,null,null,0,null,null,null,0,null,null,null,0,null,null,0,null,null,null,0,null,null,0,null,null,0,null,null,0]
[null,null,null,null,null,null,null,null,null,null,null,null,null,null,null,null,0,null,null,null,0,null,null,null,0,null,null,null,0,null,null,0,null,null,null,0,null,null,0,null,null,0,null,null,0]
[null,null,null,null,null,null,null,null,null,null,null,null,null,null,null,null,0,null,null,null,0,null,null,null,0,null,null,null,0,null,null,0,null,null,null,0,null,null,0,null,null,0,null,null,0]
[null,null,null,null,null,null,null,null,null,null,null,null,null,null,null,null,0,null,null,null,0,null,null,null,0,null,null,null,0,null,null,0,null,null,null,0,null,null,0,null,null,0,null,null,0]
[null,null,null,null,null,null,null,null,null,null,null,null,null,null,null,null,0,null,null,null,0,null,null,null,0,null,null,null,0,null,null,0,null,null,null,0,null,null,0,null,null,0,null,null,0]
[null,null,null,null,null,null,null,null,null,null,null,null,null,null,null,null,0,null,null,null,0,null,null,null,0,null,null,null,0,null,null,0,null,null,null,0,null,null,0,null,null,0,null,null,0]
[null,null,null,null,null,null,null,null,null,null,null,null,null,null,null,null,0,null,null,null,0,null,null,null,0,null,null,null,0,null,null,0,null,null,null,0,null,null,0,null,null,0,null,null,0]
[null,null,null,null,null,null,null,null,null,null,null,null,null,null,null,null,0,null,null,null,0,null,null,null,0,null,null,null,0,null,null,0,null,null,null,0,null,null,0,null,null,0,null,null,0]
[null,null,null,null,null,null,null,null,null,null,null,null,null,null,null,null,0,null,null,null,0,null,null,null,0,null,null,null,0,null,null,0,null,null,null,0,null,null,0,null,null,0,null,null,0]
[null,null,null,null,null,null,null,null,null,null,null,null,null,null,null,null,0,null,null,null,0,null,null,null,0,null,null,null,0,null,null,0,null,null,null,0,null,null,0,null,null,0,null,null,0]
[null,null,null,null,null,null,null,null,null,null,null,null,null,null,null,null,0,null,null,null,0,null,null,null,0,null,null,null,0,null,null,0,null,null,null,0,null,null,0,null,null,0,null,null,0]
[null,null,null,null,null,null,null,null,null,null,null,null,null,null,null,null,0,null,null,null,0,null,null,null,0,null,null,null,0,null,null,0,null,null,null,0,null,null,0,null,null,0,null,null,0]
[null,null,null,null,null,null,null,null,null,null,null,null,null,null,null,null,0,null,null,null,0,null,null,null,0,null,null,null,0,null,null,0,null,null,null,0,null,null,0,null,null,0,null,null,0]
[null,null,null,null,null,null,null,null,null,null,null,null,null,null,null,null,0,null,null,null,0,null,null,null,0,null,null,null,0,null,null,0,null,null,null,0,null,null,0,null,null,0,null,null,0]
[null,null,null,null,null,null,null,null,null,null,null,null,null,null,null,null,0,null,null,null,0,null,null,null,0,null,null,null,0,null,null,0,null,null,null,0,null,null,0,null,null,0,null,null,0]
[null,null,null,null,null,null,null,null,null,null,null,null,null,null,null,null,0,null,null,null,0,null,null,null,0,null,null,null,0,null,null,0,null,null,null,0,null,null,0,null,null,0,null,null,0]
[null,null,null,null,null,null,null,null,null,null,null,null,null,null,null,null,0,null,null,null,0,null,null,null,0,null,null,null,0,null,null,0,null,null,null,0,null,null,0,null,null,0,null,null,0]
[null,null,null,null,null,null,null,null,null,null,null,null,null,null,null,null,0,null,null,null,0,null,null,null,0,null,null,null,0,null,null,0,null,null,null,0,null,null,0,null,null,0,null,null,0]
[null,null,null,null,null,null,null,null,null,null,null,null,null,null,null,null,0,null,null,null,0,null,null,null,0,null,null,null,0,null,null,0,null,null,null,0,null,null,0,null,null,0,null,null,0]
[null,null,null,null,null,null,null,null,null,null,null,null,null,null,null,null,0,null,null,null,0,null,null,null,0,null,null,null,0,null,null,0,null,null,null,0,null,null,0,null,null,0,null,null,0]
[null,null,null,null,null,null,null,null,null,null,null,null,null,null,null,null,0,null,null,null,0,null,null,null,0,null,null,null,0,null,null,0,null,null,null,0,null,null,0,null,null,0,null,null,0]
[null,null,null,null,null,null,null,null,null,null,null,null,null,null,null,null,0,null,null,null,0,null,null,null,0,null,null,null,0,null,null,0,null,null,null,0,null,null,0,null,null,0,null,null,0]
[null,null,null,null,null,null,null,null,null,null,null,null,null,null,null,null,0,null,null,null,0,null,null,null,0,null,null,null,0,null,null,0,null,null,null,0,null,null,0,null,null,0,null,null,0]
[null,null,null,null,null,null,null,null,null,null,null,null,null,null,null,null,0,null,null,null,0,null,null,null,0,null,null,null,0,null,null,0,null,null,null,0,null,null,0,null,null,0,null,null,0]
[null,null,null,null,null,null,null,null,null,null,null,null,null,null,null,null,0,null,null,null,0,null,null,null,0,null,null,null,0,null,null,0,null,null,null,0,null,null,0,null,null,0,null,null,0]
[null,null,null,null,null,null,null,null,null,null,null,null,null,null,null,null,0,null,null,null,0,null,null,null,0,null,null,null,0,null,null,0,null,null,null,0,null,null,0,null,null,0,null,null,0]
[null,null,null,null,null,null,null,null,null,null,null,null,null,null,null,null,0,null,null,null,0,null,null,null,0,null,null,null,0,null,null,0,null,null,null,0,null,null,0,null,null,0,null,null,0]
[null,null,null,null,null,null,null,null,null,null,null,null,null,null,null,null,0,null,null,null,0,null,null,null,0,null,null,null,0,null,null,0,null,null,null,0,null,null,0,null,null,0,null,null,0]
[null,null,null,null,null,null,null,null,null,null,null,null,null,null,null,null,0,null,null,null,0,null,null,null,0,null,null,null,0,null,null,0,null,null,null,0,null,null,0,null,null,0,null,null,0]
[null,null,null,null,null,null,null,null,null,null,null,null,null,null,null,null,0,null,null,null,0,null,null,null,0,null,null,null,0,null,null,0,null,null,null,0,null,null,0,null,null,0,null,null,0]
[null,null,null,null,null,null,null,null,null,null,null,null,null,null,null,null,0,null,null,null,0,null,null,null,0,null,null,null,0,null,null,0,null,null,null,0,null,null,0,null,null,0,null,null,0]
[null,null,null,null,null,null,null,null,null,null,null,null,null,null,null,null,0,null,null,null,0,null,null,null,0,null,null,null,0,null,null,0,null,null,null,0,null,null,0,null,null,0,null,null,0]
[null,null,null,null,null,null,null,null,null,null,null,null,null,null,null,null,0,null,null,null,0,null,null,null,0,null,null,null,0,null,null,0,null,null,null,0,null,null,0,null,null,0,null,null,0]
[null,null,null,null,null,null,null,null,null,null,null,null,null,null,null,null,0,null,null,null,0,null,null,null,0,null,null,null,0,null,null,0,null,null,null,0,null,null,0,null,null,0,null,null,0]
[null,null,null,null,null,null,null,null,null,null,null,null,null,null,null,null,0,null,null,null,0,null,null,null,0,null,null,null,0,null,null,0,null,null,null,0,null,null,0,null,null,0,null,null,0]
[null,null,null,null,null,null,null,null,null,null,null,null,null,null,null,null,0,null,null,null,0,null,null,null,0,null,null,null,0,null,null,0,null,null,null,0,null,null,0,null,null,0,null,null,0]
[null,null,null,null,null,null,null,null,null,null,null,null,null,null,null,null,0,null,null,null,0,null,null,null,0,null,null,null,0,null,null,0,null,null,null,0,null,null,0,null,null,0,null,null,0]
[null,null,null,null,null,null,null,null,null,null,null,null,null,null,null,null,0,null,null,null,0,null,null,null,0,null,null,null,0,null,null,0,null,null,null,0,null,null,0,null,null,0,null,null,0]
[null,null,null,null,null,null,null,null,null,null,null,null,null,null,null,null,0,null,null,null,0,null,null,null,0,null,null,null,0,null,null,0,null,null,null,0,null,null,0,null,null,0,null,null,0]
[null,null,null,null,null,null,null,null,null,null,null,null,null,null,null,null,0,null,null,null,0,null,null,null,0,null,null,null,0,null,null,0,null,null,null,0,null,null,0,null,null,0,null,null,0]
[null,null,null,null,null,null,null,null,null,null,null,null,null,null,null,null,0,null,null,null,0,null,null,null,0,null,null,null,0,null,null,0,null,null,null,0,null,null,0,null,null,0,null,null,0]
[null,null,null,null,null,null,null,null,null,null,null,null,null,null,null,null,0,null,null,null,0,null,null,null,0,null,null,null,0,null,null,0,null,null,null,0,null,null,0,null,null,0,null,null,0]
[null,null,null,null,null,null,null,null,null,null,null,null,null,null,null,null,0,null,null,null,0,null,null,null,0,null,null,null,0,null,null,0,null,null,null,0,null,null,0,null,null,0,null,null,0]
[null,null,null,null,null,null,null,null,null,null,null,null,null,null,null,null,0,null,null,null,0,null,null,null,0,null,null,null,0,null,null,0,null,null,null,0,null,null,0,null,null,0,null,null,0]
[null,null,null,null,null,null,null,null,null,null,null,null,null,null,null,null,0,null,null,null,0,null,null,null,0,null,null,null,0,null,null,0,null,null,null,0,null,null,0,null,null,0,null,null,0]
[null,null,null,null,null,null,null,null,null,null,null,null,null,null,null,null,0,null,null,null,0,null,null,null,0,null,null,null,0,null,null,0,null,null,null,0,null,null,0,null,null,0,null,null,0]
[null,null,null,null,null,null,null,null,null,null,null,null,null,null,null,null,0,null,null,null,0,null,null,null,0,null,null,null,0,null,null,0,null,null,null,0,null,null,0,null,null,0,null,null,0]
[null,null,null,null,null,null,null,null,null,null,null,null,null,null,null,null,0,null,null,null,0,null,null,null,0,null,null,null,0,null,null,0,null,null,null,0,null,null,0,null,null,0,null,null,0]
[null,null,null,null,null,null,null,null,null,null,null,null,null,null,null,null,0,null,null,null,0,null,null,null,0,null,null,null,0,null,null,0,null,null,null,0,null,null,0,null,null,0,null,null,0]
[null,null,null,null,null,null,null,null,null,null,null,null,null,null,null,null,0,null,null,null,0,null,null,null,0,null,null,null,0,null,null,0,null,null,null,0,null,null,0,null,null,0,null,null,0]
[null,null,null,null,null,null,null,null,null,null,null,null,null,null,null,null,0,null,null,null,0,null,null,null,0,null,null,null,0,null,null,0,null,null,null,0,null,null,0,null,null,0,null,null,0]
[null,null,null,null,null,null,null,null,null,null,null,null,null,null,null,null,0,null,null,null,0,null,null,null,0,null,null,null,0,null,null,0,null,null,null,0,null,null,0,null,null,0,null,null,0]
[null,null,null,null,null,null,null,null,null,null,null,null,null,null,null,null,0,null,null,null,0,null,null,null,0,null,null,null,0,null,null,0,null,null,null,0,null,null,0,null,null,0,null,null,0]
[null,null,null,null,null,null,null,null,null,null,null,null,null,null,null,null,0,null,null,null,0,null,null,null,0,null,null,null,0,null,null,0,null,null,null,0,null,null,0,null,null,0,null,null,0]
[null,null,null,null,null,null,null,null,null,null,null,null,null,null,null,null,0,null,null,null,0,null,null,null,0,null,null,null,0,null,null,0,null,null,null,0,null,null,0,null,null,0,null,null,0]
[null,null,null,null,null,null,null,null,null,null,null,null,null,null,null,null,0,null,null,null,0,null,null,null,0,null,null,null,0,null,null,0,null,null,null,0,null,null,0,null,null,0,null,null,0]
[null,null,null,null,null,null,null,null,null,null,null,null,null,null,null,null,{"$f":"($G131+($G131*(P131/100)))*$R$1","v":0},null,null,null,{"$f":"($G131+($G131*(T131/100)))*$R$1","v":0},null,null,null,{"$f":"($G131+($G131*(X131/100)))*$R$1","v":0},null,null,null,{"$f":"($G131+($G131*(AB131/100)))*$R$1","v":0},null,null,{"$f":"($G131+($G131*(AE131/100)))*$R$1","v":0},null,null,null,{"$f":"($G131+($G131*(AI131/100)))*$R$1","v":0},null,null,{"$f":"($G131+($G131*(AL131/100)))*$R$1","v":0},null,null,{"$f":"($G131+($G131*(AO131/100)))*$R$1","v":0},null,null,{"$f":"($G131+($G131*(AR131/100)))*$R$1","v":0}]
[null,null,null,null,null,null,null,null,null,null,null,null,null,null,null,null,0,null,null,null,0,null,null,null,0,null,null,null,0,null,null,0,null,null,null,0,null,null,0,null,null,0,null,null,0]
[null,null,null,null,null,null,null,null,null,null,null,null,null,null,null,null,0,null,null,null,0,null,null,null,0,null,null,null,0,null,null,0,null,null,null,0,null,null,0,null,null,0,null,null,0]
[null,null,null,null,null,null,null,null,null,null,null,null,null,null,null,null,0,null,null,null,0,null,null,null,0,null,null,null,0,null,null,0,null,null,null,0,null,null,0,null,null,0,null,null,0]
[null,null,null,null,null,null,null,null,null,null,null,null,null,null,null,null,0,null,null,null,0,null,null,null,0,null,null,null,0,null,null,0,null,null,null,0,null,null,0,null,null,0,null,null,0]
[null,null,null,null,null,null,null,null,null,null,null,null,null,null,null,null,0,null,null,null,0,null,null,null,0,null,null,null,0,null,null,0,null,null,null,0,null,null,0,null,null,0,null,null,0]
[null,null,null,null,null,null,null,null,null,null,null,null,null,null,null,null,0,null,null,null,0,null,null,null,0,null,null,null,0,null,null,0,null,null,null,0,null,null,0,null,null,0,null,null,0]
[null,null,null,null,null,null,null,null,null,null,null,null,null,null,null,null,0,null,null,null,0,null,null,null,0,null,null,null,0,null,null,0,null,null,null,0,null,null,0,null,null,0,null,null,0]
[null,null,null,null,null,null,null,null,null,null,null,null,null,null,null,null,0,null,null,null,0,null,null,null,0,null,null,null,0,null,null,0,null,null,null,0,null,null,0,null,null,0,null,null,0]
[null,null,null,null,null,null,null,null,null,null,null,null,null,null,null,null,0,null,null,null,0,null,null,null,0,null,null,null,0,null,null,0,null,null,null,0,null,null,0,null,null,0,null,null,0]
[null,null,null,null,null,null,null,null,null,null,null,null,null,null,null,null,0,null,null,null,0,null,null,null,0,null,null,null,0,null,null,0,null,null,null,0,null,null,0,null,null,0,null,null,0]
[null,null,null,null,null,null,null,null,null,null,null,null,null,null,null,null,0,null,null,null,0,null,null,null,0,null,null,null,0,null,null,0,null,null,null,0,null,null,0,null,null,0,null,null,0]
[null,null,null,null,null,null,null,null,null,null,null,null,null,null,null,null,0,null,null,null,0,null,null,null,0,null,null,null,0,null,null,0,null,null,null,0,null,null,0,null,null,0,null,null,0]
[null,null,null,null,null,null,null,null,null,null,null,null,null,null,null,null,0,null,null,null,0,null,null,null,0,null,null,null,0,null,null,0,null,null,null,0,null,null,0,null,null,0,null,null,0]
[null,null,null,null,null,null,null,null,null,null,null,null,null,null,null,null,0,null,null,null,0,null,null,null,0,null,null,null,0,null,null,0,null,null,null,0,null,null,0,null,null,0,null,null,0]
[null,null,null,null,null,null,null,null,null,null,null,null,null,null,null,null,0,null,null,null,0,null,null,null,0,null,null,null,0,null,null,0,null,null,null,0,null,null,0,null,null,0,null,null,0]
[null,null,null,null,null,null,null,null,null,null,null,null,null,null,null,null,0,null,null,null,0,null,null,null,0,null,null,null,0,null,null,0,null,null,null,0,null,null,0,null,null,0,null,null,0]
[null,null,null,null,null,null,null,null,null,null,null,null,null,null,null,null,0,null,null,null,0,null,null,null,0,null,null,null,0,null,null,0,null,null,null,0,null,null,0,null,null,0,null,null,0]
[null,null,null,null,null,null,null,null,null,null,null,null,null,null,null,null,0,null,null,null,0,null,null,null,0,null,null,null,0,null,null,0,null,null,null,0,null,null,0,null,null,0,null,null,0]
[null,null,null,null,null,null,null,null,null,null,null,null,null,null,null,null,0,null,null,null,0,null,null,null,0,null,null,null,0,null,null,0,null,null,null,0,null,null,0,null,null,0,null,null,0]
[null,null,null,null,null,null,null,null,null,null,null,null,null,null,null,null,0,null,null,null,0,null,null,null,0,null,null,null,0,null,null,0,null,null,null,0,null,null,0,null,null,0,null,null,0]
[null,null,null,null,null,null,null,null,null,null,null,null,null,null,null,null,0,null,null,null,0,null,null,null,0,null,null,null,0,null,null,0,null,null,null,0,null,null,0,null,null,0,null,null,0]
[null,null,null,null,null,null,null,null,null,null,null,null,null,null,null,null,0,null,null,null,0,null,null,null,0,null,null,null,0,null,null,0,null,null,null,0,null,null,0,null,null,0,null,null,0]
[null,null,null,null,null,null,null,null,null,null,null,null,null,null,null,null,0,null,null,null,0,null,null,null,0,null,null,null,0,null,null,0,null,null,null,0,null,null,0,null,null,0,null,null,0]
[null,null,null,null,null,null,null,null,null,null,null,null,null,null,null,null,0,null,null,null,0,null,null,null,0,null,null,null,0,null,null,0,null,null,null,0,null,null,0,null,null,0,null,null,0]
[null,null,null,null,null,null,null,null,null,null,null,null,null,null,null,null,0,null,null,null,0,null,null,null,0,null,null,null,0,null,null,0,null,null,null,0,null,null,0,null,null,0,null,null,0]
[null,null,null,null,null,null,null,null,null,null,null,null,null,null,null,null,0,null,null,null,0,null,null,null,0,null,null,null,0,null,null,0,null,null,null,0,null,null,0,null,null,0,null,null,0]
[null,null,null,null,null,null,null,null,null,null,null,null,null,null,null,null,0,null,null,null,0,null,null,null,0,null,null,null,0,null,null,0,null,null,null,0,null,null,0,null,null,0,null,null,0]
[null,null,null,null,null,null,null,null,null,null,null,null,null,null,null,null,0,null,null,null,0,null,null,null,0,null,null,null,0,null,null,0,null,null,null,0,null,null,0,null,null,0,null,null,0]
[null,null,null,null,null,null,null,null,null,null,null,null,null,null,null,null,0,null,null,null,0,null,null,null,0,null,null,null,0,null,null,0,null,null,null,0,null,null,0,null,null,0,null,null,0]
[null,null,null,null,null,null,null,null,null,null,null,null,null,null,null,null,0,null,null,null,0,null,null,null,0,null,null,null,0,null,null,0,null,null,null,0,null,null,0,null,null,0,null,null,0]
[null,null,null,null,null,null,null,null,null,null,null,null,null,null,null,null,0,null,null,null,0,null,null,null,0,null,null,null,0,null,null,0,null,null,null,0,null,null,0,null,null,0,null,null,0]
[null,null,null,null,null,null,null,null,null,null,null,null,null,null,null,null,0,null,null,null,0,null,null,null,0,null,null,null,0,null,null,0,null,null,null,0,null,null,0,null,null,0,null,null,0]
[null,null,null,null,null,null,null,null,null,null,null,null,null,null,null,null,0,null,null,null,0,null,null,null,0,null,null,null,0,null,null,0,null,null,null,0,null,null,0,null,null,0,null,null,0]
[null,null,null,null,null,null,null,null,null,null,null,null,null,null,null,null,0,null,null,null,0,null,null,null,0,null,null,null,0,null,null,0,null,null,null,0,null,null,0,null,null,0,null,null,0]
[null,null,null,null,null,null,null,null,null,null,null,null,null,null,null,null,0,null,null,null,0,null,null,null,0,null,null,null,0,null,null,0,null,null,null,0,null,null,0,null,null,0,null,null,0]
[null,null,null,null,null,null,null,null,null,null,null,null,null,null,null,null,0,null,null,null,0,null,null,null,0,null,null,null,0,null,null,0,null,null,null,0,null,null,0,null,null,0,null,null,0]
[null,null,null,null,null,null,null,null,null,null,null,null,null,null,null,null,0,null,null,null,0,null,null,null,0,null,null,null,0,null,null,0,null,null,null,0,null,null,0,null,null,0,null,null,0]
[null,null,null,null,null,null,null,null,null,null,null,null,null,null,null,null,0,null,null,null,0,null,null,null,0,null,null,null,0,null,null,0,null,null,null,0,null,null,0,null,null,0,null,null,0]
[null,null,null,null,null,null,null,null,null,null,null,null,null,null,null,null,0,null,null,null,0,null,null,null,0,null,null,null,0,null,null,0,null,null,null,0,null,null,0,null,null,0,null,null,0]
[null,null,null,null,null,null,null,null,null,null,null,null,null,null,null,null,0,null,null,null,0,null,null,null,0,null,null,null,0,null,null,0,null,null,null,0,null,null,0,null,null,0,null,null,0]
[null,null,null,null,null,null,null,null,null,null,null,null,null,null,null,null,0,null,null,null,0,null,null,null,0,null,null,null,0,null,null,0,null,null,null,0,null,null,0,null,null,0,null,null,0]
[null,null,null,null,null,null,null,null,null,null,null,null,null,null,null,null,0,null,null,null,0,null,null,null,0,null,null,null,0,null,null,0,null,null,null,0,null,null,0,null,null,0,null,null,0]
[null,null,null,null,null,null,null,null,null,null,null,null,null,null,null,null,0,null,null,null,0,null,null,null,0,null,null,null,0,null,null,0,null,null,null,0,null,null,0,null,null,0,null,null,0]
[null,null,null,null,null,null,null,null,null,null,null,null,null,null,null,null,0,null,null,null,0,null,null,null,0,null,null,null,0,null,null,0,null,null,null,0,null,null,0,null,null,0,null,null,0]
[null,null,null,null,null,null,null,null,null,null,null,null,null,null,null,null,0,null,null,null,0,null,null,null,0,null,null,null,0,null,null,0,null,null,null,0,null,null,0,null,null,0,null,null,0]
[null,null,null,null,null,null,null,null,null,null,null,null,null,null,null,null,0,null,null,null,0,null,null,null,0,null,null,null,0,null,null,0,null,null,null,0,null,null,0,null,null,0,null,null,0]
[null,null,null,null,null,null,null,null,null,null,null,null,null,null,null,null,0,null,null,null,0,null,null,null,0,null,null,null,0,null,null,0,null,null,null,0,null,null,0,null,null,0,null,null,0]
[null,null,null,null,null,null,null,null,null,null,null,null,null,null,null,null,0,null,null,null,0,null,null,null,0,null,null,null,0,null,null,0,null,null,null,0,null,null,0,null,null,0,null,null,0]
[null,null,null,null,null,null,null,null,null,null,null,null,null,null,null,null,0,null,null,null,0,null,null,null,0,null,null,null,0,null,null,0,null,null,null,0,null,null,0,null,null,0,null,null,0]
[null,null,null,null,null,null,null,null,null,null,null,null,null,null,null,null,0,null,null,null,0,null,null,null,0,null,null,null,0,null,null,0,null,null,null,0,null,null,0,null,null,0,null,null,0]
[null,null,null,null,null,null,null,null,null,null,null,null,null,null,null,null,0,null,null,null,0,null,null,null,0,null,null,null,0,null,null,0,null,null,null,0,null,null,0,null,null,0,null,null,0]
[null,null,null,null,null,null,null,null,null,null,null,null,null,null,null,null,0,null,null,null,0,null,null,null,0,null,null,null,0,null,null,0,null,null,null,0,null,null,0,null,null,0,null,null,0]
[null,null,null,null,null,null,null,null,null,null,null,null,null,null,null,null,0,null,null,null,0,null,null,null,0,null,null,null,0,null,null,0,null,null,null,0,null,null,0,null,null,0,null,null,0]
[null,null,null,null,null,null,null,null,null,null,null,null,null,null,null,null,0,null,null,null,0,null,null,null,0,null,null,null,0,null,null,0,null,null,null,0,null,null,0,null,null,0,null,null,0]
[null,null,null,null,null,null,null,null,null,null,null,null,null,null,null,null,0,null,null,null,0,null,null,null,0,null,null,null,0,null,null,0,null,null,null,0,null,null,0,null,null,0,null,null,0]
[null,null,null,null,null,null,null,null,null,null,null,null,null,null,null,null,0,null,null,null,0,null,null,null,0,null,null,null,0,null,null,0,null,null,null,0,null,null,0,null,null,0,null,null,0]
[null,null,null,null,null,null,null,null,null,null,null,null,null,null,null,null,0,null,null,null,0,null,null,null,0,null,null,null,0,null,null,0,null,null,null,0,null,null,0,null,null,0,null,null,0]
[null,null,null,null,null,null,null,null,null,null,null,null,null,null,null,null,0,null,null,null,0,null,null,null,0,null,null,null,0,null,null,0,null,null,null,0,null,null,0,null,null,0,null,null,0]
[null,null,null,null,null,null,null,null,null,null,null,null,null,null,null,null,0,null,null,null,0,null,null,null,0,null,null,null,0,null,null,0,null,null,null,0,null,null,0,null,null,0,null,null,0]
[null,null,null,null,null,null,null,null,null,null,null,null,null,null,null,null,0,null,null,null,0,null,null,null,0,null,null,null,0,null,null,0,null,null,null,0,null,null,0,null,null,0,null,null,0]
[null,null,null,null,null,null,null,null,null,null,null,null,null,null,null,null,0,null,null,null,0,null,null,null,0,null,null,null,0,null,null,0,null,null,null,0,null,null,0,null,null,0,null,null,0]
[null,null,null,null,null,null,null,null,null,null,null,null,null,null,null,null,0,null,null,null,0,null,null,null,0,null,null,null,0,null,null,0,null,null,null,0,null,null,0,null,null,0,null,null,0]
[null,null,null,null,null,null,null,null,null,null,null,null,null,null,null,null,0,null,null,null,0,null,null,null,0,null,null,null,0,null,null,0,null,null,null,0,null,null,0,null,null,0,null,null,0]
[null,null,null,null,null,null,null,null,null,null,null,null,null,null,null,null,{"$f":"($G195+($G195*(P195/100)))*$R$1","v":0},null,null,null,{"$f":"($G195+($G195*(T195/100)))*$R$1","v":0},null,null,null,{"$f":"($G195+($G195*(X195/100)))*$R$1","v":0},null,null,null,{"$f":"($G195+($G195*(AB195/100)))*$R$1","v":0},null,null,{"$f":"($G195+($G195*(AE195/100)))*$R$1","v":0},null,null,null,{"$f":"($G195+($G195*(AI195/100)))*$R$1","v":0},null,null,{"$f":"($G195+($G195*(AL195/100)))*$R$1","v":0},null,null,{"$f":"($G195+($G195*(AO195/100)))*$R$1","v":0},null,null,{"$f":"($G195+($G195*(AR195/100)))*$R$1","v":0}]
[null,null,null,null,null,null,null,null,null,null,null,null,null,null,null,null,0,null,null,null,0,null,null,null,0,null,null,null,0,null,null,0,null,null,null,0,null,null,0,null,null,0,null,null,0]
[null,null,null,null,null,null,null,null,null,null,null,null,null,null,null,null,0,null,null,null,0,null,null,null,0,null,null,null,0,null,null,0,null,null,null,0,null,null,0,null,null,0,null,null,0]
[null,null,null,null,null,null,null,null,null,null,null,null,null,null,null,null,0,null,null,null,0,null,null,null,0,null,null,null,0,null,null,0,null,null,null,0,null,null,0,null,null,0,null,null,0]
[null,null,null,null,null,null,null,null,null,null,null,null,null,null,null,null,0,null,null,null,0,null,null,null,0,null,null,null,0,null,null,0,null,null,null,0,null,null,0,null,null,0,null,null,0]
[null,null,null,null,null,null,null,null,null,null,null,null,null,null,null,null,0,null,null,null,0,null,null,null,0,null,null,null,0,null,null,0,null,null,null,0,null,null,0,null,null,0,null,null,0]
[null,null,null,null,null,null,null,null,null,null,null,null,null,null,null,null,0,null,null,null,0,null,null,null,0,null,null,null,0,null,null,0,null,null,null,0,null,null,0,null,null,0,null,null,0]
[null,null,null,null,null,null,null,null,null,null,null,null,null,null,null,null,0,null,null,null,0,null,null,null,0,null,null,null,0,null,null,0,null,null,null,0,null,null,0,null,null,0,null,null,0]
[null,null,null,null,null,null,null,null,null,null,null,null,null,null,null,null,0,null,null,null,0,null,null,null,0,null,null,null,0,null,null,0,null,null,null,0,null,null,0,null,null,0,null,null,0]
[null,null,null,null,null,null,null,null,null,null,null,null,null,null,null,null,0,null,null,null,0,null,null,null,0,null,null,null,0,null,null,0,null,null,null,0,null,null,0,null,null,0,null,null,0]
[null,null,null,null,null,null,null,null,null,null,null,null,null,null,null,null,0,null,null,null,0,null,null,null,0,null,null,null,0,null,null,0,null,null,null,0,null,null,0,null,null,0,null,null,0]
[null,null,null,null,null,null,null,null,null,null,null,null,null,null,null,null,0,null,null,null,0,null,null,null,0,null,null,null,0,null,null,0,null,null,null,0,null,null,0,null,null,0,null,null,0]
[null,null,null,null,null,null,null,null,null,null,null,null,null,null,null,null,0,null,null,null,0,null,null,null,0,null,null,null,0,null,null,0,null,null,null,0,null,null,0,null,null,0,null,null,0]
[null,null,null,null,null,null,null,null,null,null,null,null,null,null,null,null,0,null,null,null,0,null,null,null,0,null,null,null,0,null,null,0,null,null,null,0,null,null,0,null,null,0,null,null,0]
[null,null,null,null,null,null,null,null,null,null,null,null,null,null,null,null,0,null,null,null,0,null,null,null,0,null,null,null,0,null,null,0,null,null,null,0,null,null,0,null,null,0,null,null,0]
[null,null,null,null,null,null,null,null,null,null,null,null,null,null,null,null,0,null,null,null,0,null,null,null,0,null,null,null,0,null,null,0,null,null,null,0,null,null,0,null,null,0,null,null,0]
[null,null,null,null,null,null,null,null,null,null,null,null,null,null,null,null,0,null,null,null,0,null,null,null,0,null,null,null,0,null,null,0,null,null,null,0,null,null,0,null,null,0,null,null,0]
[null,null,null,null,null,null,null,null,null,null,null,null,null,null,null,null,0,null,null,null,0,null,null,null,0,null,null,null,0,null,null,0,null,null,null,0,null,null,0,null,null,0,null,null,0]
[null,null,null,null,null,null,null,null,null,null,null,null,null,null,null,null,0,null,null,null,0,null,null,null,0,null,null,null,0,null,null,0,null,null,null,0,null,null,0,null,null,0,null,null,0]
[null,null,null,null,null,null,null,null,null,null,null,null,null,null,null,null,0,null,null,null,0,null,null,null,0,null,null,null,0,null,null,0,null,null,null,0,null,null,0,null,null,0,null,null,0]
[null,null,null,null,null,null,null,null,null,null,null,null,null,null,null,null,0,null,null,null,0,null,null,null,0,null,null,null,0,null,null,0,null,null,null,0,null,null,0,null,null,0,null,null,0]
[null,null,null,null,null,null,null,null,null,null,null,null,null,null,null,null,0,null,null,null,0,null,null,null,0,null,null,null,0,null,null,0,null,null,null,0,null,null,0,null,null,0,null,null,0]
[null,null,null,null,null,null,null,null,null,null,null,null,null,null,null,null,0,null,null,null,0,null,null,null,0,null,null,null,0,null,null,0,null,null,null,0,null,null,0,null,null,0,null,null,0]
[null,null,null,null,null,null,null,null,null,null,null,null,null,null,null,null,0,null,null,null,0,null,null,null,0,null,null,null,0,null,null,0,null,null,null,0,null,null,0,null,null,0,null,null,0]
[null,null,null,null,null,null,null,null,null,null,null,null,null,null,null,null,0,null,null,null,0,null,null,null,0,null,null,null,0,null,null,0,null,null,null,0,null,null,0,null,null,0,null,null,0]
[null,null,null,null,null,null,null,null,null,null,null,null,null,null,null,null,0,null,null,null,0,null,null,null,0,null,null,null,0,null,null,0,null,null,null,0,null,null,0,null,null,0,null,null,0]
[null,null,null,null,null,null,null,null,null,null,null,null,null,null,null,null,0,null,null,null,0,null,null,null,0,null,null,null,0,null,null,0,null,null,null,0,null,null,0,null,null,0,null,null,0]
[null,null,null,null,null,null,null,null,null,null,null,null,null,null,null,null,0,null,null,null,0,null,null,null,0,null,null,null,0,null,null,0,null,null,null,0,null,null,0,null,null,0,null,null,0]
[null,null,null,null,null,null,null,null,null,null,null,null,null,null,null,null,0,null,null,null,0,null,null,null,0,null,null,null,0,null,null,0,null,null,null,0,null,null,0,null,null,0,null,null,0]
[null,null,null,null,null,null,null,null,null,null,null,null,null,null,null,null,0,null,null,null,0,null,null,null,0,null,null,null,0,null,null,0,null,null,null,0,null,null,0,null,null,0,null,null,0]
[null,null,null,null,null,null,null,null,null,null,null,null,null,null,null,null,0,null,null,null,0,null,null,null,0,null,null,null,0,null,null,0,null,null,null,0,null,null,0,null,null,0,null,null,0]
[null,null,null,null,null,null,null,null,null,null,null,null,null,null,null,null,0,null,null,null,0,null,null,null,0,null,null,null,0,null,null,0,null,null,null,0,null,null,0,null,null,0,null,null,0]
[null,null,null,null,null,null,null,null,null,null,null,null,null,null,null,null,0,null,null,null,0,null,null,null,0,null,null,null,0,null,null,0,null,null,null,0,null,null,0,null,null,0,null,null,0]
[null,null,null,null,null,null,null,null,null,null,null,null,null,null,null,null,0,null,null,null,0,null,null,null,0,null,null,null,0,null,null,0,null,null,null,0,null,null,0,null,null,0,null,null,0]
[null,null,null,null,null,null,null,null,null,null,null,null,null,null,null,null,0,null,null,null,0,null,null,null,0,null,null,null,0,null,null,0,null,null,null,0,null,null,0,null,null,0,null,null,0]
[null,null,null,null,null,null,null,null,null,null,null,null,null,null,null,null,0,null,null,null,0,null,null,null,0,null,null,null,0,null,null,0,null,null,null,0,null,null,0,null,null,0,null,null,0]
[null,null,null,null,null,null,null,null,null,null,null,null,null,null,null,null,0,null,null,null,0,null,null,null,0,null,null,null,0,null,null,0,null,null,null,0,null,null,0,null,null,0,null,null,0]
[null,null,null,null,null,null,null,null,null,null,null,null,null,null,null,null,0,null,null,null,0,null,null,null,0,null,null,null,0,null,null,0,null,null,null,0,null,null,0,null,null,0,null,null,0]
[null,null,null,null,null,null,null,null,null,null,null,null,null,null,null,null,0,null,null,null,0,null,null,null,0,null,null,null,0,null,null,0,null,null,null,0,null,null,0,null,null,0,null,null,0]
[null,null,null,null,null,null,null,null,null,null,null,null,null,null,null,null,0,null,null,null,0,null,null,null,0,null,null,null,0,null,null,0,null,null,null,0,null,null,0,null,null,0,null,null,0]
[null,null,null,null,null,null,null,null,null,null,null,null,null,null,null,null,0,null,null,null,0,null,null,null,0,null,null,null,0,null,null,0,null,null,null,0,null,null,0,null,null,0,null,null,0]
[null,null,null,null,null,null,null,null,null,null,null,null,null,null,null,null,0,null,null,null,0,null,null,null,0,null,null,null,0,null,null,0,null,null,null,0,null,null,0,null,null,0,null,null,0]
[null,null,null,null,null,null,null,null,null,null,null,null,null,null,null,null,0,null,null,null,0,null,null,null,0,null,null,null,0,null,null,0,null,null,null,0,null,null,0,null,null,0,null,null,0]
[null,null,null,null,null,null,null,null,null,null,null,null,null,null,null,null,0,null,null,null,0,null,null,null,0,null,null,null,0,null,null,0,null,null,null,0,null,null,0,null,null,0,null,null,0]
[null,null,null,null,null,null,null,null,null,null,null,null,null,null,null,null,0,null,null,null,0,null,null,null,0,null,null,null,0,null,null,0,null,null,null,0,null,null,0,null,null,0,null,null,0]
[null,null,null,null,null,null,null,null,null,null,null,null,null,null,null,null,0,null,null,null,0,null,null,null,0,null,null,null,0,null,null,0,null,null,null,0,null,null,0,null,null,0,null,null,0]
[null,null,null,null,null,null,null,null,null,null,null,null,null,null,null,null,0,null,null,null,0,null,null,null,0,null,null,null,0,null,null,0,null,null,null,0,null,null,0,null,null,0,null,null,0]
[null,null,null,null,null,null,null,null,null,null,null,null,null,null,null,null,0,null,null,null,0,null,null,null,0,null,null,null,0,null,null,0,null,null,null,0,null,null,0,null,null,0,null,null,0]
[null,null,null,null,null,null,null,null,null,null,null,null,null,null,null,null,0,null,null,null,0,null,null,null,0,null,null,null,0,null,null,0,null,null,null,0,null,null,0,null,null,0,null,null,0]
[null,null,null,null,null,null,null,null,null,null,null,null,null,null,null,null,0,null,null,null,0,null,null,null,0,null,null,null,0,null,null,0,null,null,null,0,null,null,0,null,null,0,null,null,0]
[null,null,null,null,null,null,null,null,null,null,null,null,null,null,null,null,0,null,null,null,0,null,null,null,0,null,null,null,0,null,null,0,null,null,null,0,null,null,0,null,null,0,null,null,0]
[null,null,null,null,null,null,null,null,null,null,null,null,null,null,null,null,0,null,null,null,0,null,null,null,0,null,null,null,0,null,null,0,null,null,null,0,null,null,0,null,null,0,null,null,0]
[null,null,null,null,null,null,null,null,null,null,null,null,null,null,null,null,0,null,null,null,0,null,null,null,0,null,null,null,0,null,null,0,null,null,null,0,null,null,0,null,null,0,null,null,0]
[null,null,null,null,null,null,null,null,null,null,null,null,null,null,null,null,0,null,null,null,0,null,null,null,0,null,null,null,0,null,null,0,null,null,null,0,null,null,0,null,null,0,null,null,0]
[null,null,null,null,null,null,null,null,null,null,null,null,null,null,null,null,0,null,null,null,0,null,null,null,0,null,null,null,0,null,null,0,null,null,null,0,null,null,0,null,null,0,null,null,0]
[null,null,null,null,null,null,null,null,null,null,null,null,null,null,null,null,0,null,null,null,0,null,null,null,0,null,null,null,0,null,null,0,null,null,null,0,null,null,0,null,null,0,null,null,0]
[null,null,null,null,null,null,null,null,null,null,null,null,null,null,null,null,0,null,null,null,0,null,null,null,0,null,null,null,0,null,null,0,null,null,null,0,null,null,0,null,null,0,null,null,0]
[null,null,null,null,null,null,null,null,null,null,null,null,null,null,null,null,0,null,null,null,0,null,null,null,0,null,null,null,0,null,null,0,null,null,null,0,null,null,0,null,null,0,null,null,0]
[null,null,null,null,null,null,null,null,null,null,null,null,null,null,null,null,0,null,null,null,0,null,null,null,0,null,null,null,0,null,null,0,null,null,null,0,null,null,0,null,null,0,null,null,0]
[null,null,null,null,null,null,null,null,null,null,null,null,null,null,null,null,0,null,null,null,0,null,null,null,0,null,null,null,0,null,null,0,null,null,null,0,null,null,0,null,null,0,null,null,0]
[null,null,null,null,null,null,null,null,null,null,null,null,null,null,null,null,0,null,null,null,0,null,null,null,0,null,null,null,0,null,null,0,null,null,null,0,null,null,0,null,null,0,null,null,0]
[null,null,null,null,null,null,null,null,null,null,null,null,null,null,null,null,0,null,null,null,0,null,null,null,0,null,null,null,0,null,null,0,null,null,null,0,null,null,0,null,null,0,null,null,0]
[null,null,null,null,null,null,null,null,null,null,null,null,null,null,null,null,0,null,null,null,0,null,null,null,0,null,null,null,0,null,null,0,null,null,null,0,null,null,0,null,null,0,null,null,0]
[null,null,null,null,null,null,null,null,null,null,null,null,null,null,null,null,0,null,null,null,0,null,null,null,0,null,null,null,0,null,null,0,null,null,null,0,null,null,0,null,null,0,null,null,0]
[null,null,null,null,null,null,null,null,null,null,null,null,null,null,null,null,{"$f":"($G259+($G259*(P259/100)))*$R$1","v":0},null,null,null,{"$f":"($G259+($G259*(T259/100)))*$R$1","v":0},null,null,null,{"$f":"($G259+($G259*(X259/100)))*$R$1","v":0},null,null,null,{"$f":"($G259+($G259*(AB259/100)))*$R$1","v":0},null,null,{"$f":"($G259+($G259*(AE259/100)))*$R$1","v":0},null,null,null,{"$f":"($G259+($G259*(AI259/100)))*$R$1","v":0},null,null,{"$f":"($G259+($G259*(AL259/100)))*$R$1","v":0},null,null,{"$f":"($G259+($G259*(AO259/100)))*$R$1","v":0},null,null,{"$f":"($G259+($G259*(AR259/100)))*$R$1","v":0}]
[null,null,null,null,null,null,null,null,null,null,null,null,null,null,null,null,0,null,null,null,0,null,null,null,0,null,null,null,0,null,null,0,null,null,null,0,null,null,0,null,null,0,null,null,0]
[null,null,null,null,null,null,null,null,null,null,null,null,null,null,null,null,0,null,null,null,0,null,null,null,0,null,null,null,0,null,null,0,null,null,null,0,null,null,0,null,null,0,null,null,0]
[null,null,null,null,null,null,null,null,null,null,null,null,null,null,null,null,0,null,null,null,0,null,null,null,0,null,null,null,0,null,null,0,null,null,null,0,null,null,0,null,null,0,null,null,0]
[null,null,null,null,null,null,null,null,null,null,null,null,null,null,null,null,0,null,null,null,0,null,null,null,0,null,null,null,0,null,null,0,null,null,null,0,null,null,0,null,null,0,null,null,0]
[null,null,null,null,null,null,null,null,null,null,null,null,null,null,null,null,0,null,null,null,0,null,null,null,0,null,null,null,0,null,null,0,null,null,null,0,null,null,0,null,null,0,null,null,0]
[null,null,null,null,null,null,null,null,null,null,null,null,null,null,null,null,0,null,null,null,0,null,null,null,0,null,null,null,0,null,null,0,null,null,null,0,null,null,0,null,null,0,null,null,0]
[null,null,null,null,null,null,null,null,null,null,null,null,null,null,null,null,0,null,null,null,0,null,null,null,0,null,null,null,0,null,null,0,null,null,null,0,null,null,0,null,null,0,null,null,0]
[null,null,null,null,null,null,null,null,null,null,null,null,null,null,null,null,0,null,null,null,0,null,null,null,0,null,null,null,0,null,null,0,null,null,null,0,null,null,0,null,null,0,null,null,0]
[null,null,null,null,null,null,null,null,null,null,null,null,null,null,null,null,0,null,null,null,0,null,null,null,0,null,null,null,0,null,null,0,null,null,null,0,null,null,0,null,null,0,null,null,0]
[null,null,null,null,null,null,null,null,null,null,null,null,null,null,null,null,0,null,null,null,0,null,null,null,0,null,null,null,0,null,null,0,null,null,null,0,null,null,0,null,null,0,null,null,0]
[null,null,null,null,null,null,null,null,null,null,null,null,null,null,null,null,0,null,null,null,0,null,null,null,0,null,null,null,0,null,null,0,null,null,null,0,null,null,0,null,null,0,null,null,0]
[null,null,null,null,null,null,null,null,null,null,null,null,null,null,null,null,0,null,null,null,0,null,null,null,0,null,null,null,0,null,null,0,null,null,null,0,null,null,0,null,null,0,null,null,0]
[null,null,null,null,null,null,null,null,null,null,null,null,null,null,null,null,0,null,null,null,0,null,null,null,0,null,null,null,0,null,null,0,null,null,null,0,null,null,0,null,null,0,null,null,0]
[null,null,null,null,null,null,null,null,null,null,null,null,null,null,null,null,0,null,null,null,0,null,null,null,0,null,null,null,0,null,null,0,null,null,null,0,null,null,0,null,null,0,null,null,0]
[null,null,null,null,null,null,null,null,null,null,null,null,null,null,null,null,0,null,null,null,0,null,null,null,0,null,null,null,0,null,null,0,null,null,null,0,null,null,0,null,null,0,null,null,0]
[null,null,null,null,null,null,null,null,null,null,null,null,null,null,null,null,0,null,null,null,0,null,null,null,0,null,null,null,0,null,null,0,null,null,null,0,null,null,0,null,null,0,null,null,0]
[null,null,null,null,null,null,null,null,null,null,null,null,null,null,null,null,0,null,null,null,0,null,null,null,0,null,null,null,0,null,null,0,null,null,null,0,null,null,0,null,null,0,null,null,0]
[null,null,null,null,null,null,null,null,null,null,null,null,null,null,null,null,0,null,null,null,0,null,null,null,0,null,null,null,0,null,null,0,null,null,null,0,null,null,0,null,null,0,null,null,0]
[null,null,null,null,null,null,null,null,null,null,null,null,null,null,null,null,0,null,null,null,0,null,null,null,0,null,null,null,0,null,null,0,null,null,null,0,null,null,0,null,null,0,null,null,0]
[null,null,null,null,null,null,null,null,null,null,null,null,null,null,null,null,0,null,null,null,0,null,null,null,0,null,null,null,0,null,null,0,null,null,null,0,null,null,0,null,null,0,null,null,0]
[null,null,null,null,null,null,null,null,null,null,null,null,null,null,null,null,0,null,null,null,0,null,null,null,0,null,null,null,0,null,null,0,null,null,null,0,null,null,0,null,null,0,null,null,0]
[null,null,null,null,null,null,null,null,null,null,null,null,null,null,null,null,0,null,null,null,0,null,null,null,0,null,null,null,0,null,null,0,null,null,null,0,null,null,0,null,null,0,null,null,0]
[null,null,null,null,null,null,null,null,null,null,null,null,null,null,null,null,0,null,null,null,0,null,null,null,0,null,null,null,0,null,null,0,null,null,null,0,null,null,0,null,null,0,null,null,0]
[null,null,null,null,null,null,null,null,null,null,null,null,null,null,null,null,0,null,null,null,0,null,null,null,0,null,null,null,0,null,null,0,null,null,null,0,null,null,0,null,null,0,null,null,0]
[null,null,null,null,null,null,null,null,null,null,null,null,null,null,null,null,0,null,null,null,0,null,null,null,0,null,null,null,0,null,null,0,null,null,null,0,null,null,0,null,null,0,null,null,0]
[null,null,null,null,null,null,null,null,null,null,null,null,null,null,null,null,0,null,null,null,0,null,null,null,0,null,null,null,0,null,null,0,null,null,null,0,null,null,0,null,null,0,null,null,0]
[null,null,null,null,null,null,null,null,null,null,null,null,null,null,null,null,0,null,null,null,0,null,null,null,0,null,null,null,0,null,null,0,null,null,null,0,null,null,0,null,null,0,null,null,0]
[null,null,null,null,null,null,null,null,null,null,null,null,null,null,null,null,0,null,null,null,0,null,null,null,0,null,null,null,0,null,null,0,null,null,null,0,null,null,0,null,null,0,null,null,0]
[null,null,null,null,null,null,null,null,null,null,null,null,null,null,null,null,0,null,null,null,0,null,null,null,0,null,null,null,0,null,null,0,null,null,null,0,null,null,0,null,null,0,null,null,0]
[null,null,null,null,null,null,null,null,null,null,null,null,null,null,null,null,0,null,null,null,0,null,null,null,0,null,null,null,0,null,null,0,null,null,null,0,null,null,0,null,null,0,null,null,0]
[null,null,null,null,null,null,null,null,null,null,null,null,null,null,null,null,0,null,null,null,0,null,null,null,0,null,null,null,0,null,null,0,null,null,null,0,null,null,0,null,null,0,null,null,0]
[null,null,null,null,null,null,null,null,null,null,null,null,null,null,null,null,0,null,null,null,0,null,null,null,0,null,null,null,0,null,null,0,null,null,null,0,null,null,0,null,null,0,null,null,0]
[null,null,null,null,null,null,null,null,null,null,null,null,null,null,null,null,0,null,null,null,0,null,null,null,0,null,null,null,0,null,null,0,null,null,null,0,null,null,0,null,null,0,null,null,0]
[null,null,null,null,null,null,null,null,null,null,null,null,null,null,null,null,0,null,null,null,0,null,null,null,0,null,null,null,0,null,null,0,null,null,null,0,null,null,0,null,null,0,null,null,0]
[null,null,null,null,null,null,null,null,null,null,null,null,null,null,null,null,0,null,null,null,0,null,null,null,0,null,null,null,0,null,null,0,null,null,null,0,null,null,0,null,null,0,null,null,0]
[null,null,null,null,null,null,null,null,null,null,null,null,null,null,null,null,0,null,null,null,0,null,null,null,0,null,null,null,0,null,null,0,null,null,null,0,null,null,0,null,null,0,null,null,0]
[null,null,null,null,null,null,null,null,null,null,null,null,null,null,null,null,0,null,null,null,0,null,null,null,0,null,null,null,0,null,null,0,null,null,null,0,null,null,0,null,null,0,null,null,0]
[null,null,null,null,null,null,null,null,null,null,null,null,null,null,null,null,0,null,null,null,0,null,null,null,0,null,null,null,0,null,null,0,null,null,null,0,null,null,0,null,null,0,null,null,0]
[null,null,null,null,null,null,null,null,null,null,null,null,null,null,null,null,0,null,null,null,0,null,null,null,0,null,null,null,0,null,null,0,null,null,null,0,null,null,0,null,null,0,null,null,0]
[null,null,null,null,null,null,null,null,null,null,null,null,null,null,null,null,0,null,null,null,0,null,null,null,0,null,null,null,0,null,null,0,null,null,null,0,null,null,0,null,null,0,null,null,0]
[null,null,null,null,null,null,null,null,null,null,null,null,null,null,null,null,0,null,null,null,0,null,null,null,0,null,null,null,0,null,null,0,null,null,null,0,null,null,0,null,null,0,null,null,0]
[null,null,null,null,null,null,null,null,null,null,null,null,null,null,null,null,0,null,null,null,0,null,null,null,0,null,null,null,0,null,null,0,null,null,null,0,null,null,0,null,null,0,null,null,0]
[null,null,null,null,null,null,null,null,null,null,null,null,null,null,null,null,0,null,null,null,0,null,null,null,0,null,null,null,0,null,null,0,null,null,null,0,null,null,0,null,null,0,null,null,0]
[null,null,null,null,null,null,null,null,null,null,null,null,null,null,null,null,0,null,null,null,0,null,null,null,0,null,null,null,0,null,null,0,null,null,null,0,null,null,0,null,null,0,null,null,0]
[null,null,null,null,null,null,null,null,null,null,null,null,null,null,null,null,0,null,null,null,0,null,null,null,0,null,null,null,0,null,null,0,null,null,null,0,null,null,0,null,null,0,null,null,0]
[null,null,null,null,null,null,null,null,null,null,null,null,null,null,null,null,0,null,null,null,0,null,null,null,0,null,null,null,0,null,null,0,null,null,null,0,null,null,0,null,null,0,null,null,0]
[null,null,null,null,null,null,null,null,null,null,null,null,null,null,null,null,0,null,null,null,0,null,null,null,0,null,null,null,0,null,null,0,null,null,null,0,null,null,0,null,null,0,null,null,0]
[null,null,null,null,null,null,null,null,null,null,null,null,null,null,null,null,0,null,null,null,0,null,null,null,0,null,null,null,0,null,null,0,null,null,null,0,null,null,0,null,null,0,null,null,0]
[null,null,null,null,null,null,null,null,null,null,null,null,null,null,null,null,0,null,null,null,0,null,null,null,0,null,null,null,0,null,null,0,null,null,null,0,null,null,0,null,null,0,null,null,0]
[null,null,null,null,null,null,null,null,null,null,null,null,null,null,null,null,0,null,null,null,0,null,null,null,0,null,null,null,0,null,null,0,null,null,null,0,null,null,0,null,null,0,null,null,0]
[null,null,null,null,null,null,null,null,null,null,null,null,null,null,null,null,0,null,null,null,0,null,null,null,0,null,null,null,0,null,null,0,null,null,null,0,null,null,0,null,null,0,null,null,0]
[null,null,null,null,null,null,null,null,null,null,null,null,null,null,null,null,0,null,null,null,0,null,null,null,0,null,null,null,0,null,null,0,null,null,null,0,null,null,0,null,null,0,null,null,0]
[null,null,null,null,null,null,null,null,null,null,null,null,null,null,null,null,0,null,null,null,0,null,null,null,0,null,null,null,0,null,null,0,null,null,null,0,null,null,0,null,null,0,null,null,0]
[null,null,null,null,null,null,null,null,null,null,null,null,null,null,null,null,0,null,null,null,0,null,null,null,0,null,null,null,0,null,null,0,null,null,null,0,null,null,0,null,null,0,null,null,0]
[null,null,null,null,null,null,null,null,null,null,null,null,null,null,null,null,0,null,null,null,0,null,null,null,0,null,null,null,0,null,null,0,null,null,null,0,null,null,0,null,null,0,null,null,0]
[null,null,null,null,null,null,null,null,null,null,null,null,null,null,null,null,0,null,null,null,0,null,null,null,0,null,null,null,0,null,null,0,null,null,null,0,null,null,0,null,null,0,null,null,0]
[null,null,null,null,null,null,null,null,null,null,null,null,null,null,null,null,0,null,null,null,0,null,null,null,0,null,null,null,0,null,null,0,null,null,null,0,null,null,0,null,null,0,null,null,0]
[null,null,null,null,null,null,null,null,null,null,null,null,null,null,null,null,0,null,null,null,0,null,null,null,0,null,null,null,0,null,null,0,null,null,null,0,null,null,0,null,null,0,null,null,0]
[null,null,null,null,null,null,null,null,null,null,null,null,null,null,null,null,0,null,null,null,0,null,null,null,0,null,null,null,0,null,null,0,null,null,null,0,null,null,0,null,null,0,null,null,0]
[null,null,null,null,null,null,null,null,null,null,null,null,null,null,null,null,0,null,null,null,0,null,null,null,0,null,null,null,0,null,null,0,null,null,null,0,null,null,0,null,null,0,null,null,0]
[null,null,null,null,null,null,null,null,null,null,null,null,null,null,null,null,0,null,null,null,0,null,null,null,0,null,null,null,0,null,null,0,null,null,null,0,null,null,0,null,null,0,null,null,0]
[null,null,null,null,null,null,null,null,null,null,null,null,null,null,null,null,0,null,null,null,0,null,null,null,0,null,null,null,0,null,null,0,null,null,null,0,null,null,0,null,null,0,null,null,0]
[null,null,null,null,null,null,null,null,null,null,null,null,null,null,null,null,0,null,null,null,0,null,null,null,0,null,null,null,0,null,null,0,null,null,null,0,null,null,0,null,null,0,null,null,0]
[null,null,null,null,null,null,null,null,null,null,null,null,null,null,null,null,{"$f":"($G323+($G323*(P323/100)))*$R$1","v":0},null,null,null,{"$f":"($G323+($G323*(T323/100)))*$R$1","v":0},null,null,null,{"$f":"($G323+($G323*(X323/100)))*$R$1","v":0},null,null,null,{"$f":"($G323+($G323*(AB323/100)))*$R$1","v":0},null,null,{"$f":"($G323+($G323*(AE323/100)))*$R$1","v":0},null,null,null,{"$f":"($G323+($G323*(AI323/100)))*$R$1","v":0},null,null,{"$f":"($G323+($G323*(AL323/100)))*$R$1","v":0},null,null,{"$f":"($G323+($G323*(AO323/100)))*$R$1","v":0},null,null,{"$f":"($G323+($G323*(AR323/100)))*$R$1","v":0}]
[null,null,null,null,null,null,null,null,null,null,null,null,null,null,null,null,0,null,null,null,0,null,null,null,0,null,null,null,0,null,null,0,null,null,null,0,null,null,0,null,null,0,null,null,0]
[null,null,null,null,null,null,null,null,null,null,null,null,null,null,null,null,0,null,null,null,0,null,null,null,0,null,null,null,0,null,null,0,null,null,null,0,null,null,0,null,null,0,null,null,0]
[null,null,null,null,null,null,null,null,null,null,null,null,null,null,null,null,0,null,null,null,0,null,null,null,0,null,null,null,0,null,null,0,null,null,null,0,null,null,0,null,null,0,null,null,0]
[null,null,null,null,null,null,null,null,null,null,null,null,null,null,null,null,0,null,null,null,0,null,null,null,0,null,null,null,0,null,null,0,null,null,null,0,null,null,0,null,null,0,null,null,0]
[null,null,null,null,null,null,null,null,null,null,null,null,null,null,null,null,0,null,null,null,0,null,null,null,0,null,null,null,0,null,null,0,null,null,null,0,null,null,0,null,null,0,null,null,0]
[null,null,null,null,null,null,null,null,null,null,null,null,null,null,null,null,0,null,null,null,0,null,null,null,0,null,null,null,0,null,null,0,null,null,null,0,null,null,0,null,null,0,null,null,0]
[null,null,null,null,null,null,null,null,null,null,null,null,null,null,null,null,0,null,null,null,0,null,null,null,0,null,null,null,0,null,null,0,null,null,null,0,null,null,0,null,null,0,null,null,0]
[null,null,null,null,null,null,null,null,null,null,null,null,null,null,null,null,0,null,null,null,0,null,null,null,0,null,null,null,0,null,null,0,null,null,null,0,null,null,0,null,null,0,null,null,0]
[null,null,null,null,null,null,null,null,null,null,null,null,null,null,null,null,0,null,null,null,0,null,null,null,0,null,null,null,0,null,null,0,null,null,null,0,null,null,0,null,null,0,null,null,0]
[null,null,null,null,null,null,null,null,null,null,null,null,null,null,null,null,0,null,null,null,0,null,null,null,0,null,null,null,0,null,null,0,null,null,null,0,null,null,0,null,null,0,null,null,0]
[null,null,null,null,null,null,null,null,null,null,null,null,null,null,null,null,0,null,null,null,0,null,null,null,0,null,null,null,0,null,null,0,null,null,null,0,null,null,0,null,null,0,null,null,0]
[null,null,null,null,null,null,null,null,null,null,null,null,null,null,null,null,0,null,null,null,0,null,null,null,0,null,null,null,0,null,null,0,null,null,null,0,null,null,0,null,null,0,null,null,0]
[null,null,null,null,null,null,null,null,null,null,null,null,null,null,null,null,0,null,null,null,0,null,null,null,0,null,null,null,0,null,null,0,null,null,null,0,null,null,0,null,null,0,null,null,0]
[null,null,null,null,null,null,null,null,null,null,null,null,null,null,null,null,0,null,null,null,0,null,null,null,0,null,null,null,0,null,null,0,null,null,null,0,null,null,0,null,null,0,null,null,0]
[null,null,null,null,null,null,null,null,null,null,null,null,null,null,null,null,0,null,null,null,0,null,null,null,0,null,null,null,0,null,null,0,null,null,null,0,null,null,0,null,null,0,null,null,0]
[null,null,null,null,null,null,null,null,null,null,null,null,null,null,null,null,0,null,null,null,0,null,null,null,0,null,null,null,0,null,null,0,null,null,null,0,null,null,0,null,null,0,null,null,0]
[null,null,null,null,null,null,null,null,null,null,null,null,null,null,null,null,0,null,null,null,0,null,null,null,0,null,null,null,0,null,null,0,null,null,null,0,null,null,0,null,null,0,null,null,0]
[null,null,null,null,null,null,null,null,null,null,null,null,null,null,null,null,0,null,null,null,0,null,null,null,0,null,null,null,0,null,null,0,null,null,null,0,null,null,0,null,null,0,null,null,0]
[null,null,null,null,null,null,null,null,null,null,null,null,null,null,null,null,0,null,null,null,0,null,null,null,0,null,null,null,0,null,null,0,null,null,null,0,null,null,0,null,null,0,null,null,0]
[null,null,null,null,null,null,null,null,null,null,null,null,null,null,null,null,0,null,null,null,0,null,null,null,0,null,null,null,0,null,null,0,null,null,null,0,null,null,0,null,null,0,null,null,0]
[null,null,null,null,null,null,null,null,null,null,null,null,null,null,null,null,0,null,null,null,0,null,null,null,0,null,null,null,0,null,null,0,null,null,null,0,null,null,0,null,null,0,null,null,0]
[null,null,null,null,null,null,null,null,null,null,null,null,null,null,null,null,0,null,null,null,0,null,null,null,0,null,null,null,0,null,null,0,null,null,null,0,null,null,0,null,null,0,null,null,0]
[null,null,null,null,null,null,null,null,null,null,null,null,null,null,null,null,0,null,null,null,0,null,null,null,0,null,null,null,0,null,null,0,null,null,null,0,null,null,0,null,null,0,null,null,0]
[null,null,null,null,null,null,null,null,null,null,null,null,null,null,null,null,0,null,null,null,0,null,null,null,0,null,null,null,0,null,null,0,null,null,null,0,null,null,0,null,null,0,null,null,0]
[null,null,null,null,null,null,null,null,null,null,null,null,null,null,null,null,0,null,null,null,0,null,null,null,0,null,null,null,0,null,null,0,null,null,null,0,null,null,0,null,null,0,null,null,0]
[null,null,null,null,null,null,null,null,null,null,null,null,null,null,null,null,0,null,null,null,0,null,null,null,0,null,null,null,0,null,null,0,null,null,null,0,null,null,0,null,null,0,null,null,0]
[null,null,null,null,null,null,null,null,null,null,null,null,null,null,null,null,0,null,null,null,0,null,null,null,0,null,null,null,0,null,null,0,null,null,null,0,null,null,0,null,null,0,null,null,0]
[null,null,null,null,null,null,null,null,null,null,null,null,null,null,null,null,0,null,null,null,0,null,null,null,0,null,null,null,0,null,null,0,null,null,null,0,null,null,0,null,null,0,null,null,0]
[null,null,null,null,null,null,null,null,null,null,null,null,null,null,null,null,0,null,null,null,0,null,null,null,0,null,null,null,0,null,null,0,null,null,null,0,null,null,0,null,null,0,null,null,0]
[null,null,null,null,null,null,null,null,null,null,null,null,null,null,null,null,0,null,null,null,0,null,null,null,0,null,null,null,0,null,null,0,null,null,null,0,null,null,0,null,null,0,null,null,0]
[null,null,null,null,null,null,null,null,null,null,null,null,null,null,null,null,0,null,null,null,0,null,null,null,0,null,null,null,0,null,null,0,null,null,null,0,null,null,0,null,null,0,null,null,0]
[null,null,null,null,null,null,null,null,null,null,null,null,null,null,null,null,0,null,null,null,0,null,null,null,0,null,null,null,0,null,null,0,null,null,null,0,null,null,0,null,null,0,null,null,0]
[null,null,null,null,null,null,null,null,null,null,null,null,null,null,null,null,0,null,null,null,0,null,null,null,0,null,null,null,0,null,null,0,null,null,null,0,null,null,0,null,null,0,null,null,0]
[null,null,null,null,null,null,null,null,null,null,null,null,null,null,null,null,0,null,null,null,0,null,null,null,0,null,null,null,0,null,null,0,null,null,null,0,null,null,0,null,null,0,null,null,0]
[null,null,null,null,null,null,null,null,null,null,null,null,null,null,null,null,0,null,null,null,0,null,null,null,0,null,null,null,0,null,null,0,null,null,null,0,null,null,0,null,null,0,null,null,0]
[null,null,null,null,null,null,null,null,null,null,null,null,null,null,null,null,0,null,null,null,0,null,null,null,0,null,null,null,0,null,null,0,null,null,null,0,null,null,0,null,null,0,null,null,0]
[null,null,null,null,null,null,null,null,null,null,null,null,null,null,null,null,0,null,null,null,0,null,null,null,0,null,null,null,0,null,null,0,null,null,null,0,null,null,0,null,null,0,null,null,0]
[null,null,null,null,null,null,null,null,null,null,null,null,null,null,null,null,0,null,null,null,0,null,null,null,0,null,null,null,0,null,null,0,null,null,null,0,null,null,0,null,null,0,null,null,0]
[null,null,null,null,null,null,null,null,null,null,null,null,null,null,null,null,0,null,null,null,0,null,null,null,0,null,null,null,0,null,null,0,null,null,null,0,null,null,0,null,null,0,null,null,0]
[null,null,null,null,null,null,null,null,null,null,null,null,null,null,null,null,0,null,null,null,0,null,null,null,0,null,null,null,0,null,null,0,null,null,null,0,null,null,0,null,null,0,null,null,0]
[null,null,null,null,null,null,null,null,null,null,null,null,null,null,null,null,0,null,null,null,0,null,null,null,0,null,null,null,0,null,null,0,null,null,null,0,null,null,0,null,null,0,null,null,0]
[null,null,null,null,null,null,null,null,null,null,null,null,null,null,null,null,0,null,null,null,0,null,null,null,0,null,null,null,0,null,null,0,null,null,null,0,null,null,0,null,null,0,null,null,0]
[null,null,null,null,null,null,null,null,null,null,null,null,null,null,null,null,0,null,null,null,0,null,null,null,0,null,null,null,0,null,null,0,null,null,null,0,null,null,0,null,null,0,null,null,0]
[null,null,null,null,null,null,null,null,null,null,null,null,null,null,null,null,0,null,null,null,0,null,null,null,0,null,null,null,0,null,null,0,null,null,null,0,null,null,0,null,null,0,null,null,0]
[null,null,null,null,null,null,null,null,null,null,null,null,null,null,null,null,0,null,null,null,0,null,null,null,0,null,null,null,0,null,null,0,null,null,null,0,null,null,0,null,null,0,null,null,0]
[null,null,null,null,null,null,null,null,null,null,null,null,null,null,null,null,0,null,null,null,0,null,null,null,0,null,null,null,0,null,null,0,null,null,null,0,null,null,0,null,null,0,null,null,0]
[null,null,null,null,null,null,null,null,null,null,null,null,null,null,null,null,0,null,null,null,0,null,null,null,0,null,null,null,0,null,null,0,null,null,null,0,null,null,0,null,null,0,null,null,0]
[null,null,null,null,null,null,null,null,null,null,null,null,null,null,null,null,0,null,null,null,0,null,null,null,0,null,null,null,0,null,null,0,null,null,null,0,null,null,0,null,null,0,null,null,0]
[null,null,null,null,null,null,null,null,null,null,null,null,null,null,null,null,0,null,null,null,0,null,null,null,0,null,null,null,0,null,null,0,null,null,null,0,null,null,0,null,null,0,null,null,0]
[null,null,null,null,null,null,null,null,null,null,null,null,null,null,null,null,0,null,null,null,0,null,null,null,0,null,null,null,0,null,null,0,null,null,null,0,null,null,0,null,null,0,null,null,0]
[null,null,null,null,null,null,null,null,null,null,null,null,null,null,null,null,0,null,null,null,0,null,null,null,0,null,null,null,0,null,null,0,null,null,null,0,null,null,0,null,null,0,null,null,0]
[null,null,null,null,null,null,null,null,null,null,null,null,null,null,null,null,0,null,null,null,0,null,null,null,0,null,null,null,0,null,null,0,null,null,null,0,null,null,0,null,null,0,null,null,0]
[null,null,null,null,null,null,null,null,null,null,null,null,null,null,null,null,0,null,null,null,0,null,null,null,0,null,null,null,0,null,null,0,null,null,null,0,null,null,0,null,null,0,null,null,0]
[null,null,null,null,null,null,null,null,null,null,null,null,null,null,null,null,0,null,null,null,0,null,null,null,0,null,null,null,0,null,null,0,null,null,null,0,null,null,0,null,null,0,null,null,0]
[null,null,null,null,null,null,null,null,null,null,null,null,null,null,null,null,0,null,null,null,0,null,null,null,0,null,null,null,0,null,null,0,null,null,null,0,null,null,0,null,null,0,null,null,0]
[null,null,null,null,null,null,null,null,null,null,null,null,null,null,null,null,0,null,null,null,0,null,null,null,0,null,null,null,0,null,null,0,null,null,null,0,null,null,0,null,null,0,null,null,0]
[null,null,null,null,null,null,null,null,null,null,null,null,null,null,null,null,0,null,null,null,0,null,null,null,0,null,null,null,0,null,null,0,null,null,null,0,null,null,0,null,null,0,null,null,0]
[null,null,null,null,null,null,null,null,null,null,null,null,null,null,null,null,0,null,null,null,0,null,null,null,0,null,null,null,0,null,null,0,null,null,null,0,null,null,0,null,null,0,null,null,0]
[null,null,null,null,null,null,null,null,null,null,null,null,null,null,null,null,0,null,null,null,0,null,null,null,0,null,null,null,0,null,null,0,null,null,null,0,null,null,0,null,null,0,null,null,0]
[null,null,null,null,null,null,null,null,null,null,null,null,null,null,null,null,0,null,null,null,0,null,null,null,0,null,null,null,0,null,null,0,null,null,null,0,null,null,0,null,null,0,null,null,0]
[null,null,null,null,null,null,null,null,null,null,null,null,null,null,null,null,0,null,null,null,0,null,null,null,0,null,null,null,0,null,null,0,null,null,null,0,null,null,0,null,null,0,null,null,0]
[null,null,null,null,null,null,null,null,null,null,null,null,null,null,null,null,0,null,null,null,0,null,null,null,0,null,null,null,0,null,null,0,null,null,null,0,null,null,0,null,null,0,null,null,0]
[null,null,null,null,null,null,null,null,null,null,null,null,null,null,null,null,0,null,null,null,0,null,null,null,0,null,null,null,0,null,null,0,null,null,null,0,null,null,0,null,null,0,null,null,0]
[null,null,null,null,null,null,null,null,null,null,null,null,null,null,null,null,{"$f":"($G387+($G387*(P387/100)))*$R$1","v":0},null,null,null,{"$f":"($G387+($G387*(T387/100)))*$R$1","v":0},null,null,null,{"$f":"($G387+($G387*(X387/100)))*$R$1","v":0},null,null,null,{"$f":"($G387+($G387*(AB387/100)))*$R$1","v":0},null,null,{"$f":"($G387+($G387*(AE387/100)))*$R$1","v":0},null,null,null,{"$f":"($G387+($G387*(AI387/100)))*$R$1","v":0},null,null,{"$f":"($G387+($G387*(AL387/100)))*$R$1","v":0},null,null,{"$f":"($G387+($G387*(AO387/100)))*$R$1","v":0},null,null,{"$f":"($G387+($G387*(AR387/100)))*$R$1","v":0}]
[null,null,null,null,null,null,null,null,null,null,null,null,null,null,null,null,0,null,null,null,0,null,null,null,0,null,null,null,0,null,null,0,null,null,null,0,null,null,0,null,null,0,null,null,0]
[null,null,null,null,null,null,null,null,null,null,null,null,null,null,null,null,0,null,null,null,0,null,null,null,0,null,null,null,0,null,null,0,null,null,null,0,null,null,0,null,null,0,null,null,0]
[null,null,null,null,null,null,null,null,null,null,null,null,null,null,null,null,0,null,null,null,0,null,null,null,0,null,null,null,0,null,null,0,null,null,null,0,null,null,0,null,null,0,null,null,0]
[null,null,null,null,null,null,null,null,null,null,null,null,null,null,null,null,0,null,null,null,0,null,null,null,0,null,null,null,0,null,null,0,null,null,null,0,null,null,0,null,null,0,null,null,0]
[null,null,null,null,null,null,null,null,null,null,null,null,null,null,null,null,0,null,null,null,0,null,null,null,0,null,null,null,0,null,null,0,null,null,null,0,null,null,0,null,null,0,null,null,0]
[null,null,null,null,null,null,null,null,null,null,null,null,null,null,null,null,0,null,null,null,0,null,null,null,0,null,null,null,0,null,null,0,null,null,null,0,null,null,0,null,null,0,null,null,0]
[null,null,null,null,null,null,null,null,null,null,null,null,null,null,null,null,0,null,null,null,0,null,null,null,0,null,null,null,0,null,null,0,null,null,null,0,null,null,0,null,null,0,null,null,0]
[null,null,null,null,null,null,null,null,null,null,null,null,null,null,null,null,0,null,null,null,0,null,null,null,0,null,null,null,0,null,null,0,null,null,null,0,null,null,0,null,null,0,null,null,0]
[null,null,null,null,null,null,null,null,null,null,null,null,null,null,null,null,0,null,null,null,0,null,null,null,0,null,null,null,0,null,null,0,null,null,null,0,null,null,0,null,null,0,null,null,0]
[null,null,null,null,null,null,null,null,null,null,null,null,null,null,null,null,0,null,null,null,0,null,null,null,0,null,null,null,0,null,null,0,null,null,null,0,null,null,0,null,null,0,null,null,0]
[null,null,null,null,null,null,null,null,null,null,null,null,null,null,null,null,0,null,null,null,0,null,null,null,0,null,null,null,0,null,null,0,null,null,null,0,null,null,0,null,null,0,null,null,0]
[null,null,null,null,null,null,null,null,null,null,null,null,null,null,null,null,0,null,null,null,0,null,null,null,0,null,null,null,0,null,null,0,null,null,null,0,null,null,0,null,null,0,null,null,0]
[null,null,null,null,null,null,null,null,null,null,null,null,null,null,null,null,0,null,null,null,0,null,null,null,0,null,null,null,0,null,null,0,null,null,null,0,null,null,0,null,null,0,null,null,0]
[null,null,null,null,null,null,null,null,null,null,null,null,null,null,null,null,0,null,null,null,0,null,null,null,0,null,null,null,0,null,null,0,null,null,null,0,null,null,0,null,null,0,null,null,0]
[null,null,null,null,null,null,null,null,null,null,null,null,null,null,null,null,0,null,null,null,0,null,null,null,0,null,null,null,0,null,null,0,null,null,null,0,null,null,0,null,null,0,null,null,0]
[null,null,null,null,null,null,null,null,null,null,null,null,null,null,null,null,0,null,null,null,0,null,null,null,0,null,null,null,0,null,null,0,null,null,null,0,null,null,0,null,null,0,null,null,0]
[null,null,null,null,null,null,null,null,null,null,null,null,null,null,null,null,0,null,null,null,0,null,null,null,0,null,null,null,0,null,null,0,null,null,null,0,null,null,0,null,null,0,null,null,0]
[null,null,null,null,null,null,null,null,null,null,null,null,null,null,null,null,0,null,null,null,0,null,null,null,0,null,null,null,0,null,null,0,null,null,null,0,null,null,0,null,null,0,null,null,0]
[null,null,null,null,null,null,null,null,null,null,null,null,null,null,null,null,0,null,null,null,0,null,null,null,0,null,null,null,0,null,null,0,null,null,null,0,null,null,0,null,null,0,null,null,0]
[null,null,null,null,null,null,null,null,null,null,null,null,null,null,null,null,0,null,null,null,0,null,null,null,0,null,null,null,0,null,null,0,null,null,null,0,null,null,0,null,null,0,null,null,0]
[null,null,null,null,null,null,null,null,null,null,null,null,null,null,null,null,0,null,null,null,0,null,null,null,0,null,null,null,0,null,null,0,null,null,null,0,null,null,0,null,null,0,null,null,0]
[null,null,null,null,null,null,null,null,null,null,null,null,null,null,null,null,0,null,null,null,0,null,null,null,0,null,null,null,0,null,null,0,null,null,null,0,null,null,0,null,null,0,null,null,0]
[null,null,null,null,null,null,null,null,null,null,null,null,null,null,null,null,0,null,null,null,0,null,null,null,0,null,null,null,0,null,null,0,null,null,null,0,null,null,0,null,null,0,null,null,0]
[null,null,null,null,null,null,null,null,null,null,null,null,null,null,null,null,0,null,null,null,0,null,null,null,0,null,null,null,0,null,null,0,null,null,null,0,null,null,0,null,null,0,null,null,0]
[null,null,null,null,null,null,null,null,null,null,null,null,null,null,null,null,0,null,null,null,0,null,null,null,0,null,null,null,0,null,null,0,null,null,null,0,null,null,0,null,null,0,null,null,0]
[null,null,null,null,null,null,null,null,null,null,null,null,null,null,null,null,0,null,null,null,0,null,null,null,0,null,null,null,0,null,null,0,null,null,null,0,null,null,0,null,null,0,null,null,0]
[null,null,null,null,null,null,null,null,null,null,null,null,null,null,null,null,0,null,null,null,0,null,null,null,0,null,null,null,0,null,null,0,null,null,null,0,null,null,0,null,null,0,null,null,0]
[null,null,null,null,null,null,null,null,null,null,null,null,null,null,null,null,0,null,null,null,0,null,null,null,0,null,null,null,0,null,null,0,null,null,null,0,null,null,0,null,null,0,null,null,0]
[null,null,null,null,null,null,null,null,null,null,null,null,null,null,null,null,0,null,null,null,0,null,null,null,0,null,null,null,0,null,null,0,null,null,null,0,null,null,0,null,null,0,null,null,0]
[null,null,null,null,null,null,null,null,null,null,null,null,null,null,null,null,0,null,null,null,0,null,null,null,0,null,null,null,0,null,null,0,null,null,null,0,null,null,0,null,null,0,null,null,0]
[null,null,null,null,null,null,null,null,null,null,null,null,null,null,null,null,0,null,null,null,0,null,null,null,0,null,null,null,0,null,null,0,null,null,null,0,null,null,0,null,null,0,null,null,0]
[null,null,null,null,null,null,null,null,null,null,null,null,null,null,null,null,0,null,null,null,0,null,null,null,0,null,null,null,0,null,null,0,null,null,null,0,null,null,0,null,null,0,null,null,0]
[null,null,null,null,null,null,null,null,null,null,null,null,null,null,null,null,0,null,null,null,0,null,null,null,0,null,null,null,0,null,null,0,null,null,null,0,null,null,0,null,null,0,null,null,0]
[null,null,null,null,null,null,null,null,null,null,null,null,null,null,null,null,0,null,null,null,0,null,null,null,0,null,null,null,0,null,null,0,null,null,null,0,null,null,0,null,null,0,null,null,0]
[null,null,null,null,null,null,null,null,null,null,null,null,null,null,null,null,0,null,null,null,0,null,null,null,0,null,null,null,0,null,null,0,null,null,null,0,null,null,0,null,null,0,null,null,0]
[null,null,null,null,null,null,null,null,null,null,null,null,null,null,null,null,0,null,null,null,0,null,null,null,0,null,null,null,0,null,null,0,null,null,null,0,null,null,0,null,null,0,null,null,0]
[null,null,null,null,null,null,null,null,null,null,null,null,null,null,null,null,0,null,null,null,0,null,null,null,0,null,null,null,0,null,null,0,null,null,null,0,null,null,0,null,null,0,null,null,0]
[null,null,null,null,null,null,null,null,null,null,null,null,null,null,null,null,0,null,null,null,0,null,null,null,0,null,null,null,0,null,null,0,null,null,null,0,null,null,0,null,null,0,null,null,0]
[null,null,null,null,null,null,null,null,null,null,null,null,null,null,null,null,0,null,null,null,0,null,null,null,0,null,null,null,0,null,null,0,null,null,null,0,null,null,0,null,null,0,null,null,0]
[null,null,null,null,null,null,null,null,null,null,null,null,null,null,null,null,0,null,null,null,0,null,null,null,0,null,null,null,0,null,null,0,null,null,null,0,null,null,0,null,null,0,null,null,0]
[null,null,null,null,null,null,null,null,null,null,null,null,null,null,null,null,0,null,null,null,0,null,null,null,0,null,null,null,0,null,null,0,null,null,null,0,null,null,0,null,null,0,null,null,0]
[null,null,null,null,null,null,null,null,null,null,null,null,null,null,null,null,0,null,null,null,0,null,null,null,0,null,null,null,0,null,null,0,null,null,null,0,null,null,0,null,null,0,null,null,0]
[null,null,null,null,null,null,null,null,null,null,null,null,null,null,null,null,0,null,null,null,0,null,null,null,0,null,null,null,0,null,null,0,null,null,null,0,null,null,0,null,null,0,null,null,0]
[null,null,null,null,null,null,null,null,null,null,null,null,null,null,null,null,0,null,null,null,0,null,null,null,0,null,null,null,0,null,null,0,null,null,null,0,null,null,0,null,null,0,null,null,0]
[null,null,null,null,null,null,null,null,null,null,null,null,null,null,null,null,0,null,null,null,0,null,null,null,0,null,null,null,0,null,null,0,null,null,null,0,null,null,0,null,null,0,null,null,0]
[null,null,null,null,null,null,null,null,null,null,null,null,null,null,null,null,0,null,null,null,0,null,null,null,0,null,null,null,0,null,null,0,null,null,null,0,null,null,0,null,null,0,null,null,0]
[null,null,null,null,null,null,null,null,null,null,null,null,null,null,null,null,0,null,null,null,0,null,null,null,0,null,null,null,0,null,null,0,null,null,null,0,null,null,0,null,null,0,null,null,0]
[null,null,null,null,null,null,null,null,null,null,null,null,null,null,null,null,0,null,null,null,0,null,null,null,0,null,null,null,0,null,null,0,null,null,null,0,null,null,0,null,null,0,null,null,0]
[null,null,null,null,null,null,null,null,null,null,null,null,null,null,null,null,0,null,null,null,0,null,null,null,0,null,null,null,0,null,null,0,null,null,null,0,null,null,0,null,null,0,null,null,0]
[null,null,null,null,null,null,null,null,null,null,null,null,null,null,null,null,0,null,null,null,0,null,null,null,0,null,null,null,0,null,null,0,null,null,null,0,null,null,0,null,null,0,null,null,0]
[null,null,null,null,null,null,null,null,null,null,null,null,null,null,null,null,0,null,null,null,0,null,null,null,0,null,null,null,0,null,null,0,null,null,null,0,null,null,0,null,null,0,null,null,0]
[null,null,null,null,null,null,null,null,null,null,null,null,null,null,null,null,0,null,null,null,0,null,null,null,0,null,null,null,0,null,null,0,null,null,null,0,null,null,0,null,null,0,null,null,0]
[null,null,null,null,null,null,null,null,null,null,null,null,null,null,null,null,0,null,null,null,0,null,null,null,0,null,null,null,0,null,null,0,null,null,null,0,null,null,0,null,null,0,null,null,0]
[null,null,null,null,null,null,null,null,null,null,null,null,null,null,null,null,0,null,null,null,0,null,null,null,0,null,null,null,0,null,null,0,null,null,null,0,null,null,0,null,null,0,null,null,0]
[null,null,null,null,null,null,null,null,null,null,null,null,null,null,null,null,0,null,null,null,0,null,null,null,0,null,null,null,0,null,null,0,null,null,null,0,null,null,0,null,null,0,null,null,0]
[null,null,null,null,null,null,null,null,null,null,null,null,null,null,null,null,0,null,null,null,0,null,null,null,0,null,null,null,0,null,null,0,null,null,null,0,null,null,0,null,null,0,null,null,0]
[null,null,null,null,null,null,null,null,null,null,null,null,null,null,null,null,0,null,null,null,0,null,null,null,0,null,null,null,0,null,null,0,null,null,null,0,null,null,0,null,null,0,null,null,0]
[null,null,null,null,null,null,null,null,null,null,null,null,null,null,null,null,0,null,null,null,0,null,null,null,0,null,null,null,0,null,null,0,null,null,null,0,null,null,0,null,null,0,null,null,0]
[null,null,null,null,null,null,null,null,null,null,null,null,null,null,null,null,0,null,null,null,0,null,null,null,0,null,null,null,0,null,null,0,null,null,null,0,null,null,0,null,null,0,null,null,0]
[null,null,null,null,null,null,null,null,null,null,null,null,null,null,null,null,0,null,null,null,0,null,null,null,0,null,null,null,0,null,null,0,null,null,null,0,null,null,0,null,null,0,null,null,0]
[null,null,null,null,null,null,null,null,null,null,null,null,null,null,null,null,0,null,null,null,0,null,null,null,0,null,null,null,0,null,null,0,null,null,null,0,null,null,0,null,null,0,null,null,0]
[null,null,null,null,null,null,null,null,null,null,null,null,null,null,null,null,0,null,null,null,0,null,null,null,0,null,null,null,0,null,null,0,null,null,null,0,null,null,0,null,null,0,null,null,0]
[null,null,null,null,null,null,null,null,null,null,null,null,null,null,null,null,0,null,null,null,0,null,null,null,0,null,null,null,0,null,null,0,null,null,null,0,null,null,0,null,null,0,null,null,0]
[null,null,null,null,null,null,null,null,null,null,null,null,null,null,null,null,{"$f":"($G451+($G451*(P451/100)))*$R$1","v":0},null,null,null,{"$f":"($G451+($G451*(T451/100)))*$R$1","v":0},null,null,null,{"$f":"($G451+($G451*(X451/100)))*$R$1","v":0},null,null,null,{"$f":"($G451+($G451*(AB451/100)))*$R$1","v":0},null,null,{"$f":"($G451+($G451*(AE451/100)))*$R$1","v":0},null,null,null,{"$f":"($G451+($G451*(AI451/100)))*$R$1","v":0},null,null,{"$f":"($G451+($G451*(AL451/100)))*$R$1","v":0},null,null,{"$f":"($G451+($G451*(AO451/100)))*$R$1","v":0},null,null,{"$f":"($G451+($G451*(AR451/100)))*$R$1","v":0}]
[null,null,null,null,null,null,null,null,null,null,null,null,null,null,null,null,0,null,null,null,0,null,null,null,0,null,null,null,0,null,null,0,null,null,null,0,null,null,0,null,null,0,null,null,0]
[null,null,null,null,null,null,null,null,null,null,null,null,null,null,null,null,0,null,null,null,0,null,null,null,0,null,null,null,0,null,null,0,null,null,null,0,null,null,0,null,null,0,null,null,0]
[null,null,null,null,null,null,null,null,null,null,null,null,null,null,null,null,0,null,null,null,0,null,null,null,0,null,null,null,0,null,null,0,null,null,null,0,null,null,0,null,null,0,null,null,0]
[null,null,null,null,null,null,null,null,null,null,null,null,null,null,null,null,0,null,null,null,0,null,null,null,0,null,null,null,0,null,null,0,null,null,null,0,null,null,0,null,null,0,null,null,0]
[null,null,null,null,null,null,null,null,null,null,null,null,null,null,null,null,0,null,null,null,0,null,null,null,0,null,null,null,0,null,null,0,null,null,null,0,null,null,0,null,null,0,null,null,0]
[null,null,null,null,null,null,null,null,null,null,null,null,null,null,null,null,0,null,null,null,0,null,null,null,0,null,null,null,0,null,null,0,null,null,null,0,null,null,0,null,null,0,null,null,0]
[null,null,null,null,null,null,null,null,null,null,null,null,null,null,null,null,0,null,null,null,0,null,null,null,0,null,null,null,0,null,null,0,null,null,null,0,null,null,0,null,null,0,null,null,0]
[null,null,null,null,null,null,null,null,null,null,null,null,null,null,null,null,0,null,null,null,0,null,null,null,0,null,null,null,0,null,null,0,null,null,null,0,null,null,0,null,null,0,null,null,0]
[null,null,null,null,null,null,null,null,null,null,null,null,null,null,null,null,0,null,null,null,0,null,null,null,0,null,null,null,0,null,null,0,null,null,null,0,null,null,0,null,null,0,null,null,0]
[null,null,null,null,null,null,null,null,null,null,null,null,null,null,null,null,0,null,null,null,0,null,null,null,0,null,null,null,0,null,null,0,null,null,null,0,null,null,0,null,null,0,null,null,0]
[null,null,null,null,null,null,null,null,null,null,null,null,null,null,null,null,0,null,null,null,0,null,null,null,0,null,null,null,0,null,null,0,null,null,null,0,null,null,0,null,null,0,null,null,0]
[null,null,null,null,null,null,null,null,null,null,null,null,null,null,null,null,0,null,null,null,0,null,null,null,0,null,null,null,0,null,null,0,null,null,null,0,null,null,0,null,null,0,null,null,0]
[null,null,null,null,null,null,null,null,null,null,null,null,null,null,null,null,0,null,null,null,0,null,null,null,0,null,null,null,0,null,null,0,null,null,null,0,null,null,0,null,null,0,null,null,0]
[null,null,null,null,null,null,null,null,null,null,null,null,null,null,null,null,0,null,null,null,0,null,null,null,0,null,null,null,0,null,null,0,null,null,null,0,null,null,0,null,null,0,null,null,0]
[null,null,null,null,null,null,null,null,null,null,null,null,null,null,null,null,0,null,null,null,0,null,null,null,0,null,null,null,0,null,null,0,null,null,null,0,null,null,0,null,null,0,null,null,0]
[null,null,null,null,null,null,null,null,null,null,null,null,null,null,null,null,0,null,null,null,0,null,null,null,0,null,null,null,0,null,null,0,null,null,null,0,null,null,0,null,null,0,null,null,0]
[null,null,null,null,null,null,null,null,null,null,null,null,null,null,null,null,0,null,null,null,0,null,null,null,0,null,null,null,0,null,null,0,null,null,null,0,null,null,0,null,null,0,null,null,0]
[null,null,null,null,null,null,null,null,null,null,null,null,null,null,null,null,0,null,null,null,0,null,null,null,0,null,null,null,0,null,null,0,null,null,null,0,null,null,0,null,null,0,null,null,0]
[null,null,null,null,null,null,null,null,null,null,null,null,null,null,null,null,0,null,null,null,0,null,null,null,0,null,null,null,0,null,null,0,null,null,null,0,null,null,0,null,null,0,null,null,0]
[null,null,null,null,null,null,null,null,null,null,null,null,null,null,null,null,0,null,null,null,0,null,null,null,0,null,null,null,0,null,null,0,null,null,null,0,null,null,0,null,null,0,null,null,0]
[null,null,null,null,null,null,null,null,null,null,null,null,null,null,null,null,0,null,null,null,0,null,null,null,0,null,null,null,0,null,null,0,null,null,null,0,null,null,0,null,null,0,null,null,0]
[null,null,null,null,null,null,null,null,null,null,null,null,null,null,null,null,0,null,null,null,0,null,null,null,0,null,null,null,0,null,null,0,null,null,null,0,null,null,0,null,null,0,null,null,0]
[null,null,null,null,null,null,null,null,null,null,null,null,null,null,null,null,0,null,null,null,0,null,null,null,0,null,null,null,0,null,null,0,null,null,null,0,null,null,0,null,null,0,null,null,0]
[null,null,null,null,null,null,null,null,null,null,null,null,null,null,null,null,0,null,null,null,0,null,null,null,0,null,null,null,0,null,null,0,null,null,null,0,null,null,0,null,null,0,null,null,0]
[null,null,null,null,null,null,null,null,null,null,null,null,null,null,null,null,0,null,null,null,0,null,null,null,0,null,null,null,0,null,null,0,null,null,null,0,null,null,0,null,null,0,null,null,0]
[null,null,null,null,null,null,null,null,null,null,null,null,null,null,null,null,0,null,null,null,0,null,null,null,0,null,null,null,0,null,null,0,null,null,null,0,null,null,0,null,null,0,null,null,0]
[null,null,null,null,null,null,null,null,null,null,null,null,null,null,null,null,0,null,null,null,0,null,null,null,0,null,null,null,0,null,null,0,null,null,null,0,null,null,0,null,null,0,null,null,0]
[null,null,null,null,null,null,null,null,null,null,null,null,null,null,null,null,0,null,null,null,0,null,null,null,0,null,null,null,0,null,null,0,null,null,null,0,null,null,0,null,null,0,null,null,0]
[null,null,null,null,null,null,null,null,null,null,null,null,null,null,null,null,0,null,null,null,0,null,null,null,0,null,null,null,0,null,null,0,null,null,null,0,null,null,0,null,null,0,null,null,0]
[null,null,null,null,null,null,null,null,null,null,null,null,null,null,null,null,0,null,null,null,0,null,null,null,0,null,null,null,0,null,null,0,null,null,null,0,null,null,0,null,null,0,null,null,0]
[null,null,null,null,null,null,null,null,null,null,null,null,null,null,null,null,0,null,null,null,0,null,null,null,0,null,null,null,0,null,null,0,null,null,null,0,null,null,0,null,null,0,null,null,0]
[null,null,null,null,null,null,null,null,null,null,null,null,null,null,null,null,0,null,null,null,0,null,null,null,0,null,null,null,0,null,null,0,null,null,null,0,null,null,0,null,null,0,null,null,0]
[null,null,null,null,null,null,null,null,null,null,null,null,null,null,null,null,0,null,null,null,0,null,null,null,0,null,null,null,0,null,null,0,null,null,null,0,null,null,0,null,null,0,null,null,0]
[null,null,null,null,null,null,null,null,null,null,null,null,null,null,null,null,0,null,null,null,0,null,null,null,0,null,null,null,0,null,null,0,null,null,null,0,null,null,0,null,null,0,null,null,0]
[null,null,null,null,null,null,null,null,null,null,null,null,null,null,null,null,0,null,null,null,0,null,null,null,0,null,null,null,0,null,null,0,null,null,null,0,null,null,0,null,null,0,null,null,0]
[null,null,null,null,null,null,null,null,null,null,null,null,null,null,null,null,0,null,null,null,0,null,null,null,0,null,null,null,0,null,null,0,null,null,null,0,null,null,0,null,null,0,null,null,0]
[null,null,null,null,null,null,null,null,null,null,null,null,null,null,null,null,0,null,null,null,0,null,null,null,0,null,null,null,0,null,null,0,null,null,null,0,null,null,0,null,null,0,null,null,0]
[null,null,null,null,null,null,null,null,null,null,null,null,null,null,null,null,0,null,null,null,0,null,null,null,0,null,null,null,0,null,null,0,null,null,null,0,null,null,0,null,null,0,null,null,0]
[null,null,null,null,null,null,null,null,null,null,null,null,null,null,null,null,0,null,null,null,0,null,null,null,0,null,null,null,0,null,null,0,null,null,null,0,null,null,0,null,null,0,null,null,0]
[null,null,null,null,null,null,null,null,null,null,null,null,null,null,null,null,0,null,null,null,0,null,null,null,0,null,null,null,0,null,null,0,null,null,null,0,null,null,0,null,null,0,null,null,0]
[null,null,null,null,null,null,null,null,null,null,null,null,null,null,null,null,0,null,null,null,0,null,null,null,0,null,null,null,0,null,null,0,null,null,null,0,null,null,0,null,null,0,null,null,0]
[null,null,null,null,null,null,null,null,null,null,null,null,null,null,null,null,0,null,null,null,0,null,null,null,0,null,null,null,0,null,null,0,null,null,null,0,null,null,0,null,null,0,null,null,0]
[null,null,null,null,null,null,null,null,null,null,null,null,null,null,null,null,0,null,null,null,0,null,null,null,0,null,null,null,0,null,null,0,null,null,null,0,null,null,0,null,null,0,null,null,0]
[null,null,null,null,null,null,null,null,null,null,null,null,null,null,null,null,0,null,null,null,0,null,null,null,0,null,null,null,0,null,null,0,null,null,null,0,null,null,0,null,null,0,null,null,0]
[null,null,null,null,null,null,null,null,null,null,null,null,null,null,null,null,0,null,null,null,0,null,null,null,0,null,null,null,0,null,null,0,null,null,null,0,null,null,0,null,null,0,null,null,0]
[null,null,null,null,null,null,null,null,null,null,null,null,null,null,null,null,0,null,null,null,0,null,null,null,0,null,null,null,0,null,null,0,null,null,null,0,null,null,0,null,null,0,null,null,0]
[null,null,null,null,null,null,null,null,null,null,null,null,null,null,null,null,0,null,null,null,0,null,null,null,0,null,null,null,0,null,null,0,null,null,null,0,null,null,0,null,null,0,null,null,0]
[null,null,null,null,null,null,null,null,null,null,null,null,null,null,null,null,0,null,null,null,0,null,null,null,0,null,null,null,0,null,null,0,null,null,null,0,null,null,0,null,null,0,null,null,0]
[null,null,null,null,null,null,null,null,null,null,null,null,null,null,null,null,0,null,null,null,0,null,null,null,0,null,null,null,0,null,null,0,null,null,null,0,null,null,0,null,null,0,null,null,0]
[null,null,null,null,null,null,null,null,null,null,null,null,null,null,null,null,0,null,null,null,0,null,null,null,0,null,null,null,0,null,null,0,null,null,null,0,null,null,0,null,null,0,null,null,0]
[null,null,null,null,null,null,null,null,null,null,null,null,null,null,null,null,0,null,null,null,0,null,null,null,0,null,null,null,0,null,null,0,null,null,null,0,null,null,0,null,null,0,null,null,0]
[null,null,null,null,null,null,null,null,null,null,null,null,null,null,null,null,0,null,null,null,0,null,null,null,0,null,null,null,0,null,null,0,null,null,null,0,null,null,0,null,null,0,null,null,0]
[null,null,null,null,null,null,null,null,null,null,null,null,null,null,null,null,0,null,null,null,0,null,null,null,0,null,null,null,0,null,null,0,null,null,null,0,null,null,0,null,null,0,null,null,0]
[null,null,null,null,null,null,null,null,null,null,null,null,null,null,null,null,0,null,null,null,0,null,null,null,0,null,null,null,0,null,null,0,null,null,null,0,null,null,0,null,null,0,null,null,0]
[null,null,null,null,null,null,null,null,null,null,null,null,null,null,null,null,0,null,null,null,0,null,null,null,0,null,null,null,0,null,null,0,null,null,null,0,null,null,0,null,null,0,null,null,0]
[null,null,null,null,null,null,null,null,null,null,null,null,null,null,null,null,0,null,null,null,0,null,null,null,0,null,null,null,0,null,null,0,null,null,null,0,null,null,0,null,null,0,null,null,0]
[null,null,null,null,null,null,null,null,null,null,null,null,null,null,null,null,0,null,null,null,0,null,null,null,0,null,null,null,0,null,null,0,null,null,null,0,null,null,0,null,null,0,null,null,0]
[null,null,null,null,null,null,null,null,null,null,null,null,null,null,null,null,0,null,null,null,0,null,null,null,0,null,null,null,0,null,null,0,null,null,null,0,null,null,0,null,null,0,null,null,0]
[null,null,null,null,null,null,null,null,null,null,null,null,null,null,null,null,0,null,null,null,0,null,null,null,0,null,null,null,0,null,null,0,null,null,null,0,null,null,0,null,null,0,null,null,0]
[null,null,null,null,null,null,null,null,null,null,null,null,null,null,null,null,0,null,null,null,0,null,null,null,0,null,null,null,0,null,null,0,null,null,null,0,null,null,0,null,null,0,null,null,0]
[null,null,null,null,null,null,null,null,null,null,null,null,null,null,null,null,0,null,null,null,0,null,null,null,0,null,null,null,0,null,null,0,null,null,null,0,null,null,0,null,null,0,null,null,0]
[null,null,null,null,null,null,null,null,null,null,null,null,null,null,null,null,0,null,null,null,0,null,null,null,0,null,null,null,0,null,null,0,null,null,null,0,null,null,0,null,null,0,null,null,0]
[null,null,null,null,null,null,null,null,null,null,null,null,null,null,null,null,0,null,null,null,0,null,null,null,0,null,null,null,0,null,null,0,null,null,null,0,null,null,0,null,null,0,null,null,0]
[null,null,null,null,null,null,null,null,null,null,null,null,null,null,null,null,0,null,null,null,0,null,null,null,0,null,null,null,0,null,null,0,null,null,null,0,null,null,0,null,null,0,null,null,0]
[null,null,null,null,null,null,null,null,null,null,null,null,null,null,null,null,0,null,null,null,0,null,null,null,0,null,null,null,0,null,null,0,null,null,null,0,null,null,0,null,null,0,null,null,0]
[null,null,null,null,null,null,null,null,null,null,null,null,null,null,null,null,0,null,null,null,0,null,null,null,0,null,null,null,0,null,null,0,null,null,null,0,null,null,0,null,null,0,null,null,0]
[null,null,null,null,null,null,null,null,null,null,null,null,null,null,null,null,0,null,null,null,0,null,null,null,0,null,null,null,0,null,null,0,null,null,null,0,null,null,0,null,null,0,null,null,0]
[null,null,null,null,null,null,null,null,null,null,null,null,null,null,null,null,0,null,null,null,0,null,null,null,0,null,null,null,0,null,null,0,null,null,null,0,null,null,0,null,null,0,null,null,0]
[null,null,null,null,null,null,null,null,null,null,null,null,null,null,null,null,0,null,null,null,0,null,null,null,0,null,null,null,0,null,null,0,null,null,null,0,null,null,0,null,null,0,null,null,0]
[null,null,null,null,null,null,null,null,null,null,null,null,null,null,null,null,0,null,null,null,0,null,null,null,0,null,null,null,0,null,null,0,null,null,null,0,null,null,0,null,null,0,null,null,0]
[null,null,null,null,null,null,null,null,null,null,null,null,null,null,null,null,0,null,null,null,0,null,null,null,0,null,null,null,0,null,null,0,null,null,null,0,null,null,0,null,null,0,null,null,0]
[null,null,null,null,null,null,null,null,null,null,null,null,null,null,null,null,0,null,null,null,0,null,null,null,0,null,null,null,0,null,null,0,null,null,null,0,null,null,0,null,null,0,null,null,0]
[null,null,null,null,null,null,null,null,null,null,null,null,null,null,null,null,0,null,null,null,0,null,null,null,0,null,null,null,0,null,null,0,null,null,null,0,null,null,0,null,null,0,null,null,0]
[null,null,null,null,null,null,null,null,null,null,null,null,null,null,null,null,0,null,null,null,0,null,null,null,0,null,null,null,0,null,null,0,null,null,null,0,null,null,0,null,null,0,null,null,0]
[null,null,null,null,null,null,null,null,null,null,null,null,null,null,null,null,0,null,null,null,0,null,null,null,0,null,null,null,0,null,null,0,null,null,null,0,null,null,0,null,null,0,null,null,0]
[null,null,null,null,null,null,null,null,null,null,null,null,null,null,null,null,0,null,null,null,0,null,null,null,0,null,null,null,0,null,null,0,null,null,null,0,null,null,0,null,null,0,null,null,0]
[null,null,null,null,null,null,null,null,null,null,null,null,null,null,null,null,0,null,null,null,0,null,null,null,0,null,null,null,0,null,null,0,null,null,null,0,null,null,0,null,null,0,null,null,0]
[null,null,null,null,null,null,null,null,null,null,null,null,null,null,null,null,0,null,null,null,0,null,null,null,0,null,null,null,0,null,null,0,null,null,null,0,null,null,0,null,null,0,null,null,0]
[null,null,null,null,null,null,null,null,null,null,null,null,null,null,null,null,0,null,null,null,0,null,null,null,0,null,null,null,0,null,null,0,null,null,null,0,null,null,0,null,null,0,null,null,0]
[null,null,null,null,null,null,null,null,null,null,null,null,null,null,null,null,0,null,null,null,0,null,null,null,0,null,null,null,0,null,null,0,null,null,null,0,null,null,0,null,null,0,null,null,0]
[null,null,null,null,null,null,null,null,null,null,null,null,null,null,null,null,0,null,null,null,0,null,null,null,0,null,null,null,0,null,null,0,null,null,null,0,null,null,0,null,null,0,null,null,0]
[null,null,null,null,null,null,null,null,null,null,null,null,null,null,null,null,0,null,null,null,0,null,null,null,0,null,null,null,0,null,null,0,null,null,null,0,null,null,0,null,null,0,null,null,0]
[null,null,null,null,null,null,null,null,null,null,null,null,null,null,null,null,0,null,null,null,0,null,null,null,0,null,null,null,0,null,null,0,null,null,null,0,null,null,0,null,null,0,null,null,0]
[null,null,null,null,null,null,null,null,null,null,null,null,null,null,null,null,0,null,null,null,0,null,null,null,0,null,null,null,0,null,null,0,null,null,null,0,null,null,0,null,null,0,null,null,0]
[null,null,null,null,null,null,null,null,null,null,null,null,null,null,null,null,0,null,null,null,0,null,null,null,0,null,null,null,0,null,null,0,null,null,null,0,null,null,0,null,null,0,null,null,0]
[null,null,null,null,null,null,null,null,null,null,null,null,null,null,null,null,0,null,null,null,0,null,null,null,0,null,null,null,0,null,null,0,null,null,null,0,null,null,0,null,null,0,null,null,0]
[null,null,null,null,null,null,null,null,null,null,null,null,null,null,null,null,0,null,null,null,0,null,null,null,0,null,null,null,0,null,null,0,null,null,null,0,null,null,0,null,null,0,null,null,0]
[null,null,null,null,null,null,null,null,null,null,null,null,null,null,null,null,0,null,null,null,0,null,null,null,0,null,null,null,0,null,null,0,null,null,null,0,null,null,0,null,null,0,null,null,0]
[null,null,null,null,null,null,null,null,null,null,null,null,null,null,null,null,0,null,null,null,0,null,null,null,0,null,null,null,0,null,null,0,null,null,null,0,null,null,0,null,null,0,null,null,0]
[null,null,null,null,null,null,null,null,null,null,null,null,null,null,null,null,0,null,null,null,0,null,null,null,0,null,null,null,0,null,null,0,null,null,null,0,null,null,0,null,null,0,null,null,0]
[null,null,null,null,null,null,null,null,null,null,null,null,null,null,null,null,0,null,null,null,0,null,null,null,0,null,null,null,0,null,null,0,null,null,null,0,null,null,0,null,null,0,null,null,0]
[null,null,null,null,null,null,null,null,null,null,null,null,null,null,null,null,0,null,null,null,0,null,null,null,0,null,null,null,0,null,null,0,null,null,null,0,null,null,0,null,null,0,null,null,0]
[null,null,null,null,null,null,null,null,null,null,null,null,null,null,null,null,0,null,null,null,0,null,null,null,0,null,null,null,0,null,null,0,null,null,null,0,null,null,0,null,null,0,null,null,0]
[null,null,null,null,null,null,null,null,null,null,null,null,null,null,null,null,0,null,null,null,0,null,null,null,0,null,null,null,0,null,null,0,null,null,null,0,null,null,0,null,null,0,null,null,0]
[null,null,null,null,null,null,null,null,null,null,null,null,null,null,null,null,0,null,null,null,0,null,null,null,0,null,null,null,0,null,null,0,null,null,null,0,null,null,0,null,null,0,null,null,0]
[null,null,null,null,null,null,null,null,null,null,null,null,null,null,null,null,0,null,null,null,0,null,null,null,0,null,null,null,0,null,null,0,null,null,null,0,null,null,0,null,null,0,null,null,0]
[null,null,null,null,null,null,null,null,null,null,null,null,null,null,null,null,0,null,null,null,0,null,null,null,0,null,null,null,0,null,null,0,null,null,null,0,null,null,0,null,null,0,null,null,0]
[null,null,null,null,null,null,null,null,null,null,null,null,null,null,null,null,0,null,null,null,0,null,null,null,0,null,null,null,0,null,null,0,null,null,null,0,null,null,0,null,null,0,null,null,0]
[null,null,null,null,null,null,null,null,null,null,null,null,null,null,null,null,0,null,null,null,0,null,null,null,0,null,null,null,0,null,null,0,null,null,null,0,null,null,0,null,null,0,null,null,0]
[null,null,null,null,null,null,null,null,null,null,null,null,null,null,null,null,0,null,null,null,0,null,null,null,0,null,null,null,0,null,null,0,null,null,null,0,null,null,0,null,null,0,null,null,0]
[null,null,null,null,null,null,null,null,null,null,null,null,null,null,null,null,0,null,null,null,0,null,null,null,0,null,null,null,0,null,null,0,null,null,null,0,null,null,0,null,null,0,null,null,0]
[null,null,null,null,null,null,null,null,null,null,null,null,null,null,null,null,0,null,null,null,0,null,null,null,0,null,null,null,0,null,null,0,null,null,null,0,null,null,0,null,null,0,null,null,0]
[null,null,null,null,null,null,null,null,null,null,null,null,null,null,null,null,0,null,null,null,0,null,null,null,0,null,null,null,0,null,null,0,null,null,null,0,null,null,0,null,null,0,null,null,0]
[null,null,null,null,null,null,null,null,null,null,null,null,null,null,null,null,0,null,null,null,0,null,null,null,0,null,null,null,0,null,null,0,null,null,null,0,null,null,0,null,null,0,null,null,0]
[null,null,null,null,null,null,null,null,null,null,null,null,null,null,null,null,0,null,null,null,0,null,null,null,0,null,null,null,0,null,null,0,null,null,null,0,null,null,0,null,null,0,null,null,0]
[null,null,null,null,null,null,null,null,null,null,null,null,null,null,null,null,0,null,null,null,0,null,null,null,0,null,null,null,0,null,null,0,null,null,null,0,null,null,0,null,null,0,null,null,0]
[null,null,null,null,null,null,null,null,null,null,null,null,null,null,null,null,0,null,null,null,0,null,null,null,0,null,null,null,0,null,null,0,null,null,null,0,null,null,0,null,null,0,null,null,0]
[null,null,null,null,null,null,null,null,null,null,null,null,null,null,null,null,0,null,null,null,0,null,null,null,0,null,null,null,0,null,null,0,null,null,null,0,null,null,0,null,null,0,null,null,0]
[null,null,null,null,null,null,null,null,null,null,null,null,null,null,null,null,0,null,null,null,0,null,null,null,0,null,null,null,0,null,null,0,null,null,null,0,null,null,0,null,null,0,null,null,0]
[null,null,null,null,null,null,null,null,null,null,null,null,null,null,null,null,0,null,null,null,0,null,null,null,0,null,null,null,0,null,null,0,null,null,null,0,null,null,0,null,null,0,null,null,0]
[null,null,null,null,null,null,null,null,null,null,null,null,null,null,null,null,0,null,null,null,0,null,null,null,0,null,null,null,0,null,null,0,null,null,null,0,null,null,0,null,null,0,null,null,0]
[null,null,null,null,null,null,null,null,null,null,null,null,null,null,null,null,0,null,null,null,0,null,null,null,0,null,null,null,0,null,null,0,null,null,null,0,null,null,0,null,null,0,null,null,0]
[null,null,null,null,null,null,null,null,null,null,null,null,null,null,null,null,0,null,null,null,0,null,null,null,0,null,null,null,0,null,null,0,null,null,null,0,null,null,0,null,null,0,null,null,0]
[null,null,null,null,null,null,null,null,null,null,null,null,null,null,null,null,0,null,null,null,0,null,null,null,0,null,null,null,0,null,null,0,null,null,null,0,null,null,0,null,null,0,null,null,0]
[null,null,null,null,null,null,null,null,null,null,null,null,null,null,null,null,0,null,null,null,0,null,null,null,0,null,null,null,0,null,null,0,null,null,null,0,null,null,0,null,null,0,null,null,0]
[null,null,null,null,null,null,null,null,null,null,null,null,null,null,null,null,0,null,null,null,0,null,null,null,0,null,null,null,0,null,null,0,null,null,null,0,null,null,0,null,null,0,null,null,0]
[null,null,null,null,null,null,null,null,null,null,null,null,null,null,null,null,0,null,null,null,0,null,null,null,0,null,null,null,0,null,null,0,null,null,null,0,null,null,0,null,null,0,null,null,0]
[null,null,null,null,null,null,null,null,null,null,null,null,null,null,null,null,0,null,null,null,0,null,null,null,0,null,null,null,0,null,null,0,null,null,null,0,null,null,0,null,null,0,null,null,0]
[null,null,null,null,null,null,null,null,null,null,null,null,null,null,null,null,0,null,null,null,0,null,null,null,0,null,null,null,0,null,null,0,null,null,null,0,null,null,0,null,null,0,null,null,0]
[null,null,null,null,null,null,null,null,null,null,null,null,null,null,null,null,0,null,null,null,0,null,null,null,0,null,null,null,0,null,null,0,null,null,null,0,null,null,0,null,null,0,null,null,0]
[null,null,null,null,null,null,null,null,null,null,null,null,null,null,null,null,0,null,null,null,0,null,null,null,0,null,null,null,0,null,null,0,null,null,null,0,null,null,0,null,null,0,null,null,0]
[null,null,null,null,null,null,null,null,null,null,null,null,null,null,null,null,0,null,null,null,0,null,null,null,0,null,null,null,0,null,null,0,null,null,null,0,null,null,0,null,null,0,null,null,0]
[null,null,null,null,null,null,null,null,null,null,null,null,null,null,null,null,0,null,null,null,0,null,null,null,0,null,null,null,0,null,null,0,null,null,null,0,null,null,0,null,null,0,null,null,0]
[null,null,null,null,null,null,null,null,null,null,null,null,null,null,null,null,0,null,null,null,0,null,null,null,0,null,null,null,0,null,null,0,null,null,null,0,null,null,0,null,null,0,null,null,0]
[null,null,null,null,null,null,null,null,null,null,null,null,null,null,null,null,0,null,null,null,0,null,null,null,0,null,null,null,0,null,null,0,null,null,null,0,null,null,0,null,null,0,null,null,0]
[null,null,null,null,null,null,null,null,null,null,null,null,null,null,null,null,0,null,null,null,0,null,null,null,0,null,null,null,0,null,null,0,null,null,null,0,null,null,0,null,null,0,null,null,0]
[null,null,null,null,null,null,null,null,null,null,null,null,null,null,null,null,0,null,null,null,0,null,null,null,0,null,null,null,0,null,null,0,null,null,null,0,null,null,0,null,null,0,null,null,0]
[null,null,null,null,null,null,null,null,null,null,null,null,null,null,null,null,0,null,null,null,0,null,null,null,0,null,null,null,0,null,null,0,null,null,null,0,null,null,0,null,null,0,null,null,0]
[null,null,null,null,null,null,null,null,null,null,null,null,null,null,null,null,0,null,null,null,0,null,null,null,0,null,null,null,0,null,null,0,null,null,null,0,null,null,0,null,null,0,null,null,0]
[null,null,null,null,null,null,null,null,null,null,null,null,null,null,null,null,0,null,null,null,0,null,null,null,0,null,null,null,0,null,null,0,null,null,null,0,null,null,0,null,null,0,null,null,0]
[null,null,null,null,null,null,null,null,null,null,null,null,null,null,null,null,0,null,null,null,0,null,null,null,0,null,null,null,0,null,null,0,null,null,null,0,null,null,0,null,null,0,null,null,0]
[null,null,null,null,null,null,null,null,null,null,null,null,null,null,null,null,0,null,null,null,0,null,null,null,0,null,null,null,0,null,null,0,null,null,null,0,null,null,0,null,null,0,null,null,0]
[null,null,null,null,null,null,null,null,null,null,null,null,null,null,null,null,0,null,null,null,0,null,null,null,0,null,null,null,0,null,null,0,null,null,null,0,null,null,0,null,null,0,null,null,0]
[null,null,null,null,null,null,null,null,null,null,null,null,null,null,null,null,0,null,null,null,0,null,null,null,0,null,null,null,0,null,null,0,null,null,null,0,null,null,0,null,null,0,null,null,0]
[null,null,null,null,null,null,null,null,null,null,null,null,null,null,null,null,0,null,null,null,0,null,null,null,0,null,null,null,0,null,null,0,null,null,null,0,null,null,0,null,null,0,null,null,0]
[null,null,null,null,null,null,null,null,null,null,null,null,null,null,null,null,0,null,null,null,0,null,null,null,0,null,null,null,0,null,null,0,null,null,null,0,null,null,0,null,null,0,null,null,0]
[null,null,null,null,null,null,null,null,null,null,null,null,null,null,null,null,0,null,null,null,0,null,null,null,0,null,null,null,0,null,null,0,null,null,null,0,null,null,0,null,null,0,null,null,0]
[null,null,null,null,null,null,null,null,null,null,null,null,null,null,null,null,0,null,null,null,0,null,null,null,0,null,null,null,0,null,null,0,null,null,null,0,null,null,0,null,null,0,null,null,0]
[null,null,null,null,null,null,null,null,null,null,null,null,null,null,null,null,{"$f":"($G1283+($G1283*(P1283/100)))*$R$1","v":0},null,null,null,{"$f":"($G1283+($G1283*(T1283/100)))*$R$1","v":0},null,null,null,{"$f":"($G1283+($G1283*(X1283/100)))*$R$1","v":0},null,null,null,{"$f":"($G1283+($G1283*(AB1283/100)))*$R$1","v":0},null,null,{"$f":"($G1283+($G1283*(AE1283/100)))*$R$1","v":0},null,null,null,{"$f":"($G1283+($G1283*(AI1283/100)))*$R$1","v":0},null,null,{"$f":"($G1283+($G1283*(AL1283/100)))*$R$1","v":0},null,null,{"$f":"($G1283+($G1283*(AO1283/100)))*$R$1","v":0},null,null,{"$f":"($G1283+($G1283*(AR1283/100)))*$R$1","v":0}]
[null,null,null,null,null,null,null,null,null,null,null,null,null,null,null,null,0,null,null,null,0,null,null,null,0,null,null,null,0,null,null,0,null,null,null,0,null,null,0,null,null,0,null,null,0]
[null,null,null,null,null,null,null,null,null,null,null,null,null,null,null,null,0,null,null,null,0,null,null,null,0,null,null,null,0,null,null,0,null,null,null,0,null,null,0,null,null,0,null,null,0]
[null,null,null,null,null,null,null,null,null,null,null,null,null,null,null,null,0,null,null,null,0,null,null,null,0,null,null,null,0,null,null,0,null,null,null,0,null,null,0,null,null,0,null,null,0]
[null,null,null,null,null,null,null,null,null,null,null,null,null,null,null,null,0,null,null,null,0,null,null,null,0,null,null,null,0,null,null,0,null,null,null,0,null,null,0,null,null,0,null,null,0]
[null,null,null,null,null,null,null,null,null,null,null,null,null,null,null,null,0,null,null,null,0,null,null,null,0,null,null,null,0,null,null,0,null,null,null,0,null,null,0,null,null,0,null,null,0]
[null,null,null,null,null,null,null,null,null,null,null,null,null,null,null,null,0,null,null,null,0,null,null,null,0,null,null,null,0,null,null,0,null,null,null,0,null,null,0,null,null,0,null,null,0]
[null,null,null,null,null,null,null,null,null,null,null,null,null,null,null,null,0,null,null,null,0,null,null,null,0,null,null,null,0,null,null,0,null,null,null,0,null,null,0,null,null,0,null,null,0]
[null,null,null,null,null,null,null,null,null,null,null,null,null,null,null,null,0,null,null,null,0,null,null,null,0,null,null,null,0,null,null,0,null,null,null,0,null,null,0,null,null,0,null,null,0]
[null,null,null,null,null,null,null,null,null,null,null,null,null,null,null,null,0,null,null,null,0,null,null,null,0,null,null,null,0,null,null,0,null,null,null,0,null,null,0,null,null,0,null,null,0]
[null,null,null,null,null,null,null,null,null,null,null,null,null,null,null,null,0,null,null,null,0,null,null,null,0,null,null,null,0,null,null,0,null,null,null,0,null,null,0,null,null,0,null,null,0]
[null,null,null,null,null,null,null,null,null,null,null,null,null,null,null,null,0,null,null,null,0,null,null,null,0,null,null,null,0,null,null,0,null,null,null,0,null,null,0,null,null,0,null,null,0]
[null,null,null,null,null,null,null,null,null,null,null,null,null,null,null,null,0,null,null,null,0,null,null,null,0,null,null,null,0,null,null,0,null,null,null,0,null,null,0,null,null,0,null,null,0]
[null,null,null,null,null,null,null,null,null,null,null,null,null,null,null,null,0,null,null,null,0,null,null,null,0,null,null,null,0,null,null,0,null,null,null,0,null,null,0,null,null,0,null,null,0]
[null,null,null,null,null,null,null,null,null,null,null,null,null,null,null,null,0,null,null,null,0,null,null,null,0,null,null,null,0,null,null,0,null,null,null,0,null,null,0,null,null,0,null,null,0]
[null,null,null,null,null,null,null,null,null,null,null,null,null,null,null,null,0,null,null,null,0,null,null,null,0,null,null,null,0,null,null,0,null,null,null,0,null,null,0,null,null,0,null,null,0]
[null,null,null,null,null,null,null,null,null,null,null,null,null,null,null,null,0,null,null,null,0,null,null,null,0,null,null,null,0,null,null,0,null,null,null,0,null,null,0,null,null,0,null,null,0]
[null,null,null,null,null,null,null,null,null,null,null,null,null,null,null,null,0,null,null,null,0,null,null,null,0,null,null,null,0,null,null,0,null,null,null,0,null,null,0,null,null,0,null,null,0]
[null,null,null,null,null,null,null,null,null,null,null,null,null,null,null,null,0,null,null,null,0,null,null,null,0,null,null,null,0,null,null,0,null,null,null,0,null,null,0,null,null,0,null,null,0]
[null,null,null,null,null,null,null,null,null,null,null,null,null,null,null,null,0,null,null,null,0,null,null,null,0,null,null,null,0,null,null,0,null,null,null,0,null,null,0,null,null,0,null,null,0]
[null,null,null,null,null,null,null,null,null,null,null,null,null,null,null,null,0,null,null,null,0,null,null,null,0,null,null,null,0,null,null,0,null,null,null,0,null,null,0,null,null,0,null,null,0]
[null,null,null,null,null,null,null,null,null,null,null,null,null,null,null,null,0,null,null,null,0,null,null,null,0,null,null,null,0,null,null,0,null,null,null,0,null,null,0,null,null,0,null,null,0]
[null,null,null,null,null,null,null,null,null,null,null,null,null,null,null,null,0,null,null,null,0,null,null,null,0,null,null,null,0,null,null,0,null,null,null,0,null,null,0,null,null,0,null,null,0]
[null,null,null,null,null,null,null,null,null,null,null,null,null,null,null,null,0,null,null,null,0,null,null,null,0,null,null,null,0,null,null,0,null,null,null,0,null,null,0,null,null,0,null,null,0]
[null,null,null,null,null,null,null,null,null,null,null,null,null,null,null,null,0,null,null,null,0,null,null,null,0,null,null,null,0,null,null,0,null,null,null,0,null,null,0,null,null,0,null,null,0]
[null,null,null,null,null,null,null,null,null,null,null,null,null,null,null,null,0,null,null,null,0,null,null,null,0,null,null,null,0,null,null,0,null,null,null,0,null,null,0,null,null,0,null,null,0]
[null,null,null,null,null,null,null,null,null,null,null,null,null,null,null,null,0,null,null,null,0,null,null,null,0,null,null,null,0,null,null,0,null,null,null,0,null,null,0,null,null,0,null,null,0]
[null,null,null,null,null,null,null,null,null,null,null,null,null,null,null,null,0,null,null,null,0,null,null,null,0,null,null,null,0,null,null,0,null,null,null,0,null,null,0,null,null,0,null,null,0]
[null,null,null,null,null,null,null,null,null,null,null,null,null,null,null,null,0,null,null,null,0,null,null,null,0,null,null,null,0,null,null,0,null,null,null,0,null,null,0,null,null,0,null,null,0]
[null,null,null,null,null,null,null,null,null,null,null,null,null,null,null,null,0,null,null,null,0,null,null,null,0,null,null,null,0,null,null,0,null,null,null,0,null,null,0,null,null,0,null,null,0]
[null,null,null,null,null,null,null,null,null,null,null,null,null,null,null,null,0,null,null,null,0,null,null,null,0,null,null,null,0,null,null,0,null,null,null,0,null,null,0,null,null,0,null,null,0]
[null,null,null,null,null,null,null,null,null,null,null,null,null,null,null,null,0,null,null,null,0,null,null,null,0,null,null,null,0,null,null,0,null,null,null,0,null,null,0,null,null,0,null,null,0]
[null,null,null,null,null,null,null,null,null,null,null,null,null,null,null,null,0,null,null,null,0,null,null,null,0,null,null,null,0,null,null,0,null,null,null,0,null,null,0,null,null,0,null,null,0]
[null,null,null,null,null,null,null,null,null,null,null,null,null,null,null,null,0,null,null,null,0,null,null,null,0,null,null,null,0,null,null,0,null,null,null,0,null,null,0,null,null,0,null,null,0]
[null,null,null,null,null,null,null,null,null,null,null,null,null,null,null,null,0,null,null,null,0,null,null,null,0,null,null,null,0,null,null,0,null,null,null,0,null,null,0,null,null,0,null,null,0]
[null,null,null,null,null,null,null,null,null,null,null,null,null,null,null,null,0,null,null,null,0,null,null,null,0,null,null,null,0,null,null,0,null,null,null,0,null,null,0,null,null,0,null,null,0]
[null,null,null,null,null,null,null,null,null,null,null,null,null,null,null,null,0,null,null,null,0,null,null,null,0,null,null,null,0,null,null,0,null,null,null,0,null,null,0,null,null,0,null,null,0]
[null,null,null,null,null,null,null,null,null,null,null,null,null,null,null,null,0,null,null,null,0,null,null,null,0,null,null,null,0,null,null,0,null,null,null,0,null,null,0,null,null,0,null,null,0]
[null,null,null,null,null,null,null,null,null,null,null,null,null,null,null,null,0,null,null,null,0,null,null,null,0,null,null,null,0,null,null,0,null,null,null,0,null,null,0,null,null,0,null,null,0]
[null,null,null,null,null,null,null,null,null,null,null,null,null,null,null,null,0,null,null,null,0,null,null,null,0,null,null,null,0,null,null,0,null,null,null,0,null,null,0,null,null,0,null,null,0]
[null,null,null,null,null,null,null,null,null,null,null,null,null,null,null,null,0,null,null,null,0,null,null,null,0,null,null,null,0,null,null,0,null,null,null,0,null,null,0,null,null,0,null,null,0]
[null,null,null,null,null,null,null,null,null,null,null,null,null,null,null,null,0,null,null,null,0,null,null,null,0,null,null,null,0,null,null,0,null,null,null,0,null,null,0,null,null,0,null,null,0]
[null,null,null,null,null,null,null,null,null,null,null,null,null,null,null,null,0,null,null,null,0,null,null,null,0,null,null,null,0,null,null,0,null,null,null,0,null,null,0,null,null,0,null,null,0]
[null,null,null,null,null,null,null,null,null,null,null,null,null,null,null,null,0,null,null,null,0,null,null,null,0,null,null,null,0,null,null,0,null,null,null,0,null,null,0,null,null,0,null,null,0]
[null,null,null,null,null,null,null,null,null,null,null,null,null,null,null,null,0,null,null,null,0,null,null,null,0,null,null,null,0,null,null,0,null,null,null,0,null,null,0,null,null,0,null,null,0]
[null,null,null,null,null,null,null,null,null,null,null,null,null,null,null,null,0,null,null,null,0,null,null,null,0,null,null,null,0,null,null,0,null,null,null,0,null,null,0,null,null,0,null,null,0]
[null,null,null,null,null,null,null,null,null,null,null,null,null,null,null,null,0,null,null,null,0,null,null,null,0,null,null,null,0,null,null,0,null,null,null,0,null,null,0,null,null,0,null,null,0]
[null,null,null,null,null,null,null,null,null,null,null,null,null,null,null,null,0,null,null,null,0,null,null,null,0,null,null,null,0,null,null,0,null,null,null,0,null,null,0,null,null,0,null,null,0]
[null,null,null,null,null,null,null,null,null,null,null,null,null,null,null,null,0,null,null,null,0,null,null,null,0,null,null,null,0,null,null,0,null,null,null,0,null,null,0,null,null,0,null,null,0]
[null,null,null,null,null,null,null,null,null,null,null,null,null,null,null,null,0,null,null,null,0,null,null,null,0,null,null,null,0,null,null,0,null,null,null,0,null,null,0,null,null,0,null,null,0]
[null,null,null,null,null,null,null,null,null,null,null,null,null,null,null,null,0,null,null,null,0,null,null,null,0,null,null,null,0,null,null,0,null,null,null,0,null,null,0,null,null,0,null,null,0]
[null,null,null,null,null,null,null,null,null,null,null,null,null,null,null,null,{"$f":"($G1731+($G1731*(P1731/100)))*$R$1","v":0},null,null,null,{"$f":"($G1731+($G1731*(T1731/100)))*$R$1","v":0},null,null,null,{"$f":"($G1731+($G1731*(X1731/100)))*$R$1","v":0},null,null,null,{"$f":"($G1731+($G1731*(AB1731/100)))*$R$1","v":0},null,null,{"$f":"($G1731+($G1731*(AE1731/100)))*$R$1","v":0},null,null,null,{"$f":"($G1731+($G1731*(AI1731/100)))*$R$1","v":0},null,null,{"$f":"($G1731+($G1731*(AL1731/100)))*$R$1","v":0},null,null,{"$f":"($G1731+($G1731*(AO1731/100)))*$R$1","v":0},null,null,{"$f":"($G1731+($G1731*(AR1731/100)))*$R$1","v":0}]
[null,null,null,null,null,null,null,null,null,null,null,null,null,null,null,null,0,null,null,null,0,null,null,null,0,null,null,null,0,null,null,0,null,null,null,0,null,null,0,null,null,0,null,null,0]
[null,null,null,null,null,null,null,null,null,null,null,null,null,null,null,null,0,null,null,null,0,null,null,null,0,null,null,null,0,null,null,0,null,null,null,0,null,null,0,null,null,0,null,null,0]
[null,null,null,null,null,null,null,null,null,null,null,null,null,null,null,null,0,null,null,null,0,null,null,null,0,null,null,null,0,null,null,0,null,null,null,0,null,null,0,null,null,0,null,null,0]
[null,null,null,null,null,null,null,null,null,null,null,null,null,null,null,null,0,null,null,null,0,null,null,null,0,null,null,null,0,null,null,0,null,null,null,0,null,null,0,null,null,0,null,null,0]
[null,null,null,null,null,null,null,null,null,null,null,null,null,null,null,null,0,null,null,null,0,null,null,null,0,null,null,null,0,null,null,0,null,null,null,0,null,null,0,null,null,0,null,null,0]
[null,null,null,null,null,null,null,null,null,null,null,null,null,null,null,null,0,null,null,null,0,null,null,null,0,null,null,null,0,null,null,0,null,null,null,0,null,null,0,null,null,0,null,null,0]
[null,null,null,null,null,null,null,null,null,null,null,null,null,null,null,null,0,null,null,null,0,null,null,null,0,null,null,null,0,null,null,0,null,null,null,0,null,null,0,null,null,0,null,null,0]
[null,null,null,null,null,null,null,null,null,null,null,null,null,null,null,null,0,null,null,null,0,null,null,null,0,null,null,null,0,null,null,0,null,null,null,0,null,null,0,null,null,0,null,null,0]
[null,null,null,null,null,null,null,null,null,null,null,null,null,null,null,null,0,null,null,null,0,null,null,null,0,null,null,null,0,null,null,0,null,null,null,0,null,null,0,null,null,0,null,null,0]
[null,null,null,null,null,null,null,null,null,null,null,null,null,null,null,null,0,null,null,null,0,null,null,null,0,null,null,null,0,null,null,0,null,null,null,0,null,null,0,null,null,0,null,null,0]
[null,null,null,null,null,null,null,null,null,null,null,null,null,null,null,null,0,null,null,null,0,null,null,null,0,null,null,null,0,null,null,0,null,null,null,0,null,null,0,null,null,0,null,null,0]
[null,null,null,null,null,null,null,null,null,null,null,null,null,null,null,null,0,null,null,null,0,null,null,null,0,null,null,null,0,null,null,0,null,null,null,0,null,null,0,null,null,0,null,null,0]
[null,null,null,null,null,null,null,null,null,null,null,null,null,null,null,null,0,null,null,null,0,null,null,null,0,null,null,null,0,null,null,0,null,null,null,0,null,null,0,null,null,0,null,null,0]
[null,null,null,null,null,null,null,null,null,null,null,null,null,null,null,null,0,null,null,null,0,null,null,null,0,null,null,null,0,null,null,0,null,null,null,0,null,null,0,null,null,0,null,null,0]
[null,null,null,null,null,null,null,null,null,null,null,null,null,null,null,null,0,null,null,null,0,null,null,null,0,null,null,null,0,null,null,0,null,null,null,0,null,null,0,null,null,0,null,null,0]
[null,null,null,null,null,null,null,null,null,null,null,null,null,null,null,null,0,null,null,null,0,null,null,null,0,null,null,null,0,null,null,0,null,null,null,0,null,null,0,null,null,0,null,null,0]
[null,null,null,null,null,null,null,null,null,null,null,null,null,null,null,null,0,null,null,null,0,null,null,null,0,null,null,null,0,null,null,0,null,null,null,0,null,null,0,null,null,0,null,null,0]
[null,null,null,null,null,null,null,null,null,null,null,null,null,null,null,null,0,null,null,null,0,null,null,null,0,null,null,null,0,null,null,0,null,null,null,0,null,null,0,null,null,0,null,null,0]
[null,null,null,null,null,null,null,null,null,null,null,null,null,null,null,null,0,null,null,null,0,null,null,null,0,null,null,null,0,null,null,0,null,null,null,0,null,null,0,null,null,0,null,null,0]
[null,null,null,null,null,null,null,null,null,null,null,null,null,null,null,null,0,null,null,null,0,null,null,null,0,null,null,null,0,null,null,0,null,null,null,0,null,null,0,null,null,0,null,null,0]
[null,null,null,null,null,null,null,null,null,null,null,null,null,null,null,null,0,null,null,null,0,null,null,null,0,null,null,null,0,null,null,0,null,null,null,0,null,null,0,null,null,0,null,null,0]
[null,null,null,null,null,null,null,null,null,null,null,null,null,null,null,null,0,null,null,null,0,null,null,null,0,null,null,null,0,null,null,0,null,null,null,0,null,null,0,null,null,0,null,null,0]
[null,null,null,null,null,null,null,null,null,null,null,null,null,null,null,null,0,null,null,null,0,null,null,null,0,null,null,null,0,null,null,0,null,null,null,0,null,null,0,null,null,0,null,null,0]
[null,null,null,null,null,null,null,null,null,null,null,null,null,null,null,null,0,null,null,null,0,null,null,null,0,null,null,null,0,null,null,0,null,null,null,0,null,null,0,null,null,0,null,null,0]
[null,null,null,null,null,null,null,null,null,null,null,null,null,null,null,null,0,null,null,null,0,null,null,null,0,null,null,null,0,null,null,0,null,null,null,0,null,null,0,null,null,0,null,null,0]
[null,null,null,null,null,null,null,null,null,null,null,null,null,null,null,null,0,null,null,null,0,null,null,null,0,null,null,null,0,null,null,0,null,null,null,0,null,null,0,null,null,0,null,null,0]
[null,null,null,null,null,null,null,null,null,null,null,null,null,null,null,null,0,null,null,null,0,null,null,null,0,null,null,null,0,null,null,0,null,null,null,0,null,null,0,null,null,0,null,null,0]
[null,null,null,null,null,null,null,null,null,null,null,null,null,null,null,null,0,null,null,null,0,null,null,null,0,null,null,null,0,null,null,0,null,null,null,0,null,null,0,null,null,0,null,null,0]
[null,null,null,null,null,null,null,null,null,null,null,null,null,null,null,null,{"$f":"($G1987+($G1987*(P1987/100)))*$R$1","v":0},null,null,null,{"$f":"($G1987+($G1987*(T1987/100)))*$R$1","v":0},null,null,null,{"$f":"($G1987+($G1987*(X1987/100)))*$R$1","v":0},null,null,null,{"$f":"($G1987+($G1987*(AB1987/100)))*$R$1","v":0},null,null,{"$f":"($G1987+($G1987*(AE1987/100)))*$R$1","v":0},null,null,null,{"$f":"($G1987+($G1987*(AI1987/100)))*$R$1","v":0},null,null,{"$f":"($G1987+($G1987*(AL1987/100)))*$R$1","v":0},null,null,{"$f":"($G1987+($G1987*(AO1987/100)))*$R$1","v":0},null,null,{"$f":"($G1987+($G1987*(AR1987/100)))*$R$1","v":0}]
[null,null,null,null,null,null,null,null,null,null,null,null,null,null,null,null,0,null,null,null,0,null,null,null,0,null,null,null,0,null,null,0,null,null,null,0,null,null,0,null,null,0,null,null,0]
[null,null,null,null,null,null,null,null,null,null,null,null,null,null,null,null,0,null,null,null,0,null,null,null,0,null,null,null,0,null,null,0,null,null,null,0,null,null,0,null,null,0,null,null,0]
[null,null,null,null,null,null,null,null,null,null,null,null,null,null,null,null,0,null,null,null,0,null,null,null,0,null,null,null,0,null,null,0,null,null,null,0,null,null,0,null,null,0,null,null,0]
[null,null,null,null,null,null,null,null,null,null,null,null,null,null,null,null,0,null,null,null,0,null,null,null,0,null,null,null,0,null,null,0,null,null,null,0,null,null,0,null,null,0,null,null,0]
[null,null,null,null,null,null,null,null,null,null,null,null,null,null,null,null,0,null,null,null,0,null,null,null,0,null,null,null,0,null,null,0,null,null,null,0,null,null,0,null,null,0,null,null,0]
[null,null,null,null,null,null,null,null,null,null,null,null,null,null,null,null,0,null,null,null,0,null,null,null,0,null,null,null,0,null,null,0,null,null,null,0,null,null,0,null,null,0,null,null,0]
[null,null,null,null,null,null,null,null,null,null,null,null,null,null,null,null,0,null,null,null,0,null,null,null,0,null,null,null,0,null,null,0,null,null,null,0,null,null,0,null,null,0,null,null,0]
[null,null,null,null,null,null,null,null,null,null,null,null,null,null,null,null,0,null,null,null,0,null,null,null,0,null,null,null,0,null,null,0,null,null,null,0,null,null,0,null,null,0,null,null,0]
[null,null,null,null,null,null,null,null,null,null,null,null,null,null,null,null,0,null,null,null,0,null,null,null,0,null,null,null,0,null,null,0,null,null,null,0,null,null,0,null,null,0,null,null,0]
[null,null,null,null,null,null,null,null,null,null,null,null,null,null,null,null,0,null,null,null,0,null,null,null,0,null,null,null,0,null,null,0,null,null,null,0,null,null,0,null,null,0,null,null,0]
[null,null,null,null,null,null,null,null,null,null,null,null,null,null,null,null,0,null,null,null,0,null,null,null,0,null,null,null,0,null,null,0,null,null,null,0,null,null,0,null,null,0,null,null,0]
[null,null,null,null,null,null,null,null,null,null,null,null,null,null,null,null,0,null,null,null,0,null,null,null,0,null,null,null,0,null,null,0,null,null,null,0,null,null,0,null,null,0,null,null,0]
[null,null,null,null,null,null,null,null,null,null,null,null,null,null,null,null,0,null,null,null,0,null,null,null,0,null,null,null,0,null,null,0,null,null,null,0,null,null,0,null,null,0,null,null,0]
[null,null,null,null,null,null,null,null,null,null,null,null,null,null,null,null,0,null,null,null,0,null,null,null,0,null,null,null,0,null,null,0,null,null,null,0,null,null,0,null,null,0,null,null,0]
[null,null,null,null,null,null,null,null,null,null,null,null,null,null,null,null,0,null,null,null,0,null,null,null,0,null,null,null,0,null,null,0,null,null,null,0,null,null,0,null,null,0,null,null,0]
[null,null,null,null,null,null,null,null,null,null,null,null,null,null,null,null,0,null,null,null,0,null,null,null,0,null,null,null,0,null,null,0,null,null,null,0,null,null,0,null,null,0,null,null,0]
[null,null,null,null,null,null,null,null,null,null,null,null,null,null,null,null,0,null,null,null,0,null,null,null,0,null,null,null,0,null,null,0,null,null,null,0,null,null,0,null,null,0,null,null,0]
[null,null,null,null,null,null,null,null,null,null,null,null,null,null,null,null,0,null,null,null,0,null,null,null,0,null,null,null,0,null,null,0,null,null,null,0,null,null,0,null,null,0,null,null,0]
[null,null,null,null,null,null,null,null,null,null,null,null,null,null,null,null,0,null,null,null,0,null,null,null,0,null,null,null,0,null,null,0,null,null,null,0,null,null,0,null,null,0,null,null,0]
[null,null,null,null,null,null,null,null,null,null,null,null,null,null,null,null,0,null,null,null,0,null,null,null,0,null,null,null,0,null,null,0,null,null,null,0,null,null,0,null,null,0,null,null,0]
[null,null,null,null,null,null,null,null,null,null,null,null,null,null,null,null,0,null,null,null,0,null,null,null,0,null,null,null,0,null,null,0,null,null,null,0,null,null,0,null,null,0,null,null,0]
[null,null,null,null,null,null,null,null,null,null,null,null,null,null,null,null,{"$f":"($G2179+($G2179*(P2179/100)))*$R$1","v":0},null,null,null,{"$f":"($G2179+($G2179*(T2179/100)))*$R$1","v":0},null,null,null,{"$f":"($G2179+($G2179*(X2179/100)))*$R$1","v":0},null,null,null,{"$f":"($G2179+($G2179*(AB2179/100)))*$R$1","v":0},null,null,{"$f":"($G2179+($G2179*(AE2179/100)))*$R$1","v":0},null,null,null,{"$f":"($G2179+($G2179*(AI2179/100)))*$R$1","v":0},null,null,{"$f":"($G2179+($G2179*(AL2179/100)))*$R$1","v":0},null,null,{"$f":"($G2179+($G2179*(AO2179/100)))*$R$1","v":0},null,null,{"$f":"($G2179+($G2179*(AR2179/100)))*$R$1","v":0}]
[null,null,null,null,null,null,null,null,null,null,null,null,null,null,null,null,0,null,null,null,0,null,null,null,0,null,null,null,0,null,null,0,null,null,null,0,null,null,0,null,null,0,null,null,0]
[null,null,null,null,null,null,null,null,null,null,null,null,null,null,null,null,0,null,null,null,0,null,null,null,0,null,null,null,0,null,null,0,null,null,null,0,null,null,0,null,null,0,null,null,0]
[null,null,null,null,null,null,null,null,null,null,null,null,null,null,null,null,0,null,null,null,0,null,null,null,0,null,null,null,0,null,null,0,null,null,null,0,null,null,0,null,null,0,null,null,0]
[null,null,null,null,null,null,null,null,null,null,null,null,null,null,null,null,0,null,null,null,0,null,null,null,0,null,null,null,0,null,null,0,null,null,null,0,null,null,0,null,null,0,null,null,0]
[null,null,null,null,null,null,null,null,null,null,null,null,null,null,null,null,0,null,null,null,0,null,null,null,0,null,null,null,0,null,null,0,null,null,null,0,null,null,0,null,null,0,null,null,0]
[null,null,null,null,null,null,null,null,null,null,null,null,null,null,null,null,0,null,null,null,0,null,null,null,0,null,null,null,0,null,null,0,null,null,null,0,null,null,0,null,null,0,null,null,0]
[null,null,null,null,null,null,null,null,null,null,null,null,null,null,null,null,0,null,null,null,0,null,null,null,0,null,null,null,0,null,null,0,null,null,null,0,null,null,0,null,null,0,null,null,0]
[null,null,null,null,null,null,null,null,null,null,null,null,null,null,null,null,0,null,null,null,0,null,null,null,0,null,null,null,0,null,null,0,null,null,null,0,null,null,0,null,null,0,null,null,0]
[null,null,null,null,null,null,null,null,null,null,null,null,null,null,null,null,0,null,null,null,0,null,null,null,0,null,null,null,0,null,null,0,null,null,null,0,null,null,0,null,null,0,null,null,0]
[null,null,null,null,null,null,null,null,null,null,null,null,null,null,null,null,0,null,null,null,0,null,null,null,0,null,null,null,0,null,null,0,null,null,null,0,null,null,0,null,null,0,null,null,0]
[null,null,null,null,null,null,null,null,null,null,null,null,null,null,null,null,0,null,null,null,0,null,null,null,0,null,null,null,0,null,null,0,null,null,null,0,null,null,0,null,null,0,null,null,0]
[null,null,null,null,null,null,null,null,null,null,null,null,null,null,null,null,0,null,null,null,0,null,null,null,0,null,null,null,0,null,null,0,null,null,null,0,null,null,0,null,null,0,null,null,0]
[null,null,null,null,null,null,null,null,null,null,null,null,null,null,null,null,0,null,null,null,0,null,null,null,0,null,null,null,0,null,null,0,null,null,null,0,null,null,0,null,null,0,null,null,0]
[null,null,null,null,null,null,null,null,null,null,null,null,null,null,null,null,0,null,null,null,0,null,null,null,0,null,null,null,0,null,null,0,null,null,null,0,null,null,0,null,null,0,null,null,0]
[null,null,null,null,null,null,null,null,null,null,null,null,null,null,null,null,{"$f":"($G2307+($G2307*(P2307/100)))*$R$1","v":0},null,null,null,{"$f":"($G2307+($G2307*(T2307/100)))*$R$1","v":0},null,null,null,{"$f":"($G2307+($G2307*(X2307/100)))*$R$1","v":0},null,null,null,{"$f":"($G2307+($G2307*(AB2307/100)))*$R$1","v":0},null,null,{"$f":"($G2307+($G2307*(AE2307/100)))*$R$1","v":0},null,null,null,{"$f":"($G2307+($G2307*(AI2307/100)))*$R$1","v":0},null,null,{"$f":"($G2307+($G2307*(AL2307/100)))*$R$1","v":0},null,null,{"$f":"($G2307+($G2307*(AO2307/100)))*$R$1","v":0},null,null,{"$f":"($G2307+($G2307*(AR2307/100)))*$R$1","v":0}]
[null,null,null,null,null,null,null,null,null,null,null,null,null,null,null,null,0,null,null,null,0,null,null,null,0,null,null,null,0,null,null,0,null,null,null,0,null,null,0,null,null,0,null,null,0]
[null,null,null,null,null,null,null,null,null,null,null,null,null,null,null,null,0,null,null,null,0,null,null,null,0,null,null,null,0,null,null,0,null,null,null,0,null,null,0,null,null,0,null,null,0]
[null,null,null,null,null,null,null,null,null,null,null,null,null,null,null,null,0,null,null,null,0,null,null,null,0,null,null,null,0,null,null,0,null,null,null,0,null,null,0,null,null,0,null,null,0]
[null,null,null,null,null,null,null,null,null,null,null,null,null,null,null,null,0,null,null,null,0,null,null,null,0,null,null,null,0,null,null,0,null,null,null,0,null,null,0,null,null,0,null,null,0]
[null,null,null,null,null,null,null,null,null,null,null,null,null,null,null,null,0,null,null,null,0,null,null,null,0,null,null,null,0,null,null,0,null,null,null,0,null,null,0,null,null,0,null,null,0]
[null,null,null,null,null,null,null,null,null,null,null,null,null,null,null,null,0,null,null,null,0,null,null,null,0,null,null,null,0,null,null,0,null,null,null,0,null,null,0,null,null,0,null,null,0]
[null,null,null,null,null,null,null,null,null,null,null,null,null,null,null,null,0,null,null,null,0,null,null,null,0,null,null,null,0,null,null,0,null,null,null,0,null,null,0,null,null,0,null,null,0]
[null,null,null,null,null,null,null,null,null,null,null,null,null,null,null,null,0,null,null,null,0,null,null,null,0,null,null,null,0,null,null,0,null,null,null,0,null,null,0,null,null,0,null,null,0]
[null,null,null,null,null,null,null,null,null,null,null,null,null,null,null,null,0,null,null,null,0,null,null,null,0,null,null,null,0,null,null,0,null,null,null,0,null,null,0,null,null,0,null,null,0]
[null,null,null,null,null,null,null,null,null,null,null,null,null,null,null,null,0,null,null,null,0,null,null,null,0,null,null,null,0,null,null,0,null,null,null,0,null,null,0,null,null,0,null,null,0]
[null,null,null,null,null,null,null,null,null,null,null,null,null,null,null,null,0,null,null,null,0,null,null,null,0,null,null,null,0,null,null,0,null,null,null,0,null,null,0,null,null,0,null,null,0]
[null,null,null,null,null,null,null,null,null,null,null,null,null,null,null,null,0,null,null,null,0,null,null,null,0,null,null,null,0,null,null,0,null,null,null,0,null,null,0,null,null,0,null,null,0]
[null,null,null,null,null,null,null,null,null,null,null,null,null,null,null,null,0,null,null,null,0,null,null,null,0,null,null,null,0,null,null,0,null,null,null,0,null,null,0,null,null,0,null,null,0]
[null,null,null,null,null,null,null,null,null,null,null,null,null,null,null,null,0,null,null,null,0,null,null,null,0,null,null,null,0,null,null,0,null,null,null,0,null,null,0,null,null,0,null,null,0]
[null,null,null,null,null,null,null,null,null,null,null,null,null,null,null,null,{"$f":"($G2435+($G2435*(P2435/100)))*$R$1","v":0},null,null,null,{"$f":"($G2435+($G2435*(T2435/100)))*$R$1","v":0},null,null,null,{"$f":"($G2435+($G2435*(X2435/100)))*$R$1","v":0},null,null,null,{"$f":"($G2435+($G2435*(AB2435/100)))*$R$1","v":0},null,null,{"$f":"($G2435+($G2435*(AE2435/100)))*$R$1","v":0},null,null,null,{"$f":"($G2435+($G2435*(AI2435/100)))*$R$1","v":0},null,null,{"$f":"($G2435+($G2435*(AL2435/100)))*$R$1","v":0},null,null,{"$f":"($G2435+($G2435*(AO2435/100)))*$R$1","v":0},null,null,{"$f":"($G2435+($G2435*(AR2435/100)))*$R$1","v":0}]
[null,null,null,null,null,null,null,null,null,null,null,null,null,null,null,null,0,null,null,null,0,null,null,null,0,null,null,null,0,null,null,0,null,null,null,0,null,null,0,null,null,0,null,null,0]
[null,null,null,null,null,null,null,null,null,null,null,null,null,null,null,null,0,null,null,null,0,null,null,null,0,null,null,null,0,null,null,0,null,null,null,0,null,null,0,null,null,0,null,null,0]
[null,null,null,null,null,null,null,null,null,null,null,null,null,null,null,null,0,null,null,null,0,null,null,null,0,null,null,null,0,null,null,0,null,null,null,0,null,null,0,null,null,0,null,null,0]
[null,null,null,null,null,null,null,null,null,null,null,null,null,null,null,null,0,null,null,null,0,null,null,null,0,null,null,null,0,null,null,0,null,null,null,0,null,null,0,null,null,0,null,null,0]
[null,null,null,null,null,null,null,null,null,null,null,null,null,null,null,null,0,null,null,null,0,null,null,null,0,null,null,null,0,null,null,0,null,null,null,0,null,null,0,null,null,0,null,null,0]
[null,null,null,null,null,null,null,null,null,null,null,null,null,null,null,null,0,null,null,null,0,null,null,null,0,null,null,null,0,null,null,0,null,null,null,0,null,null,0,null,null,0,null,null,0]
[null,null,null,null,null,null,null,null,null,null,null,null,null,null,null,null,0,null,null,null,0,null,null,null,0,null,null,null,0,null,null,0,null,null,null,0,null,null,0,null,null,0,null,null,0]
[null,null,null,null,null,null,null,null,null,null,null,null,null,null,null,null,0,null,null,null,0,null,null,null,0,null,null,null,0,null,null,0,null,null,null,0,null,null,0,null,null,0,null,null,0]
[null,null,null,null,null,null,null,null,null,null,null,null,null,null,null,null,0,null,null,null,0,null,null,null,0,null,null,null,0,null,null,0,null,null,null,0,null,null,0,null,null,0,null,null,0]
[null,null,null,null,null,null,null,null,null,null,null,null,null,null,null,null,0,null,null,null,0,null,null,null,0,null,null,null,0,null,null,0,null,null,null,0,null,null,0,null,null,0,null,null,0]
[null,null,null,null,null,null,null,null,null,null,null,null,null,null,null,null,0,null,null,null,0,null,null,null,0,null,null,null,0,null,null,0,null,null,null,0,null,null,0,null,null,0,null,null,0]
[null,null,null,null,null,null,null,null,null,null,null,null,null,null,null,null,0,null,null,null,0,null,null,null,0,null,null,null,0,null,null,0,null,null,null,0,null,null,0,null,null,0,null,null,0]
[null,null,null,null,null,null,null,null,null,null,null,null,null,null,null,null,0,null,null,null,0,null,null,null,0,null,null,null,0,null,null,0,null,null,null,0,null,null,0,null,null,0,null,null,0]
[null,null,null,null,null,null,null,null,null,null,null,null,null,null,null,null,0,null,null,null,0,null,null,null,0,null,null,null,0,null,null,0,null,null,null,0,null,null,0,null,null,0,null,null,0]
[null,null,null,null,null,null,null,null,null,null,null,null,null,null,null,null,0,null,null,null,0,null,null,null,0,null,null,null,0,null,null,0,null,null,null,0,null,null,0,null,null,0,null,null,0]
[null,null,null,null,null,null,null,null,null,null,null,null,null,null,null,null,0,null,null,null,0,null,null,null,0,null,null,null,0,null,null,0,null,null,null,0,null,null,0,null,null,0,null,null,0]
[null,null,null,null,null,null,null,null,null,null,null,null,null,null,null,null,0,null,null,null,0,null,null,null,0,null,null,null,0,null,null,0,null,null,null,0,null,null,0,null,null,0,null,null,0]
[null,null,null,null,null,null,null,null,null,null,null,null,null,null,null,null,0,null,null,null,0,null,null,null,0,null,null,null,0,null,null,0,null,null,null,0,null,null,0,null,null,0,null,null,0]
[null,null,null,null,null,null,null,null,null,null,null,null,null,null,null,null,0,null,null,null,0,null,null,null,0,null,null,null,0,null,null,0,null,null,null,0,null,null,0,null,null,0,null,null,0]
[null,null,null,null,null,null,null,null,null,null,null,null,null,null,null,null,0,null,null,null,0,null,null,null,0,null,null,null,0,null,null,0,null,null,null,0,null,null,0,null,null,0,null,null,0]
[null,null,null,null,null,null,null,null,null,null,null,null,null,null,null,null,0,null,null,null,0,null,null,null,0,null,null,null,0,null,null,0,null,null,null,0,null,null,0,null,null,0,null,null,0]
[null,null,null,null,null,null,null,null,null,null,null,null,null,null,null,null,{"$f":"($G2627+($G2627*(P2627/100)))*$R$1","v":0},null,null,null,{"$f":"($G2627+($G2627*(T2627/100)))*$R$1","v":0},null,null,null,{"$f":"($G2627+($G2627*(X2627/100)))*$R$1","v":0},null,null,null,{"$f":"($G2627+($G2627*(AB2627/100)))*$R$1","v":0},null,null,{"$f":"($G2627+($G2627*(AE2627/100)))*$R$1","v":0},null,null,null,{"$f":"($G2627+($G2627*(AI2627/100)))*$R$1","v":0},null,null,{"$f":"($G2627+($G2627*(AL2627/100)))*$R$1","v":0},null,null,{"$f":"($G2627+($G2627*(AO2627/100)))*$R$1","v":0},null,null,{"$f":"($G2627+($G2627*(AR2627/100)))*$R$1","v":0}]
[null,null,null,null,null,null,null,null,null,null,null,null,null,null,null,null,0,null,null,null,0,null,null,null,0,null,null,null,0,null,null,0,null,null,null,0,null,null,0,null,null,0,null,null,0]
[null,null,null,null,null,null,null,null,null,null,null,null,null,null,null,null,0,null,null,null,0,null,null,null,0,null,null,null,0,null,null,0,null,null,null,0,null,null,0,null,null,0,null,null,0]
[null,null,null,null,null,null,null,null,null,null,null,null,null,null,null,null,0,null,null,null,0,null,null,null,0,null,null,null,0,null,null,0,null,null,null,0,null,null,0,null,null,0,null,null,0]
[null,null,null,null,null,null,null,null,null,null,null,null,null,null,null,null,0,null,null,null,0,null,null,null,0,null,null,null,0,null,null,0,null,null,null,0,null,null,0,null,null,0,null,null,0]
[null,null,null,null,null,null,null,null,null,null,null,null,null,null,null,null,0,null,null,null,0,null,null,null,0,null,null,null,0,null,null,0,null,null,null,0,null,null,0,null,null,0,null,null,0]
[null,null,null,null,null,null,null,null,null,null,null,null,null,null,null,null,0,null,null,null,0,null,null,null,0,null,null,null,0,null,null,0,null,null,null,0,null,null,0,null,null,0,null,null,0]
[null,null,null,null,null,null,null,null,null,null,null,null,null,null,null,null,0,null,null,null,0,null,null,null,0,null,null,null,0,null,null,0,null,null,null,0,null,null,0,null,null,0,null,null,0]
[null,null,null,null,null,null,null,null,null,null,null,null,null,null,null,null,0,null,null,null,0,null,null,null,0,null,null,null,0,null,null,0,null,null,null,0,null,null,0,null,null,0,null,null,0]
[null,null,null,null,null,null,null,null,null,null,null,null,null,null,null,null,0,null,null,null,0,null,null,null,0,null,null,null,0,null,null,0,null,null,null,0,null,null,0,null,null,0,null,null,0]
[null,null,null,null,null,null,null,null,null,null,null,null,null,null,null,null,0,null,null,null,0,null,null,null,0,null,null,null,0,null,null,0,null,null,null,0,null,null,0,null,null,0,null,null,0]
[null,null,null,null,null,null,null,null,null,null,null,null,null,null,null,null,0,null,null,null,0,null,null,null,0,null,null,null,0,null,null,0,null,null,null,0,null,null,0,null,null,0,null,null,0]
[null,null,null,null,null,null,null,null,null,null,null,null,null,null,null,null,0,null,null,null,0,null,null,null,0,null,null,null,0,null,null,0,null,null,null,0,null,null,0,null,null,0,null,null,0]
[null,null,null,null,null,null,null,null,null,null,null,null,null,null,null,null,0,null,null,null,0,null,null,null,0,null,null,null,0,null,null,0,null,null,null,0,null,null,0,null,null,0,null,null,0]
[null,null,null,null,null,null,null,null,null,null,null,null,null,null,null,null,0,null,null,null,0,null,null,null,0,null,null,null,0,null,null,0,null,null,null,0,null,null,0,null,null,0,null,null,0]
[null,null,null,null,null,null,null,null,null,null,null,null,null,null,null,null,0,null,null,null,0,null,null,null,0,null,null,null,0,null,null,0,null,null,null,0,null,null,0,null,null,0,null,null,0]
[null,null,null,null,null,null,null,null,null,null,null,null,null,null,null,null,0,null,null,null,0,null,null,null,0,null,null,null,0,null,null,0,null,null,null,0,null,null,0,null,null,0,null,null,0]
[null,null,null,null,null,null,null,null,null,null,null,null,null,null,null,null,0,null,null,null,0,null,null,null,0,null,null,null,0,null,null,0,null,null,null,0,null,null,0,null,null,0,null,null,0]
[null,null,null,null,null,null,null,null,null,null,null,null,null,null,null,null,0,null,null,null,0,null,null,null,0,null,null,null,0,null,null,0,null,null,null,0,null,null,0,null,null,0,null,null,0]
[null,null,null,null,null,null,null,null,null,null,null,null,null,null,null,null,0,null,null,null,0,null,null,null,0,null,null,null,0,null,null,0,null,null,null,0,null,null,0,null,null,0,null,null,0]
[null,null,null,null,null,null,null,null,null,null,null,null,null,null,null,null,0,null,null,null,0,null,null,null,0,null,null,null,0,null,null,0,null,null,null,0,null,null,0,null,null,0,null,null,0]
[null,null,null,null,null,null,null,null,null,null,null,null,null,null,null,null,0,null,null,null,0,null,null,null,0,null,null,null,0,null,null,0,null,null,null,0,null,null,0,null,null,0,null,null,0]
[null,null,null,null,null,null,null,null,null,null,null,null,null,null,null,null,0,null,null,null,0,null,null,null,0,null,null,null,0,null,null,0,null,null,null,0,null,null,0,null,null,0,null,null,0]
[null,null,null,null,null,null,null,null,null,null,null,null,null,null,null,null,0,null,null,null,0,null,null,null,0,null,null,null,0,null,null,0,null,null,null,0,null,null,0,null,null,0,null,null,0]
[null,null,null,null,null,null,null,null,null,null,null,null,null,null,null,null,0,null,null,null,0,null,null,null,0,null,null,null,0,null,null,0,null,null,null,0,null,null,0,null,null,0,null,null,0]
[null,null,null,null,null,null,null,null,null,null,null,null,null,null,null,null,0,null,null,null,0,null,null,null,0,null,null,null,0,null,null,0,null,null,null,0,null,null,0,null,null,0,null,null,0]
[null,null,null,null,null,null,null,null,null,null,null,null,null,null,null,null,0,null,null,null,0,null,null,null,0,null,null,null,0,null,null,0,null,null,null,0,null,null,0,null,null,0,null,null,0]
[null,null,null,null,null,null,null,null,null,null,null,null,null,null,null,null,0,null,null,null,0,null,null,null,0,null,null,null,0,null,null,0,null,null,null,0,null,null,0,null,null,0,null,null,0]
[null,null,null,null,null,null,null,null,null,null,null,null,null,null,null,null,0,null,null,null,0,null,null,null,0,null,null,null,0,null,null,0,null,null,null,0,null,null,0,null,null,0,null,null,0]
[null,null,null,null,null,null,null,null,null,null,null,null,null,null,null,null,0,null,null,null,0,null,null,null,0,null,null,null,0,null,null,0,null,null,null,0,null,null,0,null,null,0,null,null,0]
[null,null,null,null,null,null,null,null,null,null,null,null,null,null,null,null,0,null,null,null,0,null,null,null,0,null,null,null,0,null,null,0,null,null,null,0,null,null,0,null,null,0,null,null,0]
[null,null,null,null,null,null,null,null,null,null,null,null,null,null,null,null,0,null,null,null,0,null,null,null,0,null,null,null,0,null,null,0,null,null,null,0,null,null,0,null,null,0,null,null,0]
[null,null,null,null,null,null,null,null,null,null,null,null,null,null,null,null,0,null,null,null,0,null,null,null,0,null,null,null,0,null,null,0,null,null,null,0,null,null,0,null,null,0,null,null,0]
[null,null,null,null,null,null,null,null,null,null,null,null,null,null,null,null,0,null,null,null,0,null,null,null,0,null,null,null,0,null,null,0,null,null,null,0,null,null,0,null,null,0,null,null,0]
[null,null,null,null,null,null,null,null,null,null,null,null,null,null,null,null,0,null,null,null,0,null,null,null,0,null,null,null,0,null,null,0,null,null,null,0,null,null,0,null,null,0,null,null,0]
[null,null,null,null,null,null,null,null,null,null,null,null,null,null,null,null,0,null,null,null,0,null,null,null,0,null,null,null,0,null,null,0,null,null,null,0,null,null,0,null,null,0,null,null,0]
[null,null,null,null,null,null,null,null,null,null,null,null,null,null,null,null,0,null,null,null,0,null,null,null,0,null,null,null,0,null,null,0,null,null,null,0,null,null,0,null,null,0,null,null,0]
[null,null,null,null,null,null,null,null,null,null,null,null,null,null,null,null,0,null,null,null,0,null,null,null,0,null,null,null,0,null,null,0,null,null,null,0,null,null,0,null,null,0,null,null,0]
[null,null,null,null,null,null,null,null,null,null,null,null,null,null,null,null,0,null,null,null,0,null,null,null,0,null,null,null,0,null,null,0,null,null,null,0,null,null,0,null,null,0,null,null,0]
[null,null,null,null,null,null,null,null,null,null,null,null,null,null,null,null,0,null,null,null,0,null,null,null,0,null,null,null,0,null,null,0,null,null,null,0,null,null,0,null,null,0,null,null,0]
[null,null,null,null,null,null,null,null,null,null,null,null,null,null,null,null,0,null,null,null,0,null,null,null,0,null,null,null,0,null,null,0,null,null,null,0,null,null,0,null,null,0,null,null,0]
[null,null,null,null,null,null,null,null,null,null,null,null,null,null,null,null,0,null,null,null,0,null,null,null,0,null,null,null,0,null,null,0,null,null,null,0,null,null,0,null,null,0,null,null,0]
[null,null,null,null,null,null,null,null,null,null,null,null,null,null,null,null,0,null,null,null,0,null,null,null,0,null,null,null,0,null,null,0,null,null,null,0,null,null,0,null,null,0,null,null,0]
[null,null,null,null,null,null,null,null,null,null,null,null,null,null,null,null,{"$f":"($G3011+($G3011*(P3011/100)))*$R$1","v":0},null,null,null,{"$f":"($G3011+($G3011*(T3011/100)))*$R$1","v":0},null,null,null,{"$f":"($G3011+($G3011*(X3011/100)))*$R$1","v":0},null,null,null,{"$f":"($G3011+($G3011*(AB3011/100)))*$R$1","v":0},null,null,{"$f":"($G3011+($G3011*(AE3011/100)))*$R$1","v":0},null,null,null,{"$f":"($G3011+($G3011*(AI3011/100)))*$R$1","v":0},null,null,{"$f":"($G3011+($G3011*(AL3011/100)))*$R$1","v":0},null,null,{"$f":"($G3011+($G3011*(AO3011/100)))*$R$1","v":0},null,null,{"$f":"($G3011+($G3011*(AR3011/100)))*$R$1","v":0}]
[null,null,null,null,null,null,null,null,null,null,null,null,null,null,null,null,0,null,null,null,0,null,null,null,0,null,null,null,0,null,null,0,null,null,null,0,null,null,0,null,null,0,null,null,0]
[null,null,null,null,null,null,null,null,null,null,null,null,null,null,null,null,0,null,null,null,0,null,null,null,0,null,null,null,0,null,null,0,null,null,null,0,null,null,0,null,null,0,null,null,0]
[null,null,null,null,null,null,null,null,null,null,null,null,null,null,null,null,0,null,null,null,0,null,null,null,0,null,null,null,0,null,null,0,null,null,null,0,null,null,0,null,null,0,null,null,0]
[null,null,null,null,null,null,null,null,null,null,null,null,null,null,null,null,0,null,null,null,0,null,null,null,0,null,null,null,0,null,null,0,null,null,null,0,null,null,0,null,null,0,null,null,0]
[null,null,null,null,null,null,null,null,null,null,null,null,null,null,null,null,0,null,null,null,0,null,null,null,0,null,null,null,0,null,null,0,null,null,null,0,null,null,0,null,null,0,null,null,0]
[null,null,null,null,null,null,null,null,null,null,null,null,null,null,null,null,0,null,null,null,0,null,null,null,0,null,null,null,0,null,null,0,null,null,null,0,null,null,0,null,null,0,null,null,0]
[null,null,null,null,null,null,null,null,null,null,null,null,null,null,null,null,0,null,null,null,0,null,null,null,0,null,null,null,0,null,null,0,null,null,null,0,null,null,0,null,null,0,null,null,0]
[null,null,null,null,null,null,null,null,null,null,null,null,null,null,null,null,0,null,null,null,0,null,null,null,0,null,null,null,0,null,null,0,null,null,null,0,null,null,0,null,null,0,null,null,0]
[null,null,null,null,null,null,null,null,null,null,null,null,null,null,null,null,0,null,null,null,0,null,null,null,0,null,null,null,0,null,null,0,null,null,null,0,null,null,0,null,null,0,null,null,0]
[null,null,null,null,null,null,null,null,null,null,null,null,null,null,null,null,0,null,null,null,0,null,null,null,0,null,null,null,0,null,null,0,null,null,null,0,null,null,0,null,null,0,null,null,0]
[null,null,null,null,null,null,null,null,null,null,null,null,null,null,null,null,0,null,null,null,0,null,null,null,0,null,null,null,0,null,null,0,null,null,null,0,null,null,0,null,null,0,null,null,0]
[null,null,null,null,null,null,null,null,null,null,null,null,null,null,null,null,0,null,null,null,0,null,null,null,0,null,null,null,0,null,null,0,null,null,null,0,null,null,0,null,null,0,null,null,0]
[null,null,null,null,null,null,null,null,null,null,null,null,null,null,null,null,0,null,null,null,0,null,null,null,0,null,null,null,0,null,null,0,null,null,null,0,null,null,0,null,null,0,null,null,0]
[null,null,null,null,null,null,null,null,null,null,null,null,null,null,null,null,0,null,null,null,0,null,null,null,0,null,null,null,0,null,null,0,null,null,null,0,null,null,0,null,null,0,null,null,0]
[null,null,null,null,null,null,null,null,null,null,null,null,null,null,null,null,0,null,null,null,0,null,null,null,0,null,null,null,0,null,null,0,null,null,null,0,null,null,0,null,null,0,null,null,0]
[null,null,null,null,null,null,null,null,null,null,null,null,null,null,null,null,0,null,null,null,0,null,null,null,0,null,null,null,0,null,null,0,null,null,null,0,null,null,0,null,null,0,null,null,0]
[null,null,null,null,null,null,null,null,null,null,null,null,null,null,null,null,0,null,null,null,0,null,null,null,0,null,null,null,0,null,null,0,null,null,null,0,null,null,0,null,null,0,null,null,0]
[null,null,null,null,null,null,null,null,null,null,null,null,null,null,null,null,0,null,null,null,0,null,null,null,0,null,null,null,0,null,null,0,null,null,null,0,null,null,0,null,null,0,null,null,0]
[null,null,null,null,null,null,null,null,null,null,null,null,null,null,null,null,0,null,null,null,0,null,null,null,0,null,null,null,0,null,null,0,null,null,null,0,null,null,0,null,null,0,null,null,0]
[null,null,null,null,null,null,null,null,null,null,null,null,null,null,null,null,0,null,null,null,0,null,null,null,0,null,null,null,0,null,null,0,null,null,null,0,null,null,0,null,null,0,null,null,0]
[null,null,null,null,null,null,null,null,null,null,null,null,null,null,null,null,0,null,null,null,0,null,null,null,0,null,null,null,0,null,null,0,null,null,null,0,null,null,0,null,null,0,null,null,0]
[null,null,null,null,null,null,null,null,null,null,null,null,null,null,null,null,0,null,null,null,0,null,null,null,0,null,null,null,0,null,null,0,null,null,null,0,null,null,0,null,null,0,null,null,0]
[null,null,null,null,null,null,null,null,null,null,null,null,null,null,null,null,0,null,null,null,0,null,null,null,0,null,null,null,0,null,null,0,null,null,null,0,null,null,0,null,null,0,null,null,0]
[null,null,null,null,null,null,null,null,null,null,null,null,null,null,null,null,0,null,null,null,0,null,null,null,0,null,null,null,0,null,null,0,null,null,null,0,null,null,0,null,null,0,null,null,0]
[null,null,null,null,null,null,null,null,null,null,null,null,null,null,null,null,0,null,null,null,0,null,null,null,0,null,null,null,0,null,null,0,null,null,null,0,null,null,0,null,null,0,null,null,0]
[null,null,null,null,null,null,null,null,null,null,null,null,null,null,null,null,0,null,null,null,0,null,null,null,0,null,null,null,0,null,null,0,null,null,null,0,null,null,0,null,null,0,null,null,0]
[null,null,null,null,null,null,null,null,null,null,null,null,null,null,null,null,0,null,null,null,0,null,null,null,0,null,null,null,0,null,null,0,null,null,null,0,null,null,0,null,null,0,null,null,0]
[null,null,null,null,null,null,null,null,null,null,null,null,null,null,null,null,0,null,null,null,0,null,null,null,0,null,null,null,0,null,null,0,null,null,null,0,null,null,0,null,null,0,null,null,0]
[null,null,null,null,null,null,null,null,null,null,null,null,null,null,null,null,0,null,null,null,0,null,null,null,0,null,null,null,0,null,null,0,null,null,null,0,null,null,0,null,null,0,null,null,0]
[null,null,null,null,null,null,null,null,null,null,null,null,null,null,null,null,0,null,null,null,0,null,null,null,0,null,null,null,0,null,null,0,null,null,null,0,null,null,0,null,null,0,null,null,0]
[null,null,null,null,null,null,null,null,null,null,null,null,null,null,null,null,0,null,null,null,0,null,null,null,0,null,null,null,0,null,null,0,null,null,null,0,null,null,0,null,null,0,null,null,0]
[null,null,null,null,null,null,null,null,null,null,null,null,null,null,null,null,0,null,null,null,0,null,null,null,0,null,null,null,0,null,null,0,null,null,null,0,null,null,0,null,null,0,null,null,0]
[null,null,null,null,null,null,null,null,null,null,null,null,null,null,null,null,0,null,null,null,0,null,null,null,0,null,null,null,0,null,null,0,null,null,null,0,null,null,0,null,null,0,null,null,0]
[null,null,null,null,null,null,null,null,null,null,null,null,null,null,null,null,0,null,null,null,0,null,null,null,0,null,null,null,0,null,null,0,null,null,null,0,null,null,0,null,null,0,null,null,0]
[null,null,null,null,null,null,null,null,null,null,null,null,null,null,null,null,0,null,null,null,0,null,null,null,0,null,null,null,0,null,null,0,null,null,null,0,null,null,0,null,null,0,null,null,0]
[null,null,null,null,null,null,null,null,null,null,null,null,null,null,null,null,0,null,null,null,0,null,null,null,0,null,null,null,0,null,null,0,null,null,null,0,null,null,0,null,null,0,null,null,0]
[null,null,null,null,null,null,null,null,null,null,null,null,null,null,null,null,{"$f":"($G3331+($G3331*(P3331/100)))*$R$1","v":0},null,null,null,{"$f":"($G3331+($G3331*(T3331/100)))*$R$1","v":0},null,null,null,{"$f":"($G3331+($G3331*(X3331/100)))*$R$1","v":0},null,null,null,{"$f":"($G3331+($G3331*(AB3331/100)))*$R$1","v":0},null,null,{"$f":"($G3331+($G3331*(AE3331/100)))*$R$1","v":0},null,null,null,{"$f":"($G3331+($G3331*(AI3331/100)))*$R$1","v":0},null,null,{"$f":"($G3331+($G3331*(AL3331/100)))*$R$1","v":0},null,null,{"$f":"($G3331+($G3331*(AO3331/100)))*$R$1","v":0},null,null,{"$f":"($G3331+($G3331*(AR3331/100)))*$R$1","v":0}]
[null,null,null,null,null,null,null,null,null,null,null,null,null,null,null,null,0,null,null,null,0,null,null,null,0,null,null,null,0,null,null,0,null,null,null,0,null,null,0,null,null,0,null,null,0]
[null,null,null,null,null,null,null,null,null,null,null,null,null,null,null,null,0,null,null,null,0,null,null,null,0,null,null,null,0,null,null,0,null,null,null,0,null,null,0,null,null,0,null,null,0]
[null,null,null,null,null,null,null,null,null,null,null,null,null,null,null,null,0,null,null,null,0,null,null,null,0,null,null,null,0,null,null,0,null,null,null,0,null,null,0,null,null,0,null,null,0]
[null,null,null,null,null,null,null,null,null,null,null,null,null,null,null,null,0,null,null,null,0,null,null,null,0,null,null,null,0,null,null,0,null,null,null,0,null,null,0,null,null,0,null,null,0]
[null,null,null,null,null,null,null,null,null,null,null,null,null,null,null,null,0,null,null,null,0,null,null,null,0,null,null,null,0,null,null,0,null,null,null,0,null,null,0,null,null,0,null,null,0]
[null,null,null,null,null,null,null,null,null,null,null,null,null,null,null,null,0,null,null,null,0,null,null,null,0,null,null,null,0,null,null,0,null,null,null,0,null,null,0,null,null,0,null,null,0]
[null,null,null,null,null,null,null,null,null,null,null,null,null,null,null,null,0,null,null,null,0,null,null,null,0,null,null,null,0,null,null,0,null,null,null,0,null,null,0,null,null,0,null,null,0]
[null,null,null,null,null,null,null,null,null,null,null,null,null,null,null,null,0,null,null,null,0,null,null,null,0,null,null,null,0,null,null,0,null,null,null,0,null,null,0,null,null,0,null,null,0]
[null,null,null,null,null,null,null,null,null,null,null,null,null,null,null,null,0,null,null,null,0,null,null,null,0,null,null,null,0,null,null,0,null,null,null,0,null,null,0,null,null,0,null,null,0]
[null,null,null,null,null,null,null,null,null,null,null,null,null,null,null,null,0,null,null,null,0,null,null,null,0,null,null,null,0,null,null,0,null,null,null,0,null,null,0,null,null,0,null,null,0]
[null,null,null,null,null,null,null,null,null,null,null,null,null,null,null,null,0,null,null,null,0,null,null,null,0,null,null,null,0,null,null,0,null,null,null,0,null,null,0,null,null,0,null,null,0]
[null,null,null,null,null,null,null,null,null,null,null,null,null,null,null,null,0,null,null,null,0,null,null,null,0,null,null,null,0,null,null,0,null,null,null,0,null,null,0,null,null,0,null,null,0]
[null,null,null,null,null,null,null,null,null,null,null,null,null,null,null,null,0,null,null,null,0,null,null,null,0,null,null,null,0,null,null,0,null,null,null,0,null,null,0,null,null,0,null,null,0]
[null,null,null,null,null,null,null,null,null,null,null,null,null,null,null,null,0,null,null,null,0,null,null,null,0,null,null,null,0,null,null,0,null,null,null,0,null,null,0,null,null,0,null,null,0]
[null,null,null,null,null,null,null,null,null,null,null,null,null,null,null,null,{"$f":"($G3459+($G3459*(P3459/100)))*$R$1","v":0},null,null,null,{"$f":"($G3459+($G3459*(T3459/100)))*$R$1","v":0},null,null,null,{"$f":"($G3459+($G3459*(X3459/100)))*$R$1","v":0},null,null,null,{"$f":"($G3459+($G3459*(AB3459/100)))*$R$1","v":0},null,null,{"$f":"($G3459+($G3459*(AE3459/100)))*$R$1","v":0},null,null,null,{"$f":"($G3459+($G3459*(AI3459/100)))*$R$1","v":0},null,null,{"$f":"($G3459+($G3459*(AL3459/100)))*$R$1","v":0},null,null,{"$f":"($G3459+($G3459*(AO3459/100)))*$R$1","v":0},null,null,{"$f":"($G3459+($G3459*(AR3459/100)))*$R$1","v":0}]
[null,null,null,null,null,null,null,null,null,null,null,null,null,null,null,null,0,null,null,null,0,null,null,null,0,null,null,null,0,null,null,0,null,null,null,0,null,null,0,null,null,0,null,null,0]
[null,null,null,null,null,null,null,null,null,null,null,null,null,null,null,null,0,null,null,null,0,null,null,null,0,null,null,null,0,null,null,0,null,null,null,0,null,null,0,null,null,0,null,null,0]
[null,null,null,null,null,null,null,null,null,null,null,null,null,null,null,null,0,null,null,null,0,null,null,null,0,null,null,null,0,null,null,0,null,null,null,0,null,null,0,null,null,0,null,null,0]
[null,null,null,null,null,null,null,null,null,null,null,null,null,null,null,null,0,null,null,null,0,null,null,null,0,null,null,null,0,null,null,0,null,null,null,0,null,null,0,null,null,0,null,null,0]
[null,null,null,null,null,null,null,null,null,null,null,null,null,null,null,null,0,null,null,null,0,null,null,null,0,null,null,null,0,null,null,0,null,null,null,0,null,null,0,null,null,0,null,null,0]
[null,null,null,null,null,null,null,null,null,null,null,null,null,null,null,null,0,null,null,null,0,null,null,null,0,null,null,null,0,null,null,0,null,null,null,0,null,null,0,null,null,0,null,null,0]
[null,null,null,null,null,null,null,null,null,null,null,null,null,null,null,null,0,null,null,null,0,null,null,null,0,null,null,null,0,null,null,0,null,null,null,0,null,null,0,null,null,0,null,null,0]
[null,null,null,null,null,null,null,null,null,null,null,null,null,null,null,null,0,null,null,null,0,null,null,null,0,null,null,null,0,null,null,0,null,null,null,0,null,null,0,null,null,0,null,null,0]
[null,null,null,null,null,null,null,null,null,null,null,null,null,null,null,null,0,null,null,null,0,null,null,null,0,null,null,null,0,null,null,0,null,null,null,0,null,null,0,null,null,0,null,null,0]
[null,null,null,null,null,null,null,null,null,null,null,null,null,null,null,null,0,null,null,null,0,null,null,null,0,null,null,null,0,null,null,0,null,null,null,0,null,null,0,null,null,0,null,null,0]
[null,null,null,null,null,null,null,null,null,null,null,null,null,null,null,null,0,null,null,null,0,null,null,null,0,null,null,null,0,null,null,0,null,null,null,0,null,null,0,null,null,0,null,null,0]
[null,null,null,null,null,null,null,null,null,null,null,null,null,null,null,null,0,null,null,null,0,null,null,null,0,null,null,null,0,null,null,0,null,null,null,0,null,null,0,null,null,0,null,null,0]
[null,null,null,null,null,null,null,null,null,null,null,null,null,null,null,null,0,null,null,null,0,null,null,null,0,null,null,null,0,null,null,0,null,null,null,0,null,null,0,null,null,0,null,null,0]
[null,null,null,null,null,null,null,null,null,null,null,null,null,null,null,null,0,null,null,null,0,null,null,null,0,null,null,null,0,null,null,0,null,null,null,0,null,null,0,null,null,0,null,null,0]
[null,null,null,null,null,null,null,null,null,null,null,null,null,null,null,null,0,null,null,null,0,null,null,null,0,null,null,null,0,null,null,0,null,null,null,0,null,null,0,null,null,0,null,null,0]
[null,null,null,null,null,null,null,null,null,null,null,null,null,null,null,null,0,null,null,null,0,null,null,null,0,null,null,null,0,null,null,0,null,null,null,0,null,null,0,null,null,0,null,null,0]
[null,null,null,null,null,null,null,null,null,null,null,null,null,null,null,null,0,null,null,null,0,null,null,null,0,null,null,null,0,null,null,0,null,null,null,0,null,null,0,null,null,0,null,null,0]
[null,null,null,null,null,null,null,null,null,null,null,null,null,null,null,null,0,null,null,null,0,null,null,null,0,null,null,null,0,null,null,0,null,null,null,0,null,null,0,null,null,0,null,null,0]
[null,null,null,null,null,null,null,null,null,null,null,null,null,null,null,null,0,null,null,null,0,null,null,null,0,null,null,null,0,null,null,0,null,null,null,0,null,null,0,null,null,0,null,null,0]
[null,null,null,null,null,null,null,null,null,null,null,null,null,null,null,null,0,null,null,null,0,null,null,null,0,null,null,null,0,null,null,0,null,null,null,0,null,null,0,null,null,0,null,null,0]
[null,null,null,null,null,null,null,null,null,null,null,null,null,null,null,null,0,null,null,null,0,null,null,null,0,null,null,null,0,null,null,0,null,null,null,0,null,null,0,null,null,0,null,null,0]
[null,null,null,null,null,null,null,null,null,null,null,null,null,null,null,null,0,null,null,null,0,null,null,null,0,null,null,null,0,null,null,0,null,null,null,0,null,null,0,null,null,0,null,null,0]
[null,null,null,null,null,null,null,null,null,null,null,null,null,null,null,null,0,null,null,null,0,null,null,null,0,null,null,null,0,null,null,0,null,null,null,0,null,null,0,null,null,0,null,null,0]
[null,null,null,null,null,null,null,null,null,null,null,null,null,null,null,null,0,null,null,null,0,null,null,null,0,null,null,null,0,null,null,0,null,null,null,0,null,null,0,null,null,0,null,null,0]
[null,null,null,null,null,null,null,null,null,null,null,null,null,null,null,null,0,null,null,null,0,null,null,null,0,null,null,null,0,null,null,0,null,null,null,0,null,null,0,null,null,0,null,null,0]
[null,null,null,null,null,null,null,null,null,null,null,null,null,null,null,null,0,null,null,null,0,null,null,null,0,null,null,null,0,null,null,0,null,null,null,0,null,null,0,null,null,0,null,null,0]
[null,null,null,null,null,null,null,null,null,null,null,null,null,null,null,null,0,null,null,null,0,null,null,null,0,null,null,null,0,null,null,0,null,null,null,0,null,null,0,null,null,0,null,null,0]
[null,null,null,null,null,null,null,null,null,null,null,null,null,null,null,null,0,null,null,null,0,null,null,null,0,null,null,null,0,null,null,0,null,null,null,0,null,null,0,null,null,0,null,null,0]
[null,null,null,null,null,null,null,null,null,null,null,null,null,null,null,null,0,null,null,null,0,null,null,null,0,null,null,null,0,null,null,0,null,null,null,0,null,null,0,null,null,0,null,null,0]
[null,null,null,null,null,null,null,null,null,null,null,null,null,null,null,null,0,null,null,null,0,null,null,null,0,null,null,null,0,null,null,0,null,null,null,0,null,null,0,null,null,0,null,null,0]
[null,null,null,null,null,null,null,null,null,null,null,null,null,null,null,null,0,null,null,null,0,null,null,null,0,null,null,null,0,null,null,0,null,null,null,0,null,null,0,null,null,0,null,null,0]
[null,null,null,null,null,null,null,null,null,null,null,null,null,null,null,null,0,null,null,null,0,null,null,null,0,null,null,null,0,null,null,0,null,null,null,0,null,null,0,null,null,0,null,null,0]
[null,null,null,null,null,null,null,null,null,null,null,null,null,null,null,null,0,null,null,null,0,null,null,null,0,null,null,null,0,null,null,0,null,null,null,0,null,null,0,null,null,0,null,null,0]
[null,null,null,null,null,null,null,null,null,null,null,null,null,null,null,null,0,null,null,null,0,null,null,null,0,null,null,null,0,null,null,0,null,null,null,0,null,null,0,null,null,0,null,null,0]
[null,null,null,null,null,null,null,null,null,null,null,null,null,null,null,null,0,null,null,null,0,null,null,null,0,null,null,null,0,null,null,0,null,null,null,0,null,null,0,null,null,0,null,null,0]
[null,null,null,null,null,null,null,null,null,null,null,null,null,null,null,null,0,null,null,null,0,null,null,null,0,null,null,null,0,null,null,0,null,null,null,0,null,null,0,null,null,0,null,null,0]
[null,null,null,null,null,null,null,null,null,null,null,null,null,null,null,null,0,null,null,null,0,null,null,null,0,null,null,null,0,null,null,0,null,null,null,0,null,null,0,null,null,0,null,null,0]
[null,null,null,null,null,null,null,null,null,null,null,null,null,null,null,null,0,null,null,null,0,null,null,null,0,null,null,null,0,null,null,0,null,null,null,0,null,null,0,null,null,0,null,null,0]
[null,null,null,null,null,null,null,null,null,null,null,null,null,null,null,null,0,null,null,null,0,null,null,null,0,null,null,null,0,null,null,0,null,null,null,0,null,null,0,null,null,0,null,null,0]
[null,null,null,null,null,null,null,null,null,null,null,null,null,null,null,null,0,null,null,null,0,null,null,null,0,null,null,null,0,null,null,0,null,null,null,0,null,null,0,null,null,0,null,null,0]
[null,null,null,null,null,null,null,null,null,null,null,null,null,null,null,null,0,null,null,null,0,null,null,null,0,null,null,null,0,null,null,0,null,null,null,0,null,null,0,null,null,0,null,null,0]
[null,null,null,null,null,null,null,null,null,null,null,null,null,null,null,null,0,null,null,null,0,null,null,null,0,null,null,null,0,null,null,0,null,null,null,0,null,null,0,null,null,0,null,null,0]
[null,null,null,null,null,null,null,null,null,null,null,null,null,null,null,null,0,null,null,null,0,null,null,null,0,null,null,null,0,null,null,0,null,null,null,0,null,null,0,null,null,0,null,null,0]
[null,null,null,null,null,null,null,null,null,null,null,null,null,null,null,null,0,null,null,null,0,null,null,null,0,null,null,null,0,null,null,0,null,null,null,0,null,null,0,null,null,0,null,null,0]
[null,null,null,null,null,null,null,null,null,null,null,null,null,null,null,null,0,null,null,null,0,null,null,null,0,null,null,null,0,null,null,0,null,null,null,0,null,null,0,null,null,0,null,null,0]
[null,null,null,null,null,null,null,null,null,null,null,null,null,null,null,null,0,null,null,null,0,null,null,null,0,null,null,null,0,null,null,0,null,null,null,0,null,null,0,null,null,0,null,null,0]
[null,null,null,null,null,null,null,null,null,null,null,null,null,null,null,null,0,null,null,null,0,null,null,null,0,null,null,null,0,null,null,0,null,null,null,0,null,null,0,null,null,0,null,null,0]
[null,null,null,null,null,null,null,null,null,null,null,null,null,null,null,null,0,null,null,null,0,null,null,null,0,null,null,null,0,null,null,0,null,null,null,0,null,null,0,null,null,0,null,null,0]
[null,null,null,null,null,null,null,null,null,null,null,null,null,null,null,null,0,null,null,null,0,null,null,null,0,null,null,null,0,null,null,0,null,null,null,0,null,null,0,null,null,0,null,null,0]
[null,null,null,null,null,null,null,null,null,null,null,null,null,null,null,null,0,null,null,null,0,null,null,null,0,null,null,null,0,null,null,0,null,null,null,0,null,null,0,null,null,0,null,null,0]
[null,null,null,null,null,null,null,null,null,null,null,null,null,null,null,null,0,null,null,null,0,null,null,null,0,null,null,null,0,null,null,0,null,null,null,0,null,null,0,null,null,0,null,null,0]
[null,null,null,null,null,null,null,null,null,null,null,null,null,null,null,null,0,null,null,null,0,null,null,null,0,null,null,null,0,null,null,0,null,null,null,0,null,null,0,null,null,0,null,null,0]
[null,null,null,null,null,null,null,null,null,null,null,null,null,null,null,null,0,null,null,null,0,null,null,null,0,null,null,null,0,null,null,0,null,null,null,0,null,null,0,null,null,0,null,null,0]
[null,null,null,null,null,null,null,null,null,null,null,null,null,null,null,null,0,null,null,null,0,null,null,null,0,null,null,null,0,null,null,0,null,null,null,0,null,null,0,null,null,0,null,null,0]
[null,null,null,null,null,null,null,null,null,null,null,null,null,null,null,null,0,null,null,null,0,null,null,null,0,null,null,null,0,null,null,0,null,null,null,0,null,null,0,null,null,0,null,null,0]
[null,null,null,null,null,null,null,null,null,null,null,null,null,null,null,null,0,null,null,null,0,null,null,null,0,null,null,null,0,null,null,0,null,null,null,0,null,null,0,null,null,0,null,null,0]
[null,null,null,null,null,null,null,null,null,null,null,null,null,null,null,null,0,null,null,null,0,null,null,null,0,null,null,null,0,null,null,0,null,null,null,0,null,null,0,null,null,0,null,null,0]
[null,null,null,null,null,null,null,null,null,null,null,null,null,null,null,null,{"$f":"($G3971+($G3971*(P3971/100)))*$R$1","v":0},null,null,null,{"$f":"($G3971+($G3971*(T3971/100)))*$R$1","v":0},null,null,null,{"$f":"($G3971+($G3971*(X3971/100)))*$R$1","v":0},null,null,null,{"$f":"($G3971+($G3971*(AB3971/100)))*$R$1","v":0},null,null,{"$f":"($G3971+($G3971*(AE3971/100)))*$R$1","v":0},null,null,null,{"$f":"($G3971+($G3971*(AI3971/100)))*$R$1","v":0},null,null,{"$f":"($G3971+($G3971*(AL3971/100)))*$R$1","v":0},null,null,{"$f":"($G3971+($G3971*(AO3971/100)))*$R$1","v":0},null,null,{"$f":"($G3971+($G3971*(AR3971/100)))*$R$1","v":0}]
[null,null,null,null,null,null,null,null,null,null,null,null,null,null,null,null,0,null,null,null,0,null,null,null,0,null,null,null,0,null,null,0,null,null,null,0,null,null,0,null,null,0,null,null,0]
[null,null,null,null,null,null,null,null,null,null,null,null,null,null,null,null,0,null,null,null,0,null,null,null,0,null,null,null,0,null,null,0,null,null,null,0,null,null,0,null,null,0,null,null,0]
[null,null,null,null,null,null,null,null,null,null,null,null,null,null,null,null,0,null,null,null,0,null,null,null,0,null,null,null,0,null,null,0,null,null,null,0,null,null,0,null,null,0,null,null,0]
[null,null,null,null,null,null,null,null,null,null,null,null,null,null,null,null,0,null,null,null,0,null,null,null,0,null,null,null,0,null,null,0,null,null,null,0,null,null,0,null,null,0,null,null,0]
[null,null,null,null,null,null,null,null,null,null,null,null,null,null,null,null,0,null,null,null,0,null,null,null,0,null,null,null,0,null,null,0,null,null,null,0,null,null,0,null,null,0,null,null,0]
[null,null,null,null,null,null,null,null,null,null,null,null,null,null,null,null,0,null,null,null,0,null,null,null,0,null,null,null,0,null,null,0,null,null,null,0,null,null,0,null,null,0,null,null,0]
[null,null,null,null,null,null,null,null,null,null,null,null,null,null,null,null,0,null,null,null,0,null,null,null,0,null,null,null,0,null,null,0,null,null,null,0,null,null,0,null,null,0,null,null,0]
[null,null,null,null,null,null,null,null,null,null,null,null,null,null,null,null,0,null,null,null,0,null,null,null,0,null,null,null,0,null,null,0,null,null,null,0,null,null,0,null,null,0,null,null,0]
[null,null,null,null,null,null,null,null,null,null,null,null,null,null,null,null,0,null,null,null,0,null,null,null,0,null,null,null,0,null,null,0,null,null,null,0,null,null,0,null,null,0,null,null,0]
[null,null,null,null,null,null,null,null,null,null,null,null,null,null,null,null,0,null,null,null,0,null,null,null,0,null,null,null,0,null,null,0,null,null,null,0,null,null,0,null,null,0,null,null,0]
[null,null,null,null,null,null,null,null,null,null,null,null,null,null,null,null,0,null,null,null,0,null,null,null,0,null,null,null,0,null,null,0,null,null,null,0,null,null,0,null,null,0,null,null,0]
[null,null,null,null,null,null,null,null,null,null,null,null,null,null,null,null,0,null,null,null,0,null,null,null,0,null,null,null,0,null,null,0,null,null,null,0,null,null,0,null,null,0,null,null,0]
[null,null,null,null,null,null,null,null,null,null,null,null,null,null,null,null,0,null,null,null,0,null,null,null,0,null,null,null,0,null,null,0,null,null,null,0,null,null,0,null,null,0,null,null,0]
[null,null,null,null,null,null,null,null,null,null,null,null,null,null,null,null,0,null,null,null,0,null,null,null,0,null,null,null,0,null,null,0,null,null,null,0,null,null,0,null,null,0,null,null,0]
[null,null,null,null,null,null,null,null,null,null,null,null,null,null,null,null,0,null,null,null,0,null,null,null,0,null,null,null,0,null,null,0,null,null,null,0,null,null,0,null,null,0,null,null,0]
[null,null,null,null,null,null,null,null,null,null,null,null,null,null,null,null,0,null,null,null,0,null,null,null,0,null,null,null,0,null,null,0,null,null,null,0,null,null,0,null,null,0,null,null,0]
[null,null,null,null,null,null,null,null,null,null,null,null,null,null,null,null,0,null,null,null,0,null,null,null,0,null,null,null,0,null,null,0,null,null,null,0,null,null,0,null,null,0,null,null,0]
[null,null,null,null,null,null,null,null,null,null,null,null,null,null,null,null,0,null,null,null,0,null,null,null,0,null,null,null,0,null,null,0,null,null,null,0,null,null,0,null,null,0,null,null,0]
[null,null,null,null,null,null,null,null,null,null,null,null,null,null,null,null,0,null,null,null,0,null,null,null,0,null,null,null,0,null,null,0,null,null,null,0,null,null,0,null,null,0,null,null,0]
[null,null,null,null,null,null,null,null,null,null,null,null,null,null,null,null,0,null,null,null,0,null,null,null,0,null,null,null,0,null,null,0,null,null,null,0,null,null,0,null,null,0,null,null,0]
[null,null,null,null,null,null,null,null,null,null,null,null,null,null,null,null,0,null,null,null,0,null,null,null,0,null,null,null,0,null,null,0,null,null,null,0,null,null,0,null,null,0,null,null,0]
[null,null,null,null,null,null,null,null,null,null,null,null,null,null,null,null,0,null,null,null,0,null,null,null,0,null,null,null,0,null,null,0,null,null,null,0,null,null,0,null,null,0,null,null,0]
[null,null,null,null,null,null,null,null,null,null,null,null,null,null,null,null,0,null,null,null,0,null,null,null,0,null,null,null,0,null,null,0,null,null,null,0,null,null,0,null,null,0,null,null,0]
[null,null,null,null,null,null,null,null,null,null,null,null,null,null,null,null,0,null,null,null,0,null,null,null,0,null,null,null,0,null,null,0,null,null,null,0,null,null,0,null,null,0,null,null,0]
[null,null,null,null,null,null,null,null,null,null,null,null,null,null,null,null,0,null,null,null,0,null,null,null,0,null,null,null,0,null,null,0,null,null,null,0,null,null,0,null,null,0,null,null,0]
[null,null,null,null,null,null,null,null,null,null,null,null,null,null,null,null,0,null,null,null,0,null,null,null,0,null,null,null,0,null,null,0,null,null,null,0,null,null,0,null,null,0,null,null,0]
[null,null,null,null,null,null,null,null,null,null,null,null,null,null,null,null,0,null,null,null,0,null,null,null,0,null,null,null,0,null,null,0,null,null,null,0,null,null,0,null,null,0,null,null,0]
[null,null,null,null,null,null,null,null,null,null,null,null,null,null,null,null,0,null,null,null,0,null,null,null,0,null,null,null,0,null,null,0,null,null,null,0,null,null,0,null,null,0,null,null,0]
[null,null,null,null,null,null,null,null,null,null,null,null,null,null,null,null,0,null,null,null,0,null,null,null,0,null,null,null,0,null,null,0,null,null,null,0,null,null,0,null,null,0,null,null,0]
[null,null,null,null,null,null,null,null,null,null,null,null,null,null,null,null,0,null,null,null,0,null,null,null,0,null,null,null,0,null,null,0,null,null,null,0,null,null,0,null,null,0,null,null,0]
[null,null,null,null,null,null,null,null,null,null,null,null,null,null,null,null,0,null,null,null,0,null,null,null,0,null,null,null,0,null,null,0,null,null,null,0,null,null,0,null,null,0,null,null,0]
[null,null,null,null,null,null,null,null,null,null,null,null,null,null,null,null,0,null,null,null,0,null,null,null,0,null,null,null,0,null,null,0,null,null,null,0,null,null,0,null,null,0,null,null,0]
[null,null,null,null,null,null,null,null,null,null,null,null,null,null,null,null,0,null,null,null,0,null,null,null,0,null,null,null,0,null,null,0,null,null,null,0,null,null,0,null,null,0,null,null,0]
[null,null,null,null,null,null,null,null,null,null,null,null,null,null,null,null,0,null,null,null,0,null,null,null,0,null,null,null,0,null,null,0,null,null,null,0,null,null,0,null,null,0,null,null,0]
[null,null,null,null,null,null,null,null,null,null,null,null,null,null,null,null,0,null,null,null,0,null,null,null,0,null,null,null,0,null,null,0,null,null,null,0,null,null,0,null,null,0,null,null,0]
[null,null,null,null,null,null,null,null,null,null,null,null,null,null,null,null,0,null,null,null,0,null,null,null,0,null,null,null,0,null,null,0,null,null,null,0,null,null,0,null,null,0,null,null,0]
[null,null,null,null,null,null,null,null,null,null,null,null,null,null,null,null,0,null,null,null,0,null,null,null,0,null,null,null,0,null,null,0,null,null,null,0,null,null,0,null,null,0,null,null,0]
[null,null,null,null,null,null,null,null,null,null,null,null,null,null,null,null,0,null,null,null,0,null,null,null,0,null,null,null,0,null,null,0,null,null,null,0,null,null,0,null,null,0,null,null,0]
[null,null,null,null,null,null,null,null,null,null,null,null,null,null,null,null,0,null,null,null,0,null,null,null,0,null,null,null,0,null,null,0,null,null,null,0,null,null,0,null,null,0,null,null,0]
[null,null,null,null,null,null,null,null,null,null,null,null,null,null,null,null,0,null,null,null,0,null,null,null,0,null,null,null,0,null,null,0,null,null,null,0,null,null,0,null,null,0,null,null,0]
[null,null,null,null,null,null,null,null,null,null,null,null,null,null,null,null,0,null,null,null,0,null,null,null,0,null,null,null,0,null,null,0,null,null,null,0,null,null,0,null,null,0,null,null,0]
[null,null,null,null,null,null,null,null,null,null,null,null,null,null,null,null,0,null,null,null,0,null,null,null,0,null,null,null,0,null,null,0,null,null,null,0,null,null,0,null,null,0,null,null,0]
[null,null,null,null,null,null,null,null,null,null,null,null,null,null,null,null,0,null,null,null,0,null,null,null,0,null,null,null,0,null,null,0,null,null,null,0,null,null,0,null,null,0,null,null,0]
[null,null,null,null,null,null,null,null,null,null,null,null,null,null,null,null,0,null,null,null,0,null,null,null,0,null,null,null,0,null,null,0,null,null,null,0,null,null,0,null,null,0,null,null,0]
[null,null,null,null,null,null,null,null,null,null,null,null,null,null,null,null,0,null,null,null,0,null,null,null,0,null,null,null,0,null,null,0,null,null,null,0,null,null,0,null,null,0,null,null,0]
[null,null,null,null,null,null,null,null,null,null,null,null,null,null,null,null,0,null,null,null,0,null,null,null,0,null,null,null,0,null,null,0,null,null,null,0,null,null,0,null,null,0,null,null,0]
[null,null,null,null,null,null,null,null,null,null,null,null,null,null,null,null,0,null,null,null,0,null,null,null,0,null,null,null,0,null,null,0,null,null,null,0,null,null,0,null,null,0,null,null,0]
[null,null,null,null,null,null,null,null,null,null,null,null,null,null,null,null,0,null,null,null,0,null,null,null,0,null,null,null,0,null,null,0,null,null,null,0,null,null,0,null,null,0,null,null,0]
[null,null,null,null,null,null,null,null,null,null,null,null,null,null,null,null,0,null,null,null,0,null,null,null,0,null,null,null,0,null,null,0,null,null,null,0,null,null,0,null,null,0,null,null,0]
[null,null,null,null,null,null,null,null,null,null,null,null,null,null,null,null,0,null,null,null,0,null,null,null,0,null,null,null,0,null,null,0,null,null,null,0,null,null,0,null,null,0,null,null,0]
[null,null,null,null,null,null,null,null,null,null,null,null,null,null,null,null,0,null,null,null,0,null,null,null,0,null,null,null,0,null,null,0,null,null,null,0,null,null,0,null,null,0,null,null,0]
[null,null,null,null,null,null,null,null,null,null,null,null,null,null,null,null,0,null,null,null,0,null,null,null,0,null,null,null,0,null,null,0,null,null,null,0,null,null,0,null,null,0,null,null,0]
[null,null,null,null,null,null,null,null,null,null,null,null,null,null,null,null,0,null,null,null,0,null,null,null,0,null,null,null,0,null,null,0,null,null,null,0,null,null,0,null,null,0,null,null,0]
[null,null,null,null,null,null,null,null,null,null,null,null,null,null,null,null,0,null,null,null,0,null,null,null,0,null,null,null,0,null,null,0,null,null,null,0,null,null,0,null,null,0,null,null,0]
[null,null,null,null,null,null,null,null,null,null,null,null,null,null,null,null,0,null,null,null,0,null,null,null,0,null,null,null,0,null,null,0,null,null,null,0,null,null,0,null,null,0,null,null,0]
[null,null,null,null,null,null,null,null,null,null,null,null,null,null,null,null,0,null,null,null,0,null,null,null,0,null,null,null,0,null,null,0,null,null,null,0,null,null,0,null,null,0,null,null,0]
[null,null,null,null,null,null,null,null,null,null,null,null,null,null,null,null,0,null,null,null,0,null,null,null,0,null,null,null,0,null,null,0,null,null,null,0,null,null,0,null,null,0,null,null,0]
[null,null,null,null,null,null,null,null,null,null,null,null,null,null,null,null,0,null,null,null,0,null,null,null,0,null,null,null,0,null,null,0,null,null,null,0,null,null,0,null,null,0,null,null,0]
[null,null,null,null,null,null,null,null,null,null,null,null,null,null,null,null,0,null,null,null,0,null,null,null,0,null,null,null,0,null,null,0,null,null,null,0,null,null,0,null,null,0,null,null,0]
[null,null,null,null,null,null,null,null,null,null,null,null,null,null,null,null,0,null,null,null,0,null,null,null,0,null,null,null,0,null,null,0,null,null,null,0,null,null,0,null,null,0,null,null,0]
[null,null,null,null,null,null,null,null,null,null,null,null,null,null,null,null,0,null,null,null,0,null,null,null,0,null,null,null,0,null,null,0,null,null,null,0,null,null,0,null,null,0,null,null,0]
[null,null,null,null,null,null,null,null,null,null,null,null,null,null,null,null,0,null,null,null,0,null,null,null,0,null,null,null,0,null,null,0,null,null,null,0,null,null,0,null,null,0,null,null,0]
[null,null,null,null,null,null,null,null,null,null,null,null,null,null,null,null,0,null,null,null,0,null,null,null,0,null,null,null,0,null,null,0,null,null,null,0,null,null,0,null,null,0,null,null,0]
[null,null,null,null,null,null,null,null,null,null,null,null,null,null,null,null,0,null,null,null,0,null,null,null,0,null,null,null,0,null,null,0,null,null,null,0,null,null,0,null,null,0,null,null,0]
[null,null,null,null,null,null,null,null,null,null,null,null,null,null,null,null,0,null,null,null,0,null,null,null,0,null,null,null,0,null,null,0,null,null,null,0,null,null,0,null,null,0,null,null,0]
[null,null,null,null,null,null,null,null,null,null,null,null,null,null,null,null,0,null,null,null,0,null,null,null,0,null,null,null,0,null,null,0,null,null,null,0,null,null,0,null,null,0,null,null,0]
[null,null,null,null,null,null,null,null,null,null,null,null,null,null,null,null,0,null,null,null,0,null,null,null,0,null,null,null,0,null,null,0,null,null,null,0,null,null,0,null,null,0,null,null,0]
[null,null,null,null,null,null,null,null,null,null,null,null,null,null,null,null,0,null,null,null,0,null,null,null,0,null,null,null,0,null,null,0,null,null,null,0,null,null,0,null,null,0,null,null,0]
[null,null,null,null,null,null,null,null,null,null,null,null,null,null,null,null,0,null,null,null,0,null,null,null,0,null,null,null,0,null,null,0,null,null,null,0,null,null,0,null,null,0,null,null,0]
[null,null,null,null,null,null,null,null,null,null,null,null,null,null,null,null,0,null,null,null,0,null,null,null,0,null,null,null,0,null,null,0,null,null,null,0,null,null,0,null,null,0,null,null,0]
[null,null,null,null,null,null,null,null,null,null,null,null,null,null,null,null,0,null,null,null,0,null,null,null,0,null,null,null,0,null,null,0,null,null,null,0,null,null,0,null,null,0,null,null,0]
[null,null,null,null,null,null,null,null,null,null,null,null,null,null,null,null,0,null,null,null,0,null,null,null,0,null,null,null,0,null,null,0,null,null,null,0,null,null,0,null,null,0,null,null,0]
[null,null,null,null,null,null,null,null,null,null,null,null,null,null,null,null,0,null,null,null,0,null,null,null,0,null,null,null,0,null,null,0,null,null,null,0,null,null,0,null,null,0,null,null,0]
[null,null,null,null,null,null,null,null,null,null,null,null,null,null,null,null,0,null,null,null,0,null,null,null,0,null,null,null,0,null,null,0,null,null,null,0,null,null,0,null,null,0,null,null,0]
[null,null,null,null,null,null,null,null,null,null,null,null,null,null,null,null,0,null,null,null,0,null,null,null,0,null,null,null,0,null,null,0,null,null,null,0,null,null,0,null,null,0,null,null,0]
[null,null,null,null,null,null,null,null,null,null,null,null,null,null,null,null,0,null,null,null,0,null,null,null,0,null,null,null,0,null,null,0,null,null,null,0,null,null,0,null,null,0,null,null,0]
[null,null,null,null,null,null,null,null,null,null,null,null,null,null,null,null,0,null,null,null,0,null,null,null,0,null,null,null,0,null,null,0,null,null,null,0,null,null,0,null,null,0,null,null,0]
[null,null,null,null,null,null,null,null,null,null,null,null,null,null,null,null,0,null,null,null,0,null,null,null,0,null,null,null,0,null,null,0,null,null,null,0,null,null,0,null,null,0,null,null,0]
[null,null,null,null,null,null,null,null,null,null,null,null,null,null,null,null,0,null,null,null,0,null,null,null,0,null,null,null,0,null,null,0,null,null,null,0,null,null,0,null,null,0,null,null,0]
[null,null,null,null,null,null,null,null,null,null,null,null,null,null,null,null,0,null,null,null,0,null,null,null,0,null,null,null,0,null,null,0,null,null,null,0,null,null,0,null,null,0,null,null,0]
[null,null,null,null,null,null,null,null,null,null,null,null,null,null,null,null,0,null,null,null,0,null,null,null,0,null,null,null,0,null,null,0,null,null,null,0,null,null,0,null,null,0,null,null,0]
[null,null,null,null,null,null,null,null,null,null,null,null,null,null,null,null,0,null,null,null,0,null,null,null,0,null,null,null,0,null,null,0,null,null,null,0,null,null,0,null,null,0,null,null,0]
[null,null,null,null,null,null,null,null,null,null,null,null,null,null,null,null,0,null,null,null,0,null,null,null,0,null,null,null,0,null,null,0,null,null,null,0,null,null,0,null,null,0,null,null,0]
[null,null,null,null,null,null,null,null,null,null,null,null,null,null,null,null,0,null,null,null,0,null,null,null,0,null,null,null,0,null,null,0,null,null,null,0,null,null,0,null,null,0,null,null,0]
[null,null,null,null,null,null,null,null,null,null,null,null,null,null,null,null,0,null,null,null,0,null,null,null,0,null,null,null,0,null,null,0,null,null,null,0,null,null,0,null,null,0,null,null,0]
[null,null,null,null,null,null,null,null,null,null,null,null,null,null,null,null,0,null,null,null,0,null,null,null,0,null,null,null,0,null,null,0,null,null,null,0,null,null,0,null,null,0,null,null,0]
[null,null,null,null,null,null,null,null,null,null,null,null,null,null,null,null,0,null,null,null,0,null,null,null,0,null,null,null,0,null,null,0,null,null,null,0,null,null,0,null,null,0,null,null,0]
[null,null,null,null,null,null,null,null,null,null,null,null,null,null,null,null,0,null,null,null,0,null,null,null,0,null,null,null,0,null,null,0,null,null,null,0,null,null,0,null,null,0,null,null,0]
[null,null,null,null,null,null,null,null,null,null,null,null,null,null,null,null,0,null,null,null,0,null,null,null,0,null,null,null,0,null,null,0,null,null,null,0,null,null,0,null,null,0,null,null,0]
[null,null,null,null,null,null,null,null,null,null,null,null,null,null,null,null,0,null,null,null,0,null,null,null,0,null,null,null,0,null,null,0,null,null,null,0,null,null,0,null,null,0,null,null,0]
[null,null,null,null,null,null,null,null,null,null,null,null,null,null,null,null,0,null,null,null,0,null,null,null,0,null,null,null,0,null,null,0,null,null,null,0,null,null,0,null,null,0,null,null,0]
[null,null,null,null,null,null,null,null,null,null,null,null,null,null,null,null,0,null,null,null,0,null,null,null,0,null,null,null,0,null,null,0,null,null,null,0,null,null,0,null,null,0,null,null,0]
[null,null,null,null,null,null,null,null,null,null,null,null,null,null,null,null,0,null,null,null,0,null,null,null,0,null,null,null,0,null,null,0,null,null,null,0,null,null,0,null,null,0,null,null,0]
[null,null,null,null,null,null,null,null,null,null,null,null,null,null,null,null,0,null,null,null,0,null,null,null,0,null,null,null,0,null,null,0,null,null,null,0,null,null,0,null,null,0,null,null,0]
[null,null,null,null,null,null,null,null,null,null,null,null,null,null,null,null,0,null,null,null,0,null,null,null,0,null,null,null,0,null,null,0,null,null,null,0,null,null,0,null,null,0,null,null,0]
[null,null,null,null,null,null,null,null,null,null,null,null,null,null,null,null,0,null,null,null,0,null,null,null,0,null,null,null,0,null,null,0,null,null,null,0,null,null,0,null,null,0,null,null,0]
[null,null,null,null,null,null,null,null,null,null,null,null,null,null,null,null,0,null,null,null,0,null,null,null,0,null,null,null,0,null,null,0,null,null,null,0,null,null,0,null,null,0,null,null,0]
[null,null,null,null,null,null,null,null,null,null,null,null,null,null,null,null,0,null,null,null,0,null,null,null,0,null,null,null,0,null,null,0,null,null,null,0,null,null,0,null,null,0,null,null,0]
[null,null,null,null,null,null,null,null,null,null,null,null,null,null,null,null,0,null,null,null,0,null,null,null,0,null,null,null,0,null,null,0,null,null,null,0,null,null,0,null,null,0,null,null,0]
[null,null,null,null,null,null,null,null,null,null,null,null,null,null,null,null,0,null,null,null,0,null,null,null,0,null,null,null,0,null,null,0,null,null,null,0,null,null,0,null,null,0,null,null,0]
[null,null,null,null,null,null,null,null,null,null,null,null,null,null,null,null,0,null,null,null,0,null,null,null,0,null,null,null,0,null,null,0,null,null,null,0,null,null,0,null,null,0,null,null,0]
[null,null,null,null,null,null,null,null,null,null,null,null,null,null,null,null,0,null,null,null,0,null,null,null,0,null,null,null,0,null,null,0,null,null,null,0,null,null,0,null,null,0,null,null,0]
[null,null,null,null,null,null,null,null,null,null,null,null,null,null,null,null,0,null,null,null,0,null,null,null,0,null,null,null,0,null,null,0,null,null,null,0,null,null,0,null,null,0,null,null,0]
[null,null,null,null,null,null,null,null,null,null,null,null,null,null,null,null,0,null,null,null,0,null,null,null,0,null,null,null,0,null,null,0,null,null,null,0,null,null,0,null,null,0,null,null,0]
[null,null,null,null,null,null,null,null,null,null,null,null,null,null,null,null,0,null,null,null,0,null,null,null,0,null,null,null,0,null,null,0,null,null,null,0,null,null,0,null,null,0,null,null,0]
[null,null,null,null,null,null,null,null,null,null,null,null,null,null,null,null,0,null,null,null,0,null,null,null,0,null,null,null,0,null,null,0,null,null,null,0,null,null,0,null,null,0,null,null,0]
[null,null,null,null,null,null,null,null,null,null,null,null,null,null,null,null,0,null,null,null,0,null,null,null,0,null,null,null,0,null,null,0,null,null,null,0,null,null,0,null,null,0,null,null,0]
[null,null,null,null,null,null,null,null,null,null,null,null,null,null,null,null,0,null,null,null,0,null,null,null,0,null,null,null,0,null,null,0,null,null,null,0,null,null,0,null,null,0,null,null,0]
[null,null,null,null,null,null,null,null,null,null,null,null,null,null,null,null,0,null,null,null,0,null,null,null,0,null,null,null,0,null,null,0,null,null,null,0,null,null,0,null,null,0,null,null,0]
[null,null,null,null,null,null,null,null,null,null,null,null,null,null,null,null,0,null,null,null,0,null,null,null,0,null,null,null,0,null,null,0,null,null,null,0,null,null,0,null,null,0,null,null,0]
[null,null,null,null,null,null,null,null,null,null,null,null,null,null,null,null,0,null,null,null,0,null,null,null,0,null,null,null,0,null,null,0,null,null,null,0,null,null,0,null,null,0,null,null,0]
[null,null,null,null,null,null,null,null,null,null,null,null,null,null,null,null,0,null,null,null,0,null,null,null,0,null,null,null,0,null,null,0,null,null,null,0,null,null,0,null,null,0,null,null,0]
[null,null,null,null,null,null,null,null,null,null,null,null,null,null,null,null,0,null,null,null,0,null,null,null,0,null,null,null,0,null,null,0,null,null,null,0,null,null,0,null,null,0,null,null,0]
[null,null,null,null,null,null,null,null,null,null,null,null,null,null,null,null,0,null,null,null,0,null,null,null,0,null,null,null,0,null,null,0,null,null,null,0,null,null,0,null,null,0,null,null,0]
[null,null,null,null,null,null,null,null,null,null,null,null,null,null,null,null,0,null,null,null,0,null,null,null,0,null,null,null,0,null,null,0,null,null,null,0,null,null,0,null,null,0,null,null,0]
[null,null,null,null,null,null,null,null,null,null,null,null,null,null,null,null,0,null,null,null,0,null,null,null,0,null,null,null,0,null,null,0,null,null,null,0,null,null,0,null,null,0,null,null,0]
[null,null,null,null,null,null,null,null,null,null,null,null,null,null,null,null,0,null,null,null,0,null,null,null,0,null,null,null,0,null,null,0,null,null,null,0,null,null,0,null,null,0,null,null,0]
[null,null,null,null,null,null,null,null,null,null,null,null,null,null,null,null,0,null,null,null,0,null,null,null,0,null,null,null,0,null,null,0,null,null,null,0,null,null,0,null,null,0,null,null,0]
[null,null,null,null,null,null,null,null,null,null,null,null,null,null,null,null,0,null,null,null,0,null,null,null,0,null,null,null,0,null,null,0,null,null,null,0,null,null,0,null,null,0,null,null,0]
[null,null,null,null,null,null,null,null,null,null,null,null,null,null,null,null,0,null,null,null,0,null,null,null,0,null,null,null,0,null,null,0,null,null,null,0,null,null,0,null,null,0,null,null,0]
[null,null,null,null,null,null,null,null,null,null,null,null,null,null,null,null,0,null,null,null,0,null,null,null,0,null,null,null,0,null,null,0,null,null,null,0,null,null,0,null,null,0,null,null,0]
[null,null,null,null,null,null,null,null,null,null,null,null,null,null,null,null,0,null,null,null,0,null,null,null,0,null,null,null,0,null,null,0,null,null,null,0,null,null,0,null,null,0,null,null,0]
[null,null,null,null,null,null,null,null,null,null,null,null,null,null,null,null,0,null,null,null,0,null,null,null,0,null,null,null,0,null,null,0,null,null,null,0,null,null,0,null,null,0,null,null,0]
[null,null,null,null,null,null,null,null,null,null,null,null,null,null,null,null,0,null,null,null,0,null,null,null,0,null,null,null,0,null,null,0,null,null,null,0,null,null,0,null,null,0,null,null,0]
[null,null,null,null,null,null,null,null,null,null,null,null,null,null,null,null,0,null,null,null,0,null,null,null,0,null,null,null,0,null,null,0,null,null,null,0,null,null,0,null,null,0,null,null,0]
[null,null,null,null,null,null,null,null,null,null,null,null,null,null,null,null,0,null,null,null,0,null,null,null,0,null,null,null,0,null,null,0,null,null,null,0,null,null,0,null,null,0,null,null,0]
[null,null,null,null,null,null,null,null,null,null,null,null,null,null,null,null,0,null,null,null,0,null,null,null,0,null,null,null,0,null,null,0,null,null,null,0,null,null,0,null,null,0,null,null,0]
[null,null,null,null,null,null,null,null,null,null,null,null,null,null,null,null,0,null,null,null,0,null,null,null,0,null,null,null,0,null,null,0,null,null,null,0,null,null,0,null,null,0,null,null,0]
[null,null,null,null,null,null,null,null,null,null,null,null,null,null,null,null,0,null,null,null,0,null,null,null,0,null,null,null,0,null,null,0,null,null,null,0,null,null,0,null,null,0,null,null,0]
[null,null,null,null,null,null,null,null,null,null,null,null,null,null,null,null,0,null,null,null,0,null,null,null,0,null,null,null,0,null,null,0,null,null,null,0,null,null,0,null,null,0,null,null,0]
[null,null,null,null,null,null,null,null,null,null,null,null,null,null,null,null,0,null,null,null,0,null,null,null,0,null,null,null,0,null,null,0,null,null,null,0,null,null,0,null,null,0,null,null,0]
[null,null,null,null,null,null,null,null,null,null,null,null,null,null,null,null,0,null,null,null,0,null,null,null,0,null,null,null,0,null,null,0,null,null,null,0,null,null,0,null,null,0,null,null,0]
[null,null,null,null,null,null,null,null,null,null,null,null,null,null,null,null,0,null,null,null,0,null,null,null,0,null,null,null,0,null,null,0,null,null,null,0,null,null,0,null,null,0,null,null,0]
[null,null,null,null,null,null,null,null,null,null,null,null,null,null,null,null,0,null,null,null,0,null,null,null,0,null,null,null,0,null,null,0,null,null,null,0,null,null,0,null,null,0,null,null,0]
[null,null,null,null,null,null,null,null,null,null,null,null,null,null,null,null,0,null,null,null,0,null,null,null,0,null,null,null,0,null,null,0,null,null,null,0,null,null,0,null,null,0,null,null,0]
[null,null,null,null,null,null,null,null,null,null,null,null,null,null,null,null,0,null,null,null,0,null,null,null,0,null,null,null,0,null,null,0,null,null,null,0,null,null,0,null,null,0,null,null,0]
[null,null,null,null,null,null,null,null,null,null,null,null,null,null,null,null,0,null,null,null,0,null,null,null,0,null,null,null,0,null,null,0,null,null,null,0,null,null,0,null,null,0,null,null,0]
[null,null,null,null,null,null,null,null,null,null,null,null,null,null,null,null,0,null,null,null,0,null,null,null,0,null,null,null,0,null,null,0,null,null,null,0,null,null,0,null,null,0,null,null,0]
[null,null,null,null,null,null,null,null,null,null,null,null,null,null,null,null,0,null,null,null,0,null,null,null,0,null,null,null,0,null,null,0,null,null,null,0,null,null,0,null,null,0,null,null,0]
[null,null,null,null,null,null,null,null,null,null,null,null,null,null,null,null,0,null,null,null,0,null,null,null,0,null,null,null,0,null,null,0,null,null,null,0,null,null,0,null,null,0,null,null,0]
[null,null,null,null,null,null,null,null,null,null,null,null,null,null,null,null,0,null,null,null,0,null,null,null,0,null,null,null,0,null,null,0,null,null,null,0,null,null,0,null,null,0,null,null,0]
[null,null,null,null,null,null,null,null,null,null,null,null,null,null,null,null,0,null,null,null,0,null,null,null,0,null,null,null,0,null,null,0,null,null,null,0,null,null,0,null,null,0,null,null,0]
[null,null,null,null,null,null,null,null,null,null,null,null,null,null,null,null,0,null,null,null,0,null,null,null,0,null,null,null,0,null,null,0,null,null,null,0,null,null,0,null,null,0,null,null,0]
[null,null,null,null,null,null,null,null,null,null,null,null,null,null,null,null,0,null,null,null,0,null,null,null,0,null,null,null,0,null,null,0,null,null,null,0,null,null,0,null,null,0,null,null,0]
[null,null,null,null,null,null,null,null,null,null,null,null,null,null,null,null,0,null,null,null,0,null,null,null,0,null,null,null,0,null,null,0,null,null,null,0,null,null,0,null,null,0,null,null,0]
[null,null,null,null,null,null,null,null,null,null,null,null,null,null,null,null,0,null,null,null,0,null,null,null,0,null,null,null,0,null,null,0,null,null,null,0,null,null,0,null,null,0,null,null,0]
[null,null,null,null,null,null,null,null,null,null,null,null,null,null,null,null,0,null,null,null,0,null,null,null,0,null,null,null,0,null,null,0,null,null,null,0,null,null,0,null,null,0,null,null,0]
[null,null,null,null,null,null,null,null,null,null,null,null,null,null,null,null,0,null,null,null,0,null,null,null,0,null,null,null,0,null,null,0,null,null,null,0,null,null,0,null,null,0,null,null,0]
[null,null,null,null,null,null,null,null,null,null,null,null,null,null,null,null,0,null,null,null,0,null,null,null,0,null,null,null,0,null,null,0,null,null,null,0,null,null,0,null,null,0,null,null,0]
[null,null,null,null,null,null,null,null,null,null,null,null,null,null,null,null,0,null,null,null,0,null,null,null,0,null,null,null,0,null,null,0,null,null,null,0,null,null,0,null,null,0,null,null,0]
[null,null,null,null,null,null,null,null,null,null,null,null,null,null,null,null,0,null,null,null,0,null,null,null,0,null,null,null,0,null,null,0,null,null,null,0,null,null,0,null,null,0,null,null,0]
[null,null,null,null,null,null,null,null,null,null,null,null,null,null,null,null,0,null,null,null,0,null,null,null,0,null,null,null,0,null,null,0,null,null,null,0,null,null,0,null,null,0,null,null,0]
[null,null,null,null,null,null,null,null,null,null,null,null,null,null,null,null,0,null,null,null,0,null,null,null,0,null,null,null,0,null,null,0,null,null,null,0,null,null,0,null,null,0,null,null,0]
[null,null,null,null,null,null,null,null,null,null,null,null,null,null,null,null,0,null,null,null,0,null,null,null,0,null,null,null,0,null,null,0,null,null,null,0,null,null,0,null,null,0,null,null,0]
[null,null,null,null,null,null,null,null,null,null,null,null,null,null,null,null,0,null,null,null,0,null,null,null,0,null,null,null,0,null,null,0,null,null,null,0,null,null,0,null,null,0,null,null,0]
[null,null,null,null,null,null,null,null,null,null,null,null,null,null,null,null,0,null,null,null,0,null,null,null,0,null,null,null,0,null,null,0,null,null,null,0,null,null,0,null,null,0,null,null,0]
[null,null,null,null,null,null,null,null,null,null,null,null,null,null,null,null,0,null,null,null,0,null,null,null,0,null,null,null,0,null,null,0,null,null,null,0,null,null,0,null,null,0,null,null,0]
[null,null,null,null,null,null,null,null,null,null,null,null,null,null,null,null,0,null,null,null,0,null,null,null,0,null,null,null,0,null,null,0,null,null,null,0,null,null,0,null,null,0,null,null,0]
[null,null,null,null,null,null,null,null,null,null,null,null,null,null,null,null,{"$f":"($G4931+($G4931*(P4931/100)))*$R$1","v":0},null,null,null,{"$f":"($G4931+($G4931*(T4931/100)))*$R$1","v":0},null,null,null,{"$f":"($G4931+($G4931*(X4931/100)))*$R$1","v":0},null,null,null,{"$f":"($G4931+($G4931*(AB4931/100)))*$R$1","v":0},null,null,{"$f":"($G4931+($G4931*(AE4931/100)))*$R$1","v":0},null,null,null,{"$f":"($G4931+($G4931*(AI4931/100)))*$R$1","v":0},null,null,{"$f":"($G4931+($G4931*(AL4931/100)))*$R$1","v":0},null,null,{"$f":"($G4931+($G4931*(AO4931/100)))*$R$1","v":0},null,null,{"$f":"($G4931+($G4931*(AR4931/100)))*$R$1","v":0}]
[null,null,null,null,null,null,null,null,null,null,null,null,null,null,null,null,0,null,null,null,0,null,null,null,0,null,null,null,0,null,null,0,null,null,null,0,null,null,0,null,null,0,null,null,0]
[null,null,null,null,null,null,null,null,null,null,null,null,null,null,null,null,0,null,null,null,0,null,null,null,0,null,null,null,0,null,null,0,null,null,null,0,null,null,0,null,null,0,null,null,0]
[null,null,null,null,null,null,null,null,null,null,null,null,null,null,null,null,0,null,null,null,0,null,null,null,0,null,null,null,0,null,null,0,null,null,null,0,null,null,0,null,null,0,null,null,0]
[null,null,null,null,null,null,null,null,null,null,null,null,null,null,null,null,0,null,null,null,0,null,null,null,0,null,null,null,0,null,null,0,null,null,null,0,null,null,0,null,null,0,null,null,0]
[null,null,null,null,null,null,null,null,null,null,null,null,null,null,null,null,0,null,null,null,0,null,null,null,0,null,null,null,0,null,null,0,null,null,null,0,null,null,0,null,null,0,null,null,0]
[null,null,null,null,null,null,null,null,null,null,null,null,null,null,null,null,0,null,null,null,0,null,null,null,0,null,null,null,0,null,null,0,null,null,null,0,null,null,0,null,null,0,null,null,0]
[null,null,null,null,null,null,null,null,null,null,null,null,null,null,null,null,0,null,null,null,0,null,null,null,0,null,null,null,0,null,null,0,null,null,null,0,null,null,0,null,null,0,null,null,0]
[null,null,null,null,null,null,null,null,null,null,null,null,null,null,null,null,0,null,null,null,0,null,null,null,0,null,null,null,0,null,null,0,null,null,null,0,null,null,0,null,null,0,null,null,0]
[null,null,null,null,null,null,null,null,null,null,null,null,null,null,null,null,0,null,null,null,0,null,null,null,0,null,null,null,0,null,null,0,null,null,null,0,null,null,0,null,null,0,null,null,0]
[null,null,null,null,null,null,null,null,null,null,null,null,null,null,null,null,0,null,null,null,0,null,null,null,0,null,null,null,0,null,null,0,null,null,null,0,null,null,0,null,null,0,null,null,0]
[null,null,null,null,null,null,null,null,null,null,null,null,null,null,null,null,0,null,null,null,0,null,null,null,0,null,null,null,0,null,null,0,null,null,null,0,null,null,0,null,null,0,null,null,0]
[null,null,null,null,null,null,null,null,null,null,null,null,null,null,null,null,0,null,null,null,0,null,null,null,0,null,null,null,0,null,null,0,null,null,null,0,null,null,0,null,null,0,null,null,0]
[null,null,null,null,null,null,null,null,null,null,null,null,null,null,null,null,0,null,null,null,0,null,null,null,0,null,null,null,0,null,null,0,null,null,null,0,null,null,0,null,null,0,null,null,0]
[null,null,null,null,null,null,null,null,null,null,null,null,null,null,null,null,0,null,null,null,0,null,null,null,0,null,null,null,0,null,null,0,null,null,null,0,null,null,0,null,null,0,null,null,0]
[null,null,null,null,null,null,null,null,null,null,null,null,null,null,null,null,0,null,null,null,0,null,null,null,0,null,null,null,0,null,null,0,null,null,null,0,null,null,0,null,null,0,null,null,0]
[null,null,null,null,null,null,null,null,null,null,null,null,null,null,null,null,0,null,null,null,0,null,null,null,0,null,null,null,0,null,null,0,null,null,null,0,null,null,0,null,null,0,null,null,0]
[null,null,null,null,null,null,null,null,null,null,null,null,null,null,null,null,0,null,null,null,0,null,null,null,0,null,null,null,0,null,null,0,null,null,null,0,null,null,0,null,null,0,null,null,0]
[null,null,null,null,null,null,null,null,null,null,null,null,null,null,null,null,0,null,null,null,0,null,null,null,0,null,null,null,0,null,null,0,null,null,null,0,null,null,0,null,null,0,null,null,0]
[null,null,null,null,null,null,null,null,null,null,null,null,null,null,null,null,0,null,null,null,0,null,null,null,0,null,null,null,0,null,null,0,null,null,null,0,null,null,0,null,null,0,null,null,0]
[null,null,null,null,null,null,null,null,null,null,null,null,null,null,null,null,0,null,null,null,0,null,null,null,0,null,null,null,0,null,null,0,null,null,null,0,null,null,0,null,null,0,null,null,0]
[null,null,null,null,null,null,null,null,null,null,null,null,null,null,null,null,0,null,null,null,0,null,null,null,0,null,null,null,0,null,null,0,null,null,null,0,null,null,0,null,null,0,null,null,0]
[null,null,null,null,null,null,null,null,null,null,null,null,null,null,null,null,0,null,null,null,0,null,null,null,0,null,null,null,0,null,null,0,null,null,null,0,null,null,0,null,null,0,null,null,0]
[null,null,null,null,null,null,null,null,null,null,null,null,null,null,null,null,0,null,null,null,0,null,null,null,0,null,null,null,0,null,null,0,null,null,null,0,null,null,0,null,null,0,null,null,0]
[null,null,null,null,null,null,null,null,null,null,null,null,null,null,null,null,0,null,null,null,0,null,null,null,0,null,null,null,0,null,null,0,null,null,null,0,null,null,0,null,null,0,null,null,0]
[null,null,null,null,null,null,null,null,null,null,null,null,null,null,null,null,0,null,null,null,0,null,null,null,0,null,null,null,0,null,null,0,null,null,null,0,null,null,0,null,null,0,null,null,0]
[null,null,null,null,null,null,null,null,null,null,null,null,null,null,null,null,0,null,null,null,0,null,null,null,0,null,null,null,0,null,null,0,null,null,null,0,null,null,0,null,null,0,null,null,0]
[null,null,null,null,null,null,null,null,null,null,null,null,null,null,null,null,0,null,null,null,0,null,null,null,0,null,null,null,0,null,null,0,null,null,null,0,null,null,0,null,null,0,null,null,0]
[null,null,null,null,null,null,null,null,null,null,null,null,null,null,null,null,0,null,null,null,0,null,null,null,0,null,null,null,0,null,null,0,null,null,null,0,null,null,0,null,null,0,null,null,0]
[null,null,null,null,null,null,null,null,null,null,null,null,null,null,null,null,0,null,null,null,0,null,null,null,0,null,null,null,0,null,null,0,null,null,null,0,null,null,0,null,null,0,null,null,0]
[null,null,null,null,null,null,null,null,null,null,null,null,null,null,null,null,0,null,null,null,0,null,null,null,0,null,null,null,0,null,null,0,null,null,null,0,null,null,0,null,null,0,null,null,0]
[null,null,null,null,null,null,null,null,null,null,null,null,null,null,null,null,0,null,null,null,0,null,null,null,0,null,null,null,0,null,null,0,null,null,null,0,null,null,0,null,null,0,null,null,0]
[null,null,null,null,null,null,null,null,null,null,null,null,null,null,null,null,0,null,null,null,0,null,null,null,0,null,null,null,0,null,null,0,null,null,null,0,null,null,0,null,null,0,null,null,0]
[null,null,null,null,null,null,null,null,null,null,null,null,null,null,null,null,0,null,null,null,0,null,null,null,0,null,null,null,0,null,null,0,null,null,null,0,null,null,0,null,null,0,null,null,0]
[null,null,null,null,null,null,null,null,null,null,null,null,null,null,null,null,0,null,null,null,0,null,null,null,0,null,null,null,0,null,null,0,null,null,null,0,null,null,0,null,null,0,null,null,0]
[null,null,null,null,null,null,null,null,null,null,null,null,null,null,null,null,0,null,null,null,0,null,null,null,0,null,null,null,0,null,null,0,null,null,null,0,null,null,0,null,null,0,null,null,0]
[null,null,null,null,null,null,null,null,null,null,null,null,null,null,null,null,0,null,null,null,0,null,null,null,0,null,null,null,0,null,null,0,null,null,null,0,null,null,0,null,null,0,null,null,0]
[null,null,null,null,null,null,null,null,null,null,null,null,null,null,null,null,0,null,null,null,0,null,null,null,0,null,null,null,0,null,null,0,null,null,null,0,null,null,0,null,null,0,null,null,0]
[null,null,null,null,null,null,null,null,null,null,null,null,null,null,null,null,0,null,null,null,0,null,null,null,0,null,null,null,0,null,null,0,null,null,null,0,null,null,0,null,null,0,null,null,0]
[null,null,null,null,null,null,null,null,null,null,null,null,null,null,null,null,0,null,null,null,0,null,null,null,0,null,null,null,0,null,null,0,null,null,null,0,null,null,0,null,null,0,null,null,0]
[null,null,null,null,null,null,null,null,null,null,null,null,null,null,null,null,0,null,null,null,0,null,null,null,0,null,null,null,0,null,null,0,null,null,null,0,null,null,0,null,null,0,null,null,0]
[null,null,null,null,null,null,null,null,null,null,null,null,null,null,null,null,0,null,null,null,0,null,null,null,0,null,null,null,0,null,null,0,null,null,null,0,null,null,0,null,null,0,null,null,0]
[null,null,null,null,null,null,null,null,null,null,null,null,null,null,null,null,0,null,null,null,0,null,null,null,0,null,null,null,0,null,null,0,null,null,null,0,null,null,0,null,null,0,null,null,0]
[null,null,null,null,null,null,null,null,null,null,null,null,null,null,null,null,0,null,null,null,0,null,null,null,0,null,null,null,0,null,null,0,null,null,null,0,null,null,0,null,null,0,null,null,0]
[null,null,null,null,null,null,null,null,null,null,null,null,null,null,null,null,0,null,null,null,0,null,null,null,0,null,null,null,0,null,null,0,null,null,null,0,null,null,0,null,null,0,null,null,0]
[null,null,null,null,null,null,null,null,null,null,null,null,null,null,null,null,0,null,null,null,0,null,null,null,0,null,null,null,0,null,null,0,null,null,null,0,null,null,0,null,null,0,null,null,0]
[null,null,null,null,null,null,null,null,null,null,null,null,null,null,null,null,0,null,null,null,0,null,null,null,0,null,null,null,0,null,null,0,null,null,null,0,null,null,0,null,null,0,null,null,0]
[null,null,null,null,null,null,null,null,null,null,null,null,null,null,null,null,0,null,null,null,0,null,null,null,0,null,null,null,0,null,null,0,null,null,null,0,null,null,0,null,null,0,null,null,0]
[null,null,null,null,null,null,null,null,null,null,null,null,null,null,null,null,0,null,null,null,0,null,null,null,0,null,null,null,0,null,null,0,null,null,null,0,null,null,0,null,null,0,null,null,0]
[null,null,null,null,null,null,null,null,null,null,null,null,null,null,null,null,0,null,null,null,0,null,null,null,0,null,null,null,0,null,null,0,null,null,null,0,null,null,0,null,null,0,null,null,0]
[null,null,null,null,null,null,null,null,null,null,null,null,null,null,null,null,0,null,null,null,0,null,null,null,0,null,null,null,0,null,null,0,null,null,null,0,null,null,0,null,null,0,null,null,0]
[null,null,null,null,null,null,null,null,null,null,null,null,null,null,null,null,0,null,null,null,0,null,null,null,0,null,null,null,0,null,null,0,null,null,null,0,null,null,0,null,null,0,null,null,0]
[null,null,null,null,null,null,null,null,null,null,null,null,null,null,null,null,0,null,null,null,0,null,null,null,0,null,null,null,0,null,null,0,null,null,null,0,null,null,0,null,null,0,null,null,0]
[null,null,null,null,null,null,null,null,null,null,null,null,null,null,null,null,0,null,null,null,0,null,null,null,0,null,null,null,0,null,null,0,null,null,null,0,null,null,0,null,null,0,null,null,0]
[null,null,null,null,null,null,null,null,null,null,null,null,null,null,null,null,0,null,null,null,0,null,null,null,0,null,null,null,0,null,null,0,null,null,null,0,null,null,0,null,null,0,null,null,0]
[null,null,null,null,null,null,null,null,null,null,null,null,null,null,null,null,0,null,null,null,0,null,null,null,0,null,null,null,0,null,null,0,null,null,null,0,null,null,0,null,null,0,null,null,0]
[null,null,null,null,null,null,null,null,null,null,null,null,null,null,null,null,0,null,null,null,0,null,null,null,0,null,null,null,0,null,null,0,null,null,null,0,null,null,0,null,null,0,null,null,0]
[null,null,null,null,null,null,null,null,null,null,null,null,null,null,null,null,0,null,null,null,0,null,null,null,0,null,null,null,0,null,null,0,null,null,null,0,null,null,0,null,null,0,null,null,0]
[null,null,null,null,null,null,null,null,null,null,null,null,null,null,null,null,0,null,null,null,0,null,null,null,0,null,null,null,0,null,null,0,null,null,null,0,null,null,0,null,null,0,null,null,0]
[null,null,null,null,null,null,null,null,null,null,null,null,null,null,null,null,0,null,null,null,0,null,null,null,0,null,null,null,0,null,null,0,null,null,null,0,null,null,0,null,null,0,null,null,0]
[null,null,null,null,null,null,null,null,null,null,null,null,null,null,null,null,0,null,null,null,0,null,null,null,0,null,null,null,0,null,null,0,null,null,null,0,null,null,0,null,null,0,null,null,0]
[null,null,null,null,null,null,null,null,null,null,null,null,null,null,null,null,0,null,null,null,0,null,null,null,0,null,null,null,0,null,null,0,null,null,null,0,null,null,0,null,null,0,null,null,0]
[null,null,null,null,null,null,null,null,null,null,null,null,null,null,null,null,0,null,null,null,0,null,null,null,0,null,null,null,0,null,null,0,null,null,null,0,null,null,0,null,null,0,null,null,0]
[null,null,null,null,null,null,null,null,null,null,null,null,null,null,null,null,0,null,null,null,0,null,null,null,0,null,null,null,0,null,null,0,null,null,null,0,null,null,0,null,null,0,null,null,0]
[null,null,null,null,null,null,null,null,null,null,null,null,null,null,null,null,{"$f":"($G4995+($G4995*(P4995/100)))*$R$1","v":0},null,null,null,{"$f":"($G4995+($G4995*(T4995/100)))*$R$1","v":0},null,null,null,{"$f":"($G4995+($G4995*(X4995/100)))*$R$1","v":0},null,null,null,{"$f":"($G4995+($G4995*(AB4995/100)))*$R$1","v":0},null,null,{"$f":"($G4995+($G4995*(AE4995/100)))*$R$1","v":0},null,null,null,{"$f":"($G4995+($G4995*(AI4995/100)))*$R$1","v":0},null,null,{"$f":"($G4995+($G4995*(AL4995/100)))*$R$1","v":0},null,null,{"$f":"($G4995+($G4995*(AO4995/100)))*$R$1","v":0},null,null,{"$f":"($G4995+($G4995*(AR4995/100)))*$R$1","v":0}]
[null,null,null,null,null,null,null,null,null,null,null,null,null,null,null,null,0,null,null,null,0,null,null,null,0,null,null,null,0,null,null,0,null,null,null,0,null,null,0,null,null,0,null,null,0]
[null,null,null,null,null,null,null,null,null,null,null,null,null,null,null,null,0,null,null,null,0,null,null,null,0,null,null,null,0,null,null,0,null,null,null,0,null,null,0,null,null,0,null,null,0]
[null,null,null,null,null,null,null,null,null,null,null,null,null,null,null,null,0,null,null,null,0,null,null,null,0,null,null,null,0,null,null,0,null,null,null,0,null,null,0,null,null,0,null,null,0]
[null,null,null,null,null,null,null,null,null,null,null,null,null,null,null,null,0,null,null,null,0,null,null,null,0,null,null,null,0,null,null,0,null,null,null,0,null,null,0,null,null,0,null,null,0]
[null,null,null,null,null,null,null,null,null,null,null,null,null,null,null,null,0,null,null,null,0,null,null,null,0,null,null,null,0,null,null,0,null,null,null,0,null,null,0,null,null,0,null,null,0]

{"sheet":"eBay Fees","index":8,"n_rows":142,"n_cols":25,"rows_kept":142,"cut":false,"hidden":true,"merged":[[51,0,52,0],[51,1,52,1],[71,1,73,1],[51,2,52,2],[20,0,22,0],[20,1,22,1],[32,2,34,2],[47,0,48,0],[47,1,48,1],[47,2,48,2],[53,0,54,0],[53,1,54,1],[53,2,54,2],[55,0,57,0],[55,1,57,1],[117,0,118,0],[117,1,118,1],[117,2,118,2],[95,0,96,0],[95,1,96,1],[95,2,96,2],[99,0,100,0],[99,1,100,1],[99,2,100,2],[101,0,103,0],[101,1,103,1],[112,0,114,0],[112,1,114,1],[82,2,83,2],[58,0,60,0],[58,1,60,1],[64,0,66,0],[64,1,66,1],[71,0,73,0],[82,0,83,0],[82,1,83,1],[74,0,76,0],[74,1,76,1],[78,0,80,0],[78,1,80,1],[0,0,3,2],[4,0,4,2],[8,0,9,0],[8,1,9,1],[8,2,9,2],[12,12,13,12],[12,14,13,14],[17,12,18,12],[17,14,18,14],[4,4,4,10],[42,4,42,10],[4,19,4,20],[4,16,4,17],[26,12,27,12],[26,14,27,14],[38,12,39,12],[38,14,39,14],[4,12,4,14],[19,12,20,12],[19,14,20,14],[21,12,22,12],[21,14,22,14],[24,12,25,12],[24,14,25,14],[7,12,8,12],[7,14,8,14]]}
["These are the market place fee. They are for reference only and up-to-date as of 20/07/2024. There is no gurentee of their correctness and are copied form the relevant website. \nYou can usually tell the fee you are paying by looking at your listing."]
[]
[]
[]
["Final value fees by category - eBay",null,null,null,"Final Value Fees for Amazon",null,null,null,null,null,null,null,"OnBuy Fees from August 2024",null,null,null,"Etsy",null,null,"TikTok Shop",null,null,"Vinted",null,"FaceBook Market Place"]
["Category","Category ID","Final value fee % + 30p per order",null,"Referral Fee Schedule",null,null,null,null,null,null,null,"Fee Category","Sales Fees","Minimum Fee per Product",null,"Fee Category","Fee %",null,"Fee Category","Fee %",null,"Price List",null,"No Charge from Facebook if you ise Shopify. The same charges as Shopify will apply"]
["Antiques","#20081",0.109,null,"Fee categories",null,null,null,null,null,null,null,"Arts, Crafts & Sewing",0.15,0.25,null,"All",0.06,null,"All",9.5000000000000001E-2]
["Art, except subcategories below:","#550",0.109,null," Referral fee (including the digital services tax)",null,null,null,null,null,null,null,"Baby & Toddler","8.00% of the total item price up to the value of £10.00",0.25,null,null,null,null,null,null,null,"Last updated: 02-07-2024",null,"Otherwise it is up to 3.49%"]
["Art NFTs","#262051",0.05,null,"  Per-item minimum referral fee",null,null,null,null,null,null,null,null,"15.00% on any portion of the total item price greater than £10.00"]
[null,null,null,null,null,null,null,null,null,null,null,null,"Beer, Wine & Spirits",0.1,0.25,null,null,null,null,null,null,null,"This Price List indicates the fees payable by Users and/or how they are calculated when using Vinted. "]
["Baby","#2984",0.109,null,"Amazon Device Accessories",null,null,null,null,null,null,null,"Books",0.15,0.25]
["Books, Comics & Magazines","#267",9.9000000000000005E-2,null,0.45900000000000002,null,null,null,null,null,null,null,"Business, Office & Industrial Supplies",0.15,0.25,null,null,null,null,null,null,null,"Fees for Buyer Protection Services "]
["Business, Office & Industrial","#12576",0.11899999999999999,null,0.25,null,null,null,null,null,null,null,"Car & Automotive Parts","15.00% of the total item price up to the value of £45.00",0.25]
["Cameras & Photography, except subcategories below:","#625",9.9000000000000005E-2,null,"Automotive and Powersports",null,null,null,null,null,null,null,null,"9.00% on any portion of the total item price greater than £45.00",null,null,null,null,null,null,null,null,"Buyer Protection is provided by VINTED in every purchase made with the “Buy now” button, where the Buyer will benefit from the Vinted’s Refund Policy, safe payments and Vinted’s customer support (please see our Terms and Conditions for full information). Accordingly for such a service, a Buyer Protection Fee will be charged to the Buyer automatically for Buyer Protection Services and will always be shown at a checkout before completion of the order."]
["Camcorders","#11724","6.9% for the portion of the total amount of the sale up to £1,000 (calculated per item)",null,"• 15.3% for the portion of the total sales price up to £45.00",null,null,null,null,null,null,null,"Clothing, Shoes & Accessories",0.15,0.25]
["Digital Cameras","#31388","3% for the portion of the total amount of the sale above £1,000",null,"• 9.18% for any portion of the total sales price greater than £45.00",null,null,null,null,null,null,null,"Consumer Electronics",7.0000000000000007E-2,0.25,null,null,null,null,null,null,null,"Buyer Protection Fee consists depends on the order’s price. "]
["Film Photography","#69323",null,null,0.25,null,null,null,null,null,null,null,"DIY & Tools",0.13,0.25]
["Lenses & Filters","#78997",null,null,"Baby Products",null,null,null,null,null,null,null,"Electronic Accessories","15.00% of the total item price up to the value of £100.00",0.25,null,null,null,null,null,null,null,"For orders (including bundles) priced less than £500, the formula is:"]
[null,null,null,null,"• 8.16% for products with a total sales price up to £10.00",null,null,null,null,null,null,null,null,"8.00% on any portion of the total item price greater than £100.00"]
["Clothes, Shoes & Accessories, except subcategories below:","#11450",0.11899999999999999,null,"• 15.3% for products with a total sales price greater than £10.00",null,null,null,null,null,null,null,"Food & Drink","8.00% of the total item price up to the value of £10.00",0.25,null,null,null,null,null,null,null,"A fixed amount: a range of £0.3 to £0.8 and;"]
["Women's Bags & Handbags","#169291","12.9% for the portion of the total amount of the sale up to £800 (calculated per item)",null,0.25,null,null,null,null,null,null,null,null,"15.00% on any portion of the total item price greater than £10.00",null,null,null,null,null,null,null,null,"A variable amount: a range of 3% to 8% of the purchase price agreed between you and the seller, regardless of postage costs"]
[null,null,"7% for the portion of the total amount of the sale above £800",null,"Backpacks and Handbags",null,null,null,null,null,null,null,"Furniture","15.00% of the total item price up to the value of £175.00",0.25]
[null,null,null,null,0.153,null,null,null,null,null,null,null,null,"10.00% on any portion of the total item price greater than £175.00",null,null,null,null,null,null,null,null,"For orders (including bundles) priced £500 or more, the formula is:"]
["Men > Men's Shoes > Trainers","#15709",0.11899999999999999,null,0.25,null,null,null,null,null,null,null,"Games Consoles",0.08,0.25]
["Women > Women's Shoes > Trainers",null,null,null,"Beauty, Health, and Personal Care*",null,null,null,null,null,null,null,"Health & Beauty","8.00% of the total item price up to the value of £10.00",0.25,null,null,null,null,null,null,null,"3% of the item's price (including the value-added tax (VAT) applied to the item’s price)"]
[null,"#95672",null,null,"• 8.16% for products with a total sales price up to £10.00",null,null,null,null,null,null,null,null,"15.00% on any portion of the total item price greater than £10.00"]
[null,null,null,null,"• 15.3% for products with a total sales price greater than £10.00",null,null,null,null,null,null,null,"Jewellery","20.00% of the total item price up to the value of £225.00",0.25,null,null,null,null,null,null,null,"Fees for Additional Services"]
[null,null,"7% if item selling price* is £100 or more",null,0.25,null,null,null,null,null,null,null,null,"5.00% on any portion of the total item price greater than £225.00"]
[null,null,null,null,"Beer, Wine, and Spirits",null,null,null,null,null,null,null,"Large Appliances",7.0000000000000007E-2,0.25,null,null,null,null,null,null,null,"1 Fees payable by Buyers"]
[null,null,"*The item selling price excludes postage, and any other additional fees or taxes",null,0.10199999999999999,null,null,null,null,null,null,null,"Music, VHS, DVD",0.15,0.25]
["Coins","#11116",0.109,null,0.25,null,null,null,null,null,null,null,"Musical Instruments & DJ",0.12,0.25,null,null,null,null,null,null,null,"1.1 Item Verification Service"]
["Collectables, except subcategories below:","#1",0.109,null,"Books",null,null,null,null,null,null,null,"Pet Supplies",0.15,0.25]
["Emerging NFTs","#262050",0.05,null,"• 15.3%",null,null,null,null,null,null,null,"Power Tools",0.13,0.25,null,null,null,null,null,null,null,"This is an optional Additional service which the Buyer can choose to purchase when buying an item on Vinted. The service fee for any item is £10, and the Buyers will see it on the item page. The fee consists of a verification service fee and shipping costs from the Seller to the warehouse. For more information about this service please see our Terms and Conditions and the Help Center here. "]
["Non-Sport Trading Card NFTs","#262052",null,null,"• And a closing fee of £0.50 per item sold",null,null,null,null,null,null,null,"Small Appliances",0.15,0.25]
[null,null,null,null,"Not applicable",null,null,null,null,null,null,null,"Software",0.15,0.25,null,null,null,null,null,null,null,"2 Fees payable by Sellers "]
["Computers, Tablets & Networking, except subcategories below:","#58058",9.9000000000000005E-2,null,"Business, Industrial, and Scientific Supplies",null,null,null,null,null,null,null,"Sports & Outdoors",0.15,0.25]
["Desktops & All-In-Ones","#171957","6.9% for the portion of the total amount of the sale up to £1,000 (calculated per item)",null,0.153,null,null,null,null,null,null,null,"Toys & Games",0.15,0.25,null,null,null,null,null,null,null,"Sellers can improve the visibility of items by opting for the following services:"]
["Drives, Storage & Blank Media","#165","3% for the portion of the total amount of the sale above £1,000",null,0.25,null,null,null,null,null,null,null,"Video Games",0.15,0.25]
["Enterprise Networking, Servers","#175698",null,null,"Compact Appliances",null,null,null,null,null,null,null,"Watches","15.00% of the total item price up to the value of £225.00",0.25,null,null,null,null,null,null,null,"2.1 Bumping Listed Items"]
["Tablets & eBook Readers","#171485",null,null,0.153,null,null,null,null,null,null,null,null,"5.00% on any portion of the total item price greater than £225.00"]
["Laptops & Netbooks","#175672",null,null,0.25,null,null,null,null,null,null,null,"Everything Else",0.15,0.25,null,null,null,null,null,null,null,"The Fee for Bumping Listed Items will vary depending on the chosen duration and item price. Any applicable VAT charged will be included in the price shown at a checkout. Vinted reserves the right to change the amount of the Item Bump Fee if the price of the item is changed after purchasing the Item Bumping service. The duration of the Item Bump may last for 3 or 7 calendar days. The selected Bump duration and respective applicable fee will be shown to you at the time of payment. You will receive an email with a purchase confirmation to your registered email as well. "]
["Printers, Scanners & Supplies","#171961",null,null,"Clothing and Accessories",null,null,null,null,null,null,null,"*All fees are subject to VAT where applicable"]
[null,null,null,null,"• For Prime selection with a total price above £40: 15.3% for products with a total price greater than £15 for the portion of the total price up to £40, and 7.14% for any portion of the total price greater than £40.",null,null,null,null,null,null,null,null,null,null,null,null,null,null,null,null,null,"For more information about this service please see our Terms and Conditions and the Help Center here."]
["Crafts","#14339",0.129,null,"• For any selection with a total price up to £15: 8.16%"]
["Dolls & Bears","#237",0.109,null,"• For any selection with a total price greater than £15: 15.3%",null,null,null,null,null,null,null,null,null,null,null,null,null,null,null,null,null,"2.2 Wardrobe Spotlight"]
["Event Tickets","#1305",0.129,null,0.25]
["Films & TV, except subcategories below:","#11232",9.9000000000000005E-2,null,"Commercial Electrical and Energy Supplies",null,null,null,null,null,null,null,null,null,null,null,null,null,null,null,null,null,"The applicable fee and Wardrobe Spotlight duration will be shown to you at checkout and you will receive an email with a purchase confirmation to your registered email. "]
["Film NFTs","#262053",0.05,null,0.12239999999999999]
[null,null,null,null,0.25,null,null,null,null,null,null,null,null,null,null,null,null,null,null,null,null,null,"For more information about this service please see our Terms and Conditions and the Help Center here."]
["Garden & Patio","#159912",0.109,null,"Computers"]
["Health & Beauty, except subcategories below:","#26395",0.109,null,7.1400000000000005E-2,null,null,null,null,null,null,null,null,null,null,null,null,null,null,null,null,null,"2.3 Collections"]
["Hair Extensions & Wigs","#182101",0.11899999999999999,null,0.25]
[null,null,null,null,"Consumer Electronics",null,null,null,null,null,null,null,null,null,null,null,null,null,null,null,null,null,"The Fee for using the Collections is £8.95 (VAT included), £10.95 (VAT included) or £12.95 (VAT included), depending on the number of collections you choose. The applicable fee and duration will be shown to you in the purchase flow and at check out and you will receive an email with a purchase confirmation to your registered email. "]
["Electronic Smoking, Parts & Accessories","#183497",0.129,null,7.1400000000000005E-2]
[null,null,null,null,0.25,null,null,null,null,null,null,null,null,null,null,null,null,null,null,null,null,null,"For more information about this service please see our Terms and Conditions and the Help Center here."]
["Holidays & Travel","#3252","7.9% for the portion of the total amount of the sale up to £650 (calculated per item)",null,"Cycling Accessories"]
[null,null,"3% for the portion of the total amount of the sale above £650",null,8.1600000000000006E-2]
[null,null,null,null,0.25]
["Home, Furniture & DIY, except subcategories below:","#11700","11.9% for the portion of the total amount of the sale up to £500 (calculated per item)",null,"Electronic Accessories"]
[null,null,"7.9% for the portion of the total amount of the sale above £500",null,"• 15.3% for the portion of the total sales price up to ₤100.00"]
[null,null,null,null,"• 8.16% for any portion of the total sales price greater than ₤100.00"]
["Appliances","#20710","6.9% for the portion of the total amount of the sale up to £400 (calculated per item)",null,0.25]
["DIY Tools & Workshop Equipment","#631","3% for the portion of the total amount of the sale above £400",null,"Eyewear"]
[null,null,null,null,0.153]
["Power Strips & Surge Protectors","#67779","9.9% for the portion of the total amount of the sale up to £250 (calculated per item)",null,0.25]
[null,null,"7.9% for the portion of the total amount of the sale above £250",null,"Footwear"]
[null,null,null,null,0.153]
["Furniture","#3197","10.9% for the portion of the total amount of the sale up to £500 (calculated per item)",null,0.25]
["Bath","#26677","7.9% for the portion of the total amount of the sale above £500 and up to £1,000 (calculated per item)",null,"Full-Size Appliances"]
["Other Home Plumbing & Fixtures","#3191","3% for the portion of the total amount of the sale above £1,000",null,7.1400000000000005E-2]
[null,null,null,null,0.25]
["Jewellery & Watches, except subcategories below:","#281","12.9% for the portion of the total amount of the sale up to £450 (calculated per item)",null,"Furniture"]
[null,null,"2% for the portion of the total amount of the sale above £450",null,"• 15.3% for the portion of the total sales price up to £175.00"]
[null,null,null,null,"• 10.2% for any portion of the total sales price greater than £175.00"]
["Watches, Parts & Accessories","#260324","12.9% for the portion of the total amount of the sale up to £750 (calculated per item)",null,0.25]
[null,null,"3% for the portion of the total amount of the sale above £750",null,"Grocery and Gourmet"]
[null,null,null,null,"• 8.16% for products with a total sales price up to £10.00"]
["Mobile Phones & Communication, except subcategories below:","#15032",9.9000000000000005E-2,null,"• 15.3% for products with a total sales price greater than £10.00"]
["Mobile & Smart Phones","#9355","6.9% for the portion of the total amount of the sale up to £1,000 (calculated per item)",null,"Not applicable"]
[null,null,"3% for the portion of the total amount of the sale above £1,000",null,"Handmade"]
[null,null,null,null,0.12239999999999999]
["Music, except subcategories below:","#11233",9.9000000000000005E-2,null,0.25]
["Music NFTs","#262054",0.05,null,"Home and Kitchen"]
[null,null,null,null,0.153]
["Musical Instruments & DJ Equipment","#619",0.109,null,0.25]
["Pet Supplies","#1281",0.129,null,"Jewelry"]
["Pottery, Ceramics & Glass","#870",0.109,null,"• 20.4% for the portion of the total sales price up to £225.00"]
["Sound & Vision, except subcategories below:","#293",9.9000000000000005E-2,null,"• 5.1% for any portion of the total sales price greater than £225.00"]
["DVD, Blu-ray & Home Cinema","#32852","6.9% for the portion of the total amount of the sale up to £1,000 (calculated per item)",null,0.25]
["Headphones","#112529","3% for the portion of the total amount of the sale above £1,000",null,"Lawn and Garden"]
["Home Audio & HiFi Separates","#14969",null,null,0.153]
["Televisions","#11071",null,null,0.25]
[null,null,null,null,"Luggage"]
["Sporting Goods","#888",0.109,null,0.153]
["Sports Memorabilia, except subcategories below:","#64482",0.109,null,0.25]
["Sport Trading Card NFTs","#262055",0.05,null,"Mattresses"]
[null,null,null,null,0.153]
["Stamps","#260",0.109,null,0.25]
["Toys & Games, except subcategories below:","#220",0.109,null,"Music, Video, and DVD"]
["CCG NFTs","#262056",0.05,null,"• 15.3%"]
[null,null,null,null,"• And a closing fee of £0.50 per item sold"]
["Tents","#117213","10.9% for the portion of the total amount of the sale up to £250 (calculated per item)",null,"Not applicable"]
[null,null,"7.9% for the portion of the total amount of the sale above £250",null,"Musical Instruments and AV Production"]
[null,null,null,null,0.12239999999999999]
["Vehicle Parts & Accessories, except subcategories below:","#131090",8.8999999999999996E-2,null,0.25]
["Tyres","#179680","7.9% for the portion of the total amount of the sale up to £250 (calculated per item)",null,"Office Products"]
["Tyres & Tubes","#124313","3% for the portion of the total amount of the sale above £250",null,0.153]
[null,null,null,null,0.25]
["GPS & Sat Nav Devices","#139835","6.9% for the portion of the total amount of the sale up to £400 (calculated per item)",null,"Pet Products"]
["Power Tools & Equipment","#35000","3% for the portion of the total amount of the sale above £400",null,0.153]
[null,null,null,null,0.25]
["Video Games & Consoles, except subcategories below:","#1249",9.9000000000000005E-2,null,"Software"]
["Video Game Consoles","#139971","6.9% for the portion of the total amount of the sale up to £400 (calculated per item)",null,"• 15.3%"]
[null,null,"2% for the portion of the total amount of the sale above £400",null,"• And a closing fee of £0.50 per item sold"]
[null,null,null,null,"Not applicable"]
["Wholesale & Job Lots","#40005",0.129,null,"Sports and Outdoors"]
["Everything Else, except subcategories below:","#99",0.129,null,0.153]
["Memorials & Funerals","#88739",0.11899999999999999,null,0.25]
[null,null,null,null,"Tyres"]
[null,null,null,null,7.1400000000000005E-2]
[null,null,null,null,0.25]
[null,null,null,null,"Tools and Home Improvement"]
[null,null,null,null,0.1326]
[null,null,null,null,0.25]
[null,null,null,null,"Toys and Games"]
[null,null,null,null,0.153]
[null,null,null,null,0.25]
[null,null,null,null,"Video Games - Games and Accessories"]
[null,null,null,null,"• 15.3%"]
[null,null,null,null,"• And a closing fee of £0.50 per item sold"]
[null,null,null,null,"Not applicable"]
[null,null,null,null,"Video Game Consoles"]
[null,null,null,null,"• 8.16%"]
[null,null,null,null,"• And a closing fee of £0.50 per item sold"]
[null,null,null,null,"Not applicable"]
[null,null,null,null,"Watches"]
[null,null,null,null,"• 15.3% for the portion of the total sales price up to £225.00"]
[null,null,null,null,"• 5.1% for any portion of the total sales price greater than £225.00"]
[null,null,null,null,0.25]
[null,null,null,null,"Everything else"]
[null,null,null,null,0.153]
[null,null,null,null,0.25]